{"text_format":"1","workbook":"xlsx","n_sheets":5,"sheets":["Capture #1 CSV","Capture #2 CSV","Capture #3 CSV","Results","Backend"],"not_rendered":{"charts":19,"images":0,"macros":1,"external_links":0,"defined_names":86,"comments":2,"pivot_tables":0},"unopened":[],"bounds":{"document_bytes":16777216,"sheet_cells":100000,"rows_first":2000,"rows_last":500,"rows_between":2000,"halvings":0,"cell_chars":16384,"cell_head_chars":4096},"cells_cut":0,"cells_raw":0,"read":"whole","date_system":"1900"}

{"sheet":"Capture #1 CSV","index":0,"n_rows":0,"n_cols":0,"rows_kept":0,"cut":false,"hidden":false,"merged":[]}

{"sheet":"Capture #2 CSV","index":1,"n_rows":0,"n_cols":0,"rows_kept":0,"cut":false,"hidden":false,"merged":[]}

{"sheet":"Capture #3 CSV","index":2,"n_rows":0,"n_cols":0,"rows_kept":0,"cut":false,"hidden":false,"merged":[]}

{"sheet":"Results","index":3,"n_rows":89,"n_cols":15,"rows_kept":89,"cut":false,"hidden":false,"merged":[[15,1,15,4],[12,2,14,4],[89,1,155,26],[88,1,88,26],[20,1,39,14],[19,1,19,14],[41,1,41,26],[17,2,17,4],[16,2,16,4],[42,1,86,26],[1,11,2,11],[1,12,2,14],[11,1,14,1],[5,1,5,4],[11,2,11,4],[1,9,3,9],[1,8,3,8],[1,7,3,7],[1,6,2,6]]}
[]
[null,null,null,null,null,null,"Run Summary",{"$f":"Capture1_Variable","v":""},{"$f":"Capture2_Variable","v":""},{"$f":"Capture3_Variable","v":""},null,"Capture Health",{"$f":"IF(COUNTIF(M4:O15, \"=CAUTION*\")+COUNTIF(M4:O15, \"=NOT FOUND\")>0, \"PROBLEMS FOUND - SEE TOOLTIPS\", \"\")","v":""}]
[]
[null,null,null,null,null,null,null,null,null,null,null,"Application",{"$f":"IF(Capture1_Valid, IF(Backend!L38=0, \"GOOD\", IF(ISNUMBER(Backend!L38), \"CAUTION\", \"NOT FOUND\")), \"\")","v":""},{"$f":"IF(Capture2_Valid, IF(Backend!M38=0, \"GOOD\", IF(ISNUMBER(Backend!M38), \"CAUTION\", \"NOT FOUND\")), \"\")","v":""},{"$f":"IF(Capture3_Valid, IF(Backend!N38=0, \"GOOD\", IF(ISNUMBER(Backend!N38), \"CAUTION\", \"NOT FOUND\")), \"\")","v":""}]
[null,null,null,null,null,null,"Capture Duration (s)",{"$f":"IFERROR(IF(Capture1_Valid, MAX(Capture1_ElapsedTime), \"\"), \"N/A\")","v":""},{"$f":"IFERROR(IF(Capture2_Valid, MAX(Capture2_ElapsedTime), \"\"), \"N/A\")","v":""},{"$f":"IFERROR(IF(Capture3_Valid, MAX(Capture3_ElapsedTime), \"\"), \"N/A\")","v":""},null,"GPU",{"$f":"IF(Capture1_Valid, IF(Backend!L39=0, \"GOOD\", IF(ISNUMBER(Backend!L39), \"CAUTION\", \"NOT FOUND\")), \"\")","v":""},{"$f":"IF(Capture2_Valid, IF(Backend!M39=0, \"GOOD\", IF(ISNUMBER(Backend!M39), \"CAUTION\", \"NOT FOUND\")), \"\")","v":""},{"$f":"IF(Capture3_Valid, IF(Backend!N39=0, \"GOOD\", IF(ISNUMBER(Backend!N39), \"CAUTION\", \"NOT FOUND\")), \"\")","v":""}]
[null,"Capture Properties",null,null,null,null,"Frame Rate (fps)",{"$f":"IFERROR(IF(Capture1_Valid, IF(Meta_TableFormula=\"Average\", 1000/AVERAGE(Capture1_FrameTimes), IF(Meta_TableFormula=\"Minimum\", 1000/MAX(Capture1_FrameTimes), IF(Meta_TableFormula=\"Maximum\", 1000/MIN(Capture1_FrameTimes), IF(Meta_TableFormula=\"1st Percentile\", 1000/_xlfn.PERCENTILE.INC(Capture1_FrameTimes, 0.99), IF(Meta_TableFormula=\"5th Percentile\", 1000/_xlfn.PERCENTILE.INC(Capture1_FrameTimes, 0.95), IF(Meta_TableFormula=\"10th Percentile\", 1000/_xlfn.PERCENTILE.INC(Capture1_FrameTimes, 0.9), IF(Meta_TableFormula=\"90th Percentile\", 1000/_xlfn.PERCENTILE.INC(Capture1_FrameTimes, 0.1), IF(Meta_TableFormula=\"95th Percentile\", 1000/_xlfn.PERCENTILE.INC(Capture1_FrameTimes, 0.05), IF(Meta_TableFormula=\"99th Percentile\", 1000/_xlfn.PERCENTILE.INC(Capture1_FrameTimes, 0.01)))))))))), \"\"), \"N/A\")","v":""},{"$f":"IFERROR(IF(Capture2_Valid, IF(Meta_TableFormula=\"Average\", 1000/AVERAGE(Capture2_FrameTimes), IF(Meta_TableFormula=\"Minimum\", 1000/MAX(Capture2_FrameTimes), IF(Meta_TableFormula=\"Maximum\", 1000/MIN(Capture2_FrameTimes), IF(Meta_TableFormula=\"1st Percentile\", 1000/_xlfn.PERCENTILE.INC(Capture2_FrameTimes, 0.99), IF(Meta_TableFormula=\"5th Percentile\", 1000/_xlfn.PERCENTILE.INC(Capture2_FrameTimes, 0.95), IF(Meta_TableFormula=\"10th Percentile\", 1000/_xlfn.PERCENTILE.INC(Capture2_FrameTimes, 0.9), IF(Meta_TableFormula=\"90th Percentile\", 1000/_xlfn.PERCENTILE.INC(Capture2_FrameTimes, 0.1), IF(Meta_TableFormula=\"95th Percentile\", 1000/_xlfn.PERCENTILE.INC(Capture2_FrameTimes, 0.05), IF(Meta_TableFormula=\"99th Percentile\", 1000/_xlfn.PERCENTILE.INC(Capture2_FrameTimes, 0.01)))))))))), \"\"), \"N/A\")","v":""},{"$f":"IFERROR(IF(Capture3_Valid, IF(Meta_TableFormula=\"Average\", 1000/AVERAGE(Capture3_FrameTimes), IF(Meta_TableFormula=\"Minimum\", 1000/MAX(Capture3_FrameTimes), IF(Meta_TableFormula=\"Maximum\", 1000/MIN(Capture3_FrameTimes), IF(Meta_TableFormula=\"1st Percentile\", 1000/_xlfn.PERCENTILE.INC(Capture3_FrameTimes, 0.99), IF(Meta_TableFormula=\"5th Percentile\", 1000/_xlfn.PERCENTILE.INC(Capture3_FrameTimes, 0.95), IF(Meta_TableFormula=\"10th Percentile\", 1000/_xlfn.PERCENTILE.INC(Capture3_FrameTimes, 0.9), IF(Meta_TableFormula=\"90th Percentile\", 1000/_xlfn.PERCENTILE.INC(Capture3_FrameTimes, 0.1), IF(Meta_TableFormula=\"95th Percentile\", 1000/_xlfn.PERCENTILE.INC(Capture3_FrameTimes, 0.05), IF(Meta_TableFormula=\"99th Percentile\", 1000/_xlfn.PERCENTILE.INC(Capture3_FrameTimes, 0.01)))))))))), \"\"), \"N/A\")","v":""},null,"Resolution",{"$f":"IF(Capture1_Valid, IF(AND(Backend!L41=0, Backend!L42=0), \"GOOD\", IF(ISNUMBER(Backend!L41), \"CAUTION\", \"NOT FOUND\")), \"\")","v":""},{"$f":"IF(Capture2_Valid, IF(AND(Backend!M41=0, Backend!M42=0), \"GOOD\", IF(ISNUMBER(Backend!M41), \"CAUTION\", \"NOT FOUND\")), \"\")","v":""},{"$f":"IF(Capture3_Valid, IF(AND(Backend!N41=0, Backend!N42=0), \"GOOD\", IF(ISNUMBER(Backend!N41), \"CAUTION\", \"NOT FOUND\")), \"\")","v":""}]
[null,"Application",{"$f":"Capture1_ReportedApplication","v":""},{"$f":"Capture2_ReportedApplication","v":""},{"$f":"Capture3_ReportedApplication","v":""},null,"Graphics Power (W)",{"$f":"IFERROR(IF(Capture1_Valid, IF(Meta_TableFormula=\"Average\", AVERAGE(Capture1_Power), IF(Meta_TableFormula=\"Minimum\", MIN(Capture1_Power), IF(Meta_TableFormula=\"Maximum\", MAX(Capture1_Power), IF(Meta_TableFormula=\"1st Percentile\", _xlfn.PERCENTILE.INC(Capture1_Power, 0.01), IF(Meta_TableFormula=\"5th Percentile\", _xlfn.PERCENTILE.INC(Capture1_Power, 0.05), IF(Meta_TableFormula=\"10th Percentile\", _xlfn.PERCENTILE.INC(Capture1_Power, 0.1), IF(Meta_TableFormula=\"90th Percentile\", _xlfn.PERCENTILE.INC(Capture1_Power, 0.9), IF(Meta_TableFormula=\"95th Percentile\", _xlfn.PERCENTILE.INC(Capture1_Power, 0.95), IF(Meta_TableFormula=\"99th Percentile\", _xlfn.PERCENTILE.INC(Capture1_Power, 0.99)))))))))), \"\"), \"N/A\")","v":""},{"$f":"IFERROR(IF(Capture2_Valid, IF(Meta_TableFormula=\"Average\", AVERAGE(Capture2_Power), IF(Meta_TableFormula=\"Minimum\", MIN(Capture2_Power), IF(Meta_TableFormula=\"Maximum\", MAX(Capture2_Power), IF(Meta_TableFormula=\"1st Percentile\", _xlfn.PERCENTILE.INC(Capture2_Power, 0.01), IF(Meta_TableFormula=\"5th Percentile\", _xlfn.PERCENTILE.INC(Capture2_Power, 0.05), IF(Meta_TableFormula=\"10th Percentile\", _xlfn.PERCENTILE.INC(Capture2_Power, 0.1), IF(Meta_TableFormula=\"90th Percentile\", _xlfn.PERCENTILE.INC(Capture2_Power, 0.9), IF(Meta_TableFormula=\"95th Percentile\", _xlfn.PERCENTILE.INC(Capture2_Power, 0.95), IF(Meta_TableFormula=\"99th Percentile\", _xlfn.PERCENTILE.INC(Capture2_Power, 0.99)))))))))), \"\"), \"N/A\")","v":""},{"$f":"IFERROR(IF(Capture3_Valid, IF(Meta_TableFormula=\"Average\", AVERAGE(Capture3_Power), IF(Meta_TableFormula=\"Minimum\", MIN(Capture3_Power), IF(Meta_TableFormula=\"Maximum\", MAX(Capture3_Power), IF(Meta_TableFormula=\"1st Percentile\", _xlfn.PERCENTILE.INC(Capture3_Power, 0.01), IF(Meta_TableFormula=\"5th Percentile\", _xlfn.PERCENTILE.INC(Capture3_Power, 0.05), IF(Meta_TableFormula=\"10th Percentile\", _xlfn.PERCENTILE.INC(Capture3_Power, 0.1), IF(Meta_TableFormula=\"90th Percentile\", _xlfn.PERCENTILE.INC(Capture3_Power, 0.9), IF(Meta_TableFormula=\"95th Percentile\", _xlfn.PERCENTILE.INC(Capture3_Power, 0.95), IF(Meta_TableFormula=\"99th Percentile\", _xlfn.PERCENTILE.INC(Capture3_Power, 0.99)))))))))), \"\"), \"N/A\")","v":""},null,"Runtime",{"$f":"IF(Capture1_Valid, IF(AND(Backend!L43=0, Backend!L44=0), \"GOOD\", IF(ISNUMBER(Backend!L42), \"CAUTION\", \"NOT FOUND\")), \"\")","v":""},{"$f":"IF(Capture2_Valid, IF(AND(Backend!M43=0, Backend!M44=0), \"GOOD\", IF(ISNUMBER(Backend!M42), \"CAUTION\", \"NOT FOUND\")), \"\")","v":""},{"$f":"IF(Capture3_Valid, IF(AND(Backend!N43=0, Backend!N44=0), \"GOOD\", IF(ISNUMBER(Backend!N42), \"CAUTION\", \"NOT FOUND\")), \"\")","v":""}]
[null,"Runtime",{"$f":"Capture1_ReportedRuntime","v":""},{"$f":"Capture2_ReportedRuntime","v":""},{"$f":"Capture3_ReportedRuntime","v":""},null,"Perf per Watt (F/J)",{"$f":"IFERROR(IF(Capture1_Valid, IF(Meta_TableFormula=\"Average\", AVERAGE(Capture1_PerfPerWatt), IF(Meta_TableFormula=\"Minimum\", MIN(Capture1_PerfPerWatt), IF(Meta_TableFormula=\"Maximum\", MAX(Capture1_PerfPerWatt), IF(Meta_TableFormula=\"1st Percentile\", _xlfn.PERCENTILE.INC(Capture1_PerfPerWatt, 0.01), IF(Meta_TableFormula=\"5th Percentile\", _xlfn.PERCENTILE.INC(Capture1_PerfPerWatt, 0.05), IF(Meta_TableFormula=\"10th Percentile\", _xlfn.PERCENTILE.INC(Capture1_PerfPerWatt, 0.1), IF(Meta_TableFormula=\"90th Percentile\", _xlfn.PERCENTILE.INC(Capture1_PerfPerWatt, 0.9), IF(Meta_TableFormula=\"95th Percentile\", _xlfn.PERCENTILE.INC(Capture1_PerfPerWatt, 0.95), IF(Meta_TableFormula=\"99th Percentile\", _xlfn.PERCENTILE.INC(Capture1_PerfPerWatt, 0.99)))))))))), \"\"), \"N/A\")","v":""},{"$f":"IFERROR(IF(Capture2_Valid, IF(Meta_TableFormula=\"Average\", AVERAGE(Capture2_PerfPerWatt), IF(Meta_TableFormula=\"Minimum\", MIN(Capture2_PerfPerWatt), IF(Meta_TableFormula=\"Maximum\", MAX(Capture2_PerfPerWatt), IF(Meta_TableFormula=\"1st Percentile\", _xlfn.PERCENTILE.INC(Capture2_PerfPerWatt, 0.01), IF(Meta_TableFormula=\"5th Percentile\", _xlfn.PERCENTILE.INC(Capture2_PerfPerWatt, 0.05), IF(Meta_TableFormula=\"10th Percentile\", _xlfn.PERCENTILE.INC(Capture2_PerfPerWatt, 0.1), IF(Meta_TableFormula=\"90th Percentile\", _xlfn.PERCENTILE.INC(Capture2_PerfPerWatt, 0.9), IF(Meta_TableFormula=\"95th Percentile\", _xlfn.PERCENTILE.INC(Capture2_PerfPerWatt, 0.95), IF(Meta_TableFormula=\"99th Percentile\", _xlfn.PERCENTILE.INC(Capture2_PerfPerWatt, 0.99)))))))))), \"\"), \"N/A\")","v":""},{"$f":"IFERROR(IF(Capture3_Valid, IF(Meta_TableFormula=\"Average\", AVERAGE(Capture3_PerfPerWatt), IF(Meta_TableFormula=\"Minimum\", MIN(Capture3_PerfPerWatt), IF(Meta_TableFormula=\"Maximum\", MAX(Capture3_PerfPerWatt), IF(Meta_TableFormula=\"1st Percentile\", _xlfn.PERCENTILE.INC(Capture3_PerfPerWatt, 0.01), IF(Meta_TableFormula=\"5th Percentile\", _xlfn.PERCENTILE.INC(Capture3_PerfPerWatt, 0.05), IF(Meta_TableFormula=\"10th Percentile\", _xlfn.PERCENTILE.INC(Capture3_PerfPerWatt, 0.1), IF(Meta_TableFormula=\"90th Percentile\", _xlfn.PERCENTILE.INC(Capture3_PerfPerWatt, 0.9), IF(Meta_TableFormula=\"95th Percentile\", _xlfn.PERCENTILE.INC(Capture3_PerfPerWatt, 0.95), IF(Meta_TableFormula=\"99th Percentile\", _xlfn.PERCENTILE.INC(Capture3_PerfPerWatt, 0.99)))))))))), \"\"), \"N/A\")","v":""},null,"Allows Tearing",{"$f":"IF(Capture1_Valid, IF(Backend!L45=0, \"GOOD\", IF(ISNUMBER(Backend!L45), \"CAUTION\", \"NOT FOUND\")), \"\")","v":""},{"$f":"IF(Capture2_Valid, IF(Backend!M45=0, \"GOOD\", IF(ISNUMBER(Backend!M45), \"CAUTION\", \"NOT FOUND\")), \"\")","v":""},{"$f":"IF(Capture3_Valid, IF(Backend!N45=0, \"GOOD\", IF(ISNUMBER(Backend!N45), \"CAUTION\", \"NOT FOUND\")), \"\")","v":""}]
[null,"Resolution",{"$f":"Capture1_ReportedResolution","v":""},{"$f":"Capture2_ReportedResolution","v":""},{"$f":"Capture3_ReportedResolution","v":""},null,"PCAT vs API Power (W)",{"$f":"IFERROR(IF(AND(Capture1_Valid, Capture1_Valid_PCAT), IF(Meta_TableFormula=\"Average\", AVERAGE(Capture1_Power_PCAT)-AVERAGE(Capture1_Power_API), IF(Meta_TableFormula=\"Minimum\", MIN(Capture1_Power_PCAT)-MIN(Capture1_Power_API), IF(Meta_TableFormula=\"Maximum\", MAX(Capture1_Power_PCAT)-MAX(Capture1_Power_API), IF(Meta_TableFormula=\"1st Percentile\", _xlfn.PERCENTILE.INC(Capture1_Power_PCAT, 0.01)-_xlfn.PERCENTILE.INC(Capture1_Power_API, 0.01), IF(Meta_TableFormula=\"5th Percentile\", _xlfn.PERCENTILE.INC(Capture1_Power_PCAT, 0.05)-_xlfn.PERCENTILE.INC(Capture1_Power_API, 0.05), IF(Meta_TableFormula=\"10th Percentile\", _xlfn.PERCENTILE.INC(Capture1_Power_PCAT, 0.1)-_xlfn.PERCENTILE.INC(Capture1_Power_API, 0.1), IF(Meta_TableFormula=\"90th Percentile\", _xlfn.PERCENTILE.INC(Capture1_Power_PCAT, 0.9)-_xlfn.PERCENTILE.INC(Capture1_Power_API, 0.9), IF(Meta_TableFormula=\"95th Percentile\", _xlfn.PERCENTILE.INC(Capture1_Power_PCAT, 0.95)-_xlfn.PERCENTILE.INC(Capture1_Power_API, 0.95), IF(Meta_TableFormula=\"99th Percentile\", _xlfn.PERCENTILE.INC(Capture1_Power_PCAT, 0.99)-_xlfn.PERCENTILE.INC(Capture1_Power_API, 0.99)))))))))), \"\"), \"N/A\")","v":""},{"$f":"IFERROR(IF(AND(Capture2_Valid, Capture2_Valid_PCAT), IF(Meta_TableFormula=\"Average\", AVERAGE(Capture2_Power_PCAT)-AVERAGE(Capture2_Power_API), IF(Meta_TableFormula=\"Minimum\", MIN(Capture2_Power_PCAT)-MIN(Capture2_Power_API), IF(Meta_TableFormula=\"Maximum\", MAX(Capture2_Power_PCAT)-MAX(Capture2_Power_API), IF(Meta_TableFormula=\"1st Percentile\", _xlfn.PERCENTILE.INC(Capture2_Power_PCAT, 0.01)-_xlfn.PERCENTILE.INC(Capture2_Power_API, 0.01), IF(Meta_TableFormula=\"5th Percentile\", _xlfn.PERCENTILE.INC(Capture2_Power_PCAT, 0.05)-_xlfn.PERCENTILE.INC(Capture2_Power_API, 0.05), IF(Meta_TableFormula=\"10th Percentile\", _xlfn.PERCENTILE.INC(Capture2_Power_PCAT, 0.1)-_xlfn.PERCENTILE.INC(Capture2_Power_API, 0.1), IF(Meta_TableFormula=\"90th Percentile\", _xlfn.PERCENTILE.INC(Capture2_Power_PCAT, 0.9)-_xlfn.PERCENTILE.INC(Capture2_Power_API, 0.9), IF(Meta_TableFormula=\"95th Percentile\", _xlfn.PERCENTILE.INC(Capture2_Power_PCAT, 0.95)-_xlfn.PERCENTILE.INC(Capture2_Power_API, 0.95), IF(Meta_TableFormula=\"99th Percentile\", _xlfn.PERCENTILE.INC(Capture2_Power_PCAT, 0.99)-_xlfn.PERCENTILE.INC(Capture2_Power_API, 0.99)))))))))), \"\"), \"N/A\")","v":""},{"$f":"IFERROR(IF(AND(Capture3_Valid, Capture3_Valid_PCAT), IF(Meta_TableFormula=\"Average\", AVERAGE(Capture3_Power_PCAT)-AVERAGE(Capture3_Power_API), IF(Meta_TableFormula=\"Minimum\", MIN(Capture3_Power_PCAT)-MIN(Capture3_Power_API), IF(Meta_TableFormula=\"Maximum\", MAX(Capture3_Power_PCAT)-MAX(Capture3_Power_API), IF(Meta_TableFormula=\"1st Percentile\", _xlfn.PERCENTILE.INC(Capture3_Power_PCAT, 0.01)-_xlfn.PERCENTILE.INC(Capture3_Power_API, 0.01), IF(Meta_TableFormula=\"5th Percentile\", _xlfn.PERCENTILE.INC(Capture3_Power_PCAT, 0.05)-_xlfn.PERCENTILE.INC(Capture3_Power_API, 0.05), IF(Meta_TableFormula=\"10th Percentile\", _xlfn.PERCENTILE.INC(Capture3_Power_PCAT, 0.1)-_xlfn.PERCENTILE.INC(Capture3_Power_API, 0.1), IF(Meta_TableFormula=\"90th Percentile\", _xlfn.PERCENTILE.INC(Capture3_Power_PCAT, 0.9)-_xlfn.PERCENTILE.INC(Capture3_Power_API, 0.9), IF(Meta_TableFormula=\"95th Percentile\", _xlfn.PERCENTILE.INC(Capture3_Power_PCAT, 0.95)-_xlfn.PERCENTILE.INC(Capture3_Power_API, 0.95), IF(Meta_TableFormula=\"99th Percentile\", _xlfn.PERCENTILE.INC(Capture3_Power_PCAT, 0.99)-_xlfn.PERCENTILE.INC(Capture3_Power_API, 0.99)))))))))), \"\"), \"N/A\")","v":""},null,"Process ID",{"$f":"IF(Capture1_Valid, IF(Backend!L46=0, \"GOOD\", IF(ISNUMBER(Backend!L46), \"CAUTION\", \"NOT FOUND\")), \"\")","v":""},{"$f":"IF(Capture2_Valid, IF(Backend!M46=0, \"GOOD\", IF(ISNUMBER(Backend!M46), \"CAUTION\", \"NOT FOUND\")), \"\")","v":""},{"$f":"IF(Capture3_Valid, IF(Backend!N46=0, \"GOOD\", IF(ISNUMBER(Backend!N46), \"CAUTION\", \"NOT FOUND\")), \"\")","v":""}]
[null,"Graphics Card",{"$f":"Capture1_ReportedGPU","v":""},{"$f":"Capture2_ReportedGPU","v":""},{"$f":"Capture3_ReportedGPU","v":""},null,"Render Present Latency (ms)",{"$f":"IFERROR(IF(Capture1_Valid, IF(Meta_TableFormula=\"Average\", AVERAGE(Capture1_RenderingLatency), IF(Meta_TableFormula=\"Minimum\", MIN(Capture1_RenderingLatency), IF(Meta_TableFormula=\"Maximum\", MAX(Capture1_RenderingLatency), IF(Meta_TableFormula=\"1st Percentile\", _xlfn.PERCENTILE.INC(Capture1_RenderingLatency, 0.01), IF(Meta_TableFormula=\"5th Percentile\", _xlfn.PERCENTILE.INC(Capture1_RenderingLatency, 0.05), IF(Meta_TableFormula=\"10th Percentile\", _xlfn.PERCENTILE.INC(Capture1_RenderingLatency, 0.1), IF(Meta_TableFormula=\"90th Percentile\", _xlfn.PERCENTILE.INC(Capture1_RenderingLatency, 0.9), IF(Meta_TableFormula=\"95th Percentile\", _xlfn.PERCENTILE.INC(Capture1_RenderingLatency, 0.95), IF(Meta_TableFormula=\"99th Percentile\", _xlfn.PERCENTILE.INC(Capture1_RenderingLatency, 0.99)))))))))), \"\"), \"N/A\")","v":""},{"$f":"IFERROR(IF(Capture2_Valid, IF(Meta_TableFormula=\"Average\", AVERAGE(Capture2_RenderingLatency), IF(Meta_TableFormula=\"Minimum\", MIN(Capture2_RenderingLatency), IF(Meta_TableFormula=\"Maximum\", MAX(Capture2_RenderingLatency), IF(Meta_TableFormula=\"1st Percentile\", _xlfn.PERCENTILE.INC(Capture2_RenderingLatency, 0.01), IF(Meta_TableFormula=\"5th Percentile\", _xlfn.PERCENTILE.INC(Capture2_RenderingLatency, 0.05), IF(Meta_TableFormula=\"10th Percentile\", _xlfn.PERCENTILE.INC(Capture2_RenderingLatency, 0.1), IF(Meta_TableFormula=\"90th Percentile\", _xlfn.PERCENTILE.INC(Capture2_RenderingLatency, 0.9), IF(Meta_TableFormula=\"95th Percentile\", _xlfn.PERCENTILE.INC(Capture2_RenderingLatency, 0.95), IF(Meta_TableFormula=\"99th Percentile\", _xlfn.PERCENTILE.INC(Capture2_RenderingLatency, 0.99)))))))))), \"\"), \"N/A\")","v":""},{"$f":"IFERROR(IF(Capture3_Valid, IF(Meta_TableFormula=\"Average\", AVERAGE(Capture3_RenderingLatency), IF(Meta_TableFormula=\"Minimum\", MIN(Capture3_RenderingLatency), IF(Meta_TableFormula=\"Maximum\", MAX(Capture3_RenderingLatency), IF(Meta_TableFormula=\"1st Percentile\", _xlfn.PERCENTILE.INC(Capture3_RenderingLatency, 0.01), IF(Meta_TableFormula=\"5th Percentile\", _xlfn.PERCENTILE.INC(Capture3_RenderingLatency, 0.05), IF(Meta_TableFormula=\"10th Percentile\", _xlfn.PERCENTILE.INC(Capture3_RenderingLatency, 0.1), IF(Meta_TableFormula=\"90th Percentile\", _xlfn.PERCENTILE.INC(Capture3_RenderingLatency, 0.9), IF(Meta_TableFormula=\"95th Percentile\", _xlfn.PERCENTILE.INC(Capture3_RenderingLatency, 0.95), IF(Meta_TableFormula=\"99th Percentile\", _xlfn.PERCENTILE.INC(Capture3_RenderingLatency, 0.99)))))))))), \"\"), \"N/A\")","v":""},null,"Swap Chain Address",{"$f":"IF(Capture1_Valid, IF(Backend!L47=0, \"GOOD\", IF(ISNUMBER(Backend!L47), \"CAUTION\", \"NOT FOUND\")), \"\")","v":""},{"$f":"IF(Capture2_Valid, IF(Backend!M47=0, \"GOOD\", IF(ISNUMBER(Backend!M47), \"CAUTION\", \"NOT FOUND\")), \"\")","v":""},{"$f":"IF(Capture3_Valid, IF(Backend!N47=0, \"GOOD\", IF(ISNUMBER(Backend!N47), \"CAUTION\", \"NOT FOUND\")), \"\")","v":""}]
[null,"Extra Variable",null,null,null,null,"Render Queue (frames)",{"$f":"IFERROR(IF(Capture1_Valid, IF(Meta_TableFormula=\"Average\", AVERAGE(Capture1_RenderQueue), IF(Meta_TableFormula=\"Minimum\", MIN(Capture1_RenderQueue), IF(Meta_TableFormula=\"Maximum\", MAX(Capture1_RenderQueue), IF(Meta_TableFormula=\"1st Percentile\", _xlfn.PERCENTILE.INC(Capture1_RenderQueue, 0.01), IF(Meta_TableFormula=\"5th Percentile\", _xlfn.PERCENTILE.INC(Capture1_RenderQueue, 0.05), IF(Meta_TableFormula=\"10th Percentile\", _xlfn.PERCENTILE.INC(Capture1_RenderQueue, 0.1), IF(Meta_TableFormula=\"90th Percentile\", _xlfn.PERCENTILE.INC(Capture1_RenderQueue, 0.9), IF(Meta_TableFormula=\"95th Percentile\", _xlfn.PERCENTILE.INC(Capture1_RenderQueue, 0.95), IF(Meta_TableFormula=\"99th Percentile\", _xlfn.PERCENTILE.INC(Capture1_RenderQueue, 0.99)))))))))), \"\"), \"N/A\")","v":""},{"$f":"IFERROR(IF(Capture2_Valid, IF(Meta_TableFormula=\"Average\", AVERAGE(Capture2_RenderQueue), IF(Meta_TableFormula=\"Minimum\", MIN(Capture2_RenderQueue), IF(Meta_TableFormula=\"Maximum\", MAX(Capture2_RenderQueue), IF(Meta_TableFormula=\"1st Percentile\", _xlfn.PERCENTILE.INC(Capture2_RenderQueue, 0.01), IF(Meta_TableFormula=\"5th Percentile\", _xlfn.PERCENTILE.INC(Capture2_RenderQueue, 0.05), IF(Meta_TableFormula=\"10th Percentile\", _xlfn.PERCENTILE.INC(Capture2_RenderQueue, 0.1), IF(Meta_TableFormula=\"90th Percentile\", _xlfn.PERCENTILE.INC(Capture2_RenderQueue, 0.9), IF(Meta_TableFormula=\"95th Percentile\", _xlfn.PERCENTILE.INC(Capture2_RenderQueue, 0.95), IF(Meta_TableFormula=\"99th Percentile\", _xlfn.PERCENTILE.INC(Capture2_RenderQueue, 0.99)))))))))), \"\"), \"N/A\")","v":""},{"$f":"IFERROR(IF(Capture3_Valid, IF(Meta_TableFormula=\"Average\", AVERAGE(Capture3_RenderQueue), IF(Meta_TableFormula=\"Minimum\", MIN(Capture3_RenderQueue), IF(Meta_TableFormula=\"Maximum\", MAX(Capture3_RenderQueue), IF(Meta_TableFormula=\"1st Percentile\", _xlfn.PERCENTILE.INC(Capture3_RenderQueue, 0.01), IF(Meta_TableFormula=\"5th Percentile\", _xlfn.PERCENTILE.INC(Capture3_RenderQueue, 0.05), IF(Meta_TableFormula=\"10th Percentile\", _xlfn.PERCENTILE.INC(Capture3_RenderQueue, 0.1), IF(Meta_TableFormula=\"90th Percentile\", _xlfn.PERCENTILE.INC(Capture3_RenderQueue, 0.9), IF(Meta_TableFormula=\"95th Percentile\", _xlfn.PERCENTILE.INC(Capture3_RenderQueue, 0.95), IF(Meta_TableFormula=\"99th Percentile\", _xlfn.PERCENTILE.INC(Capture3_RenderQueue, 0.99)))))))))), \"\"), \"N/A\")","v":""},null,"Sync Interval",{"$f":"IF(Capture1_Valid, IF(Backend!L48=0, \"GOOD\", IF(ISNUMBER(Backend!L48), \"CAUTION\", \"NOT FOUND\")), \"\")","v":""},{"$f":"IF(Capture2_Valid, IF(Backend!M48=0, \"GOOD\", IF(ISNUMBER(Backend!M48), \"CAUTION\", \"NOT FOUND\")), \"\")","v":""},{"$f":"IF(Capture3_Valid, IF(Backend!N48=0, \"GOOD\", IF(ISNUMBER(Backend!N48), \"CAUTION\", \"NOT FOUND\")), \"\")","v":""}]
[null,"Power Scheme",null,null,null,null,"GPU0 Utilization (%)",{"$f":"IFERROR(IF(Capture1_Valid, IF(Meta_TableFormula=\"Average\", AVERAGE(Capture1_GPU0Util), IF(Meta_TableFormula=\"Minimum\", MIN(Capture1_GPU0Util), IF(Meta_TableFormula=\"Maximum\", MAX(Capture1_GPU0Util), IF(Meta_TableFormula=\"1st Percentile\", _xlfn.PERCENTILE.INC(Capture1_GPU0Util, 0.01), IF(Meta_TableFormula=\"5th Percentile\", _xlfn.PERCENTILE.INC(Capture1_GPU0Util, 0.05), IF(Meta_TableFormula=\"10th Percentile\", _xlfn.PERCENTILE.INC(Capture1_GPU0Util, 0.1), IF(Meta_TableFormula=\"90th Percentile\", _xlfn.PERCENTILE.INC(Capture1_GPU0Util, 0.9), IF(Meta_TableFormula=\"95th Percentile\", _xlfn.PERCENTILE.INC(Capture1_GPU0Util, 0.95), IF(Meta_TableFormula=\"99th Percentile\", _xlfn.PERCENTILE.INC(Capture1_GPU0Util, 0.99)))))))))), \"\"), \"N/A\")","v":""},{"$f":"IFERROR(IF(Capture2_Valid, IF(Meta_TableFormula=\"Average\", AVERAGE(Capture2_GPU0Util), IF(Meta_TableFormula=\"Minimum\", MIN(Capture2_GPU0Util), IF(Meta_TableFormula=\"Maximum\", MAX(Capture2_GPU0Util), IF(Meta_TableFormula=\"1st Percentile\", _xlfn.PERCENTILE.INC(Capture2_GPU0Util, 0.01), IF(Meta_TableFormula=\"5th Percentile\", _xlfn.PERCENTILE.INC(Capture2_GPU0Util, 0.05), IF(Meta_TableFormula=\"10th Percentile\", _xlfn.PERCENTILE.INC(Capture2_GPU0Util, 0.1), IF(Meta_TableFormula=\"90th Percentile\", _xlfn.PERCENTILE.INC(Capture2_GPU0Util, 0.9), IF(Meta_TableFormula=\"95th Percentile\", _xlfn.PERCENTILE.INC(Capture2_GPU0Util, 0.95), IF(Meta_TableFormula=\"99th Percentile\", _xlfn.PERCENTILE.INC(Capture2_GPU0Util, 0.99)))))))))), \"\"), \"N/A\")","v":""},{"$f":"IFERROR(IF(Capture3_Valid, IF(Meta_TableFormula=\"Average\", AVERAGE(Capture3_GPU0Util), IF(Meta_TableFormula=\"Minimum\", MIN(Capture3_GPU0Util), IF(Meta_TableFormula=\"Maximum\", MAX(Capture3_GPU0Util), IF(Meta_TableFormula=\"1st Percentile\", _xlfn.PERCENTILE.INC(Capture3_GPU0Util, 0.01), IF(Meta_TableFormula=\"5th Percentile\", _xlfn.PERCENTILE.INC(Capture3_GPU0Util, 0.05), IF(Meta_TableFormula=\"10th Percentile\", _xlfn.PERCENTILE.INC(Capture3_GPU0Util, 0.1), IF(Meta_TableFormula=\"90th Percentile\", _xlfn.PERCENTILE.INC(Capture3_GPU0Util, 0.9), IF(Meta_TableFormula=\"95th Percentile\", _xlfn.PERCENTILE.INC(Capture3_GPU0Util, 0.95), IF(Meta_TableFormula=\"99th Percentile\", _xlfn.PERCENTILE.INC(Capture3_GPU0Util, 0.99)))))))))), \"\"), \"N/A\")","v":""},null,"Present Flags",{"$f":"IF(Capture1_Valid, IF(Backend!L49=0, \"GOOD\", IF(ISNUMBER(Backend!L49), \"CAUTION\", \"NOT FOUND\")), \"\")","v":""},{"$f":"IF(Capture2_Valid, IF(Backend!M49=0, \"GOOD\", IF(ISNUMBER(Backend!M49), \"CAUTION\", \"NOT FOUND\")), \"\")","v":""},{"$f":"IF(Capture3_Valid, IF(Backend!N49=0, \"GOOD\", IF(ISNUMBER(Backend!N49), \"CAUTION\", \"NOT FOUND\")), \"\")","v":""}]
[null,null,"NOTE: The AMD API currently reports a value that appears to be in-between chip power and board power for AMD graphics cards. It is not currently possible to accurately compare AMD GPU power consumption to NVIDIA GPU power consumption using FrameView.",null,null,null,"GPU0 Temp (°C)",{"$f":"IFERROR(IF(Capture1_Valid, IF(Meta_TableFormula=\"Average\", AVERAGE(Capture1_GPU0Temp), IF(Meta_TableFormula=\"Minimum\", MIN(Capture1_GPU0Temp), IF(Meta_TableFormula=\"Maximum\", MAX(Capture1_GPU0Temp), IF(Meta_TableFormula=\"1st Percentile\", _xlfn.PERCENTILE.INC(Capture1_GPU0Temp, 0.01), IF(Meta_TableFormula=\"5th Percentile\", _xlfn.PERCENTILE.INC(Capture1_GPU0Temp, 0.05), IF(Meta_TableFormula=\"10th Percentile\", _xlfn.PERCENTILE.INC(Capture1_GPU0Temp, 0.1), IF(Meta_TableFormula=\"90th Percentile\", _xlfn.PERCENTILE.INC(Capture1_GPU0Temp, 0.9), IF(Meta_TableFormula=\"95th Percentile\", _xlfn.PERCENTILE.INC(Capture1_GPU0Temp, 0.95), IF(Meta_TableFormula=\"99th Percentile\", _xlfn.PERCENTILE.INC(Capture1_GPU0Temp, 0.99)))))))))), \"\"), \"N/A\")","v":""},{"$f":"IFERROR(IF(Capture2_Valid, IF(Meta_TableFormula=\"Average\", AVERAGE(Capture2_GPU0Temp), IF(Meta_TableFormula=\"Minimum\", MIN(Capture2_GPU0Temp), IF(Meta_TableFormula=\"Maximum\", MAX(Capture2_GPU0Temp), IF(Meta_TableFormula=\"1st Percentile\", _xlfn.PERCENTILE.INC(Capture2_GPU0Temp, 0.01), IF(Meta_TableFormula=\"5th Percentile\", _xlfn.PERCENTILE.INC(Capture2_GPU0Temp, 0.05), IF(Meta_TableFormula=\"10th Percentile\", _xlfn.PERCENTILE.INC(Capture2_GPU0Temp, 0.1), IF(Meta_TableFormula=\"90th Percentile\", _xlfn.PERCENTILE.INC(Capture2_GPU0Temp, 0.9), IF(Meta_TableFormula=\"95th Percentile\", _xlfn.PERCENTILE.INC(Capture2_GPU0Temp, 0.95), IF(Meta_TableFormula=\"99th Percentile\", _xlfn.PERCENTILE.INC(Capture2_GPU0Temp, 0.99)))))))))), \"\"), \"N/A\")","v":""},{"$f":"IFERROR(IF(Capture3_Valid, IF(Meta_TableFormula=\"Average\", AVERAGE(Capture3_GPU0Temp), IF(Meta_TableFormula=\"Minimum\", MIN(Capture3_GPU0Temp), IF(Meta_TableFormula=\"Maximum\", MAX(Capture3_GPU0Temp), IF(Meta_TableFormula=\"1st Percentile\", _xlfn.PERCENTILE.INC(Capture3_GPU0Temp, 0.01), IF(Meta_TableFormula=\"5th Percentile\", _xlfn.PERCENTILE.INC(Capture3_GPU0Temp, 0.05), IF(Meta_TableFormula=\"10th Percentile\", _xlfn.PERCENTILE.INC(Capture3_GPU0Temp, 0.1), IF(Meta_TableFormula=\"90th Percentile\", _xlfn.PERCENTILE.INC(Capture3_GPU0Temp, 0.9), IF(Meta_TableFormula=\"95th Percentile\", _xlfn.PERCENTILE.INC(Capture3_GPU0Temp, 0.95), IF(Meta_TableFormula=\"99th Percentile\", _xlfn.PERCENTILE.INC(Capture3_GPU0Temp, 0.99)))))))))), \"\"), \"N/A\")","v":""},null,"Present Mode",{"$f":"IF(Capture1_Valid, IF(AND(Backend!L50=0, Backend!L51=0), \"GOOD\", IF(ISNUMBER(Backend!L50), \"CAUTION\", \"NOT FOUND\")), \"\")","v":""},{"$f":"IF(Capture2_Valid, IF(Backend!M50=0, \"GOOD\", IF(ISNUMBER(Backend!M50), \"CAUTION\", \"NOT FOUND\")), \"\")","v":""},{"$f":"IF(Capture3_Valid, IF(Backend!N50=0, \"GOOD\", IF(ISNUMBER(Backend!N50), \"CAUTION\", \"NOT FOUND\")), \"\")","v":""}]
[null,null,null,null,null,null,"GPU0 Clock (MHz)",{"$f":"IFERROR(IF(Capture1_Valid, IF(Meta_TableFormula=\"Average\", AVERAGE(Capture1_GPU0Clock), IF(Meta_TableFormula=\"Minimum\", MIN(Capture1_GPU0Clock), IF(Meta_TableFormula=\"Maximum\", MAX(Capture1_GPU0Clock), IF(Meta_TableFormula=\"1st Percentile\", _xlfn.PERCENTILE.INC(Capture1_GPU0Clock, 0.01), IF(Meta_TableFormula=\"5th Percentile\", _xlfn.PERCENTILE.INC(Capture1_GPU0Clock, 0.05), IF(Meta_TableFormula=\"10th Percentile\", _xlfn.PERCENTILE.INC(Capture1_GPU0Clock, 0.1), IF(Meta_TableFormula=\"90th Percentile\", _xlfn.PERCENTILE.INC(Capture1_GPU0Clock, 0.9), IF(Meta_TableFormula=\"95th Percentile\", _xlfn.PERCENTILE.INC(Capture1_GPU0Clock, 0.95), IF(Meta_TableFormula=\"99th Percentile\", _xlfn.PERCENTILE.INC(Capture1_GPU0Clock, 0.99)))))))))), \"\"), \"N/A\")","v":""},{"$f":"IFERROR(IF(Capture2_Valid, IF(Meta_TableFormula=\"Average\", AVERAGE(Capture2_GPU0Clock), IF(Meta_TableFormula=\"Minimum\", MIN(Capture2_GPU0Clock), IF(Meta_TableFormula=\"Maximum\", MAX(Capture2_GPU0Clock), IF(Meta_TableFormula=\"1st Percentile\", _xlfn.PERCENTILE.INC(Capture2_GPU0Clock, 0.01), IF(Meta_TableFormula=\"5th Percentile\", _xlfn.PERCENTILE.INC(Capture2_GPU0Clock, 0.05), IF(Meta_TableFormula=\"10th Percentile\", _xlfn.PERCENTILE.INC(Capture2_GPU0Clock, 0.1), IF(Meta_TableFormula=\"90th Percentile\", _xlfn.PERCENTILE.INC(Capture2_GPU0Clock, 0.9), IF(Meta_TableFormula=\"95th Percentile\", _xlfn.PERCENTILE.INC(Capture2_GPU0Clock, 0.95), IF(Meta_TableFormula=\"99th Percentile\", _xlfn.PERCENTILE.INC(Capture2_GPU0Clock, 0.99)))))))))), \"\"), \"N/A\")","v":""},{"$f":"IFERROR(IF(Capture3_Valid, IF(Meta_TableFormula=\"Average\", AVERAGE(Capture3_GPU0Clock), IF(Meta_TableFormula=\"Minimum\", MIN(Capture3_GPU0Clock), IF(Meta_TableFormula=\"Maximum\", MAX(Capture3_GPU0Clock), IF(Meta_TableFormula=\"1st Percentile\", _xlfn.PERCENTILE.INC(Capture3_GPU0Clock, 0.01), IF(Meta_TableFormula=\"5th Percentile\", _xlfn.PERCENTILE.INC(Capture3_GPU0Clock, 0.05), IF(Meta_TableFormula=\"10th Percentile\", _xlfn.PERCENTILE.INC(Capture3_GPU0Clock, 0.1), IF(Meta_TableFormula=\"90th Percentile\", _xlfn.PERCENTILE.INC(Capture3_GPU0Clock, 0.9), IF(Meta_TableFormula=\"95th Percentile\", _xlfn.PERCENTILE.INC(Capture3_GPU0Clock, 0.95), IF(Meta_TableFormula=\"99th Percentile\", _xlfn.PERCENTILE.INC(Capture3_GPU0Clock, 0.99)))))))))), \"\"), \"N/A\")","v":""},null,"Dropped Frames",{"$f":"IF(Capture1_Valid, IF(Backend!L52=0, \"GOOD\", IF(ISNUMBER(Backend!L52), \"CAUTION\", \"NOT FOUND\")), \"\")","v":""},{"$f":"IF(Capture2_Valid, IF(Backend!M52=0, \"GOOD\", IF(ISNUMBER(Backend!M52), \"CAUTION\", \"NOT FOUND\")), \"\")","v":""},{"$f":"IF(Capture3_Valid, IF(Backend!N52=0, \"GOOD\", IF(ISNUMBER(Backend!N52), \"CAUTION\", \"NOT FOUND\")), \"\")","v":""}]
[null,null,null,null,null,null,"CPU Power (W)",{"$f":"IFERROR(IF(Capture1_Valid, IF(Meta_TableFormula=\"Average\", AVERAGE(Capture1_CPUPower), IF(Meta_TableFormula=\"Minimum\", MIN(Capture1_CPUPower), IF(Meta_TableFormula=\"Maximum\", MAX(Capture1_CPUPower), IF(Meta_TableFormula=\"1st Percentile\", _xlfn.PERCENTILE.INC(Capture1_CPUPower, 0.01), IF(Meta_TableFormula=\"5th Percentile\", _xlfn.PERCENTILE.INC(Capture1_CPUPower, 0.05), IF(Meta_TableFormula=\"10th Percentile\", _xlfn.PERCENTILE.INC(Capture1_CPUPower, 0.1), IF(Meta_TableFormula=\"90th Percentile\", _xlfn.PERCENTILE.INC(Capture1_CPUPower, 0.9), IF(Meta_TableFormula=\"95th Percentile\", _xlfn.PERCENTILE.INC(Capture1_CPUPower, 0.95), IF(Meta_TableFormula=\"99th Percentile\", _xlfn.PERCENTILE.INC(Capture1_CPUPower, 0.99)))))))))), \"\"), \"N/A\")","v":""},{"$f":"IFERROR(IF(Capture2_Valid, IF(Meta_TableFormula=\"Average\", AVERAGE(Capture2_CPUPower), IF(Meta_TableFormula=\"Minimum\", MIN(Capture2_CPUPower), IF(Meta_TableFormula=\"Maximum\", MAX(Capture2_CPUPower), IF(Meta_TableFormula=\"1st Percentile\", _xlfn.PERCENTILE.INC(Capture2_CPUPower, 0.01), IF(Meta_TableFormula=\"5th Percentile\", _xlfn.PERCENTILE.INC(Capture2_CPUPower, 0.05), IF(Meta_TableFormula=\"10th Percentile\", _xlfn.PERCENTILE.INC(Capture2_CPUPower, 0.1), IF(Meta_TableFormula=\"90th Percentile\", _xlfn.PERCENTILE.INC(Capture2_CPUPower, 0.9), IF(Meta_TableFormula=\"95th Percentile\", _xlfn.PERCENTILE.INC(Capture2_CPUPower, 0.95), IF(Meta_TableFormula=\"99th Percentile\", _xlfn.PERCENTILE.INC(Capture2_CPUPower, 0.99)))))))))), \"\"), \"N/A\")","v":""},{"$f":"IFERROR(IF(Capture3_Valid, IF(Meta_TableFormula=\"Average\", AVERAGE(Capture3_CPUPower), IF(Meta_TableFormula=\"Minimum\", MIN(Capture3_CPUPower), IF(Meta_TableFormula=\"Maximum\", MAX(Capture3_CPUPower), IF(Meta_TableFormula=\"1st Percentile\", _xlfn.PERCENTILE.INC(Capture3_CPUPower, 0.01), IF(Meta_TableFormula=\"5th Percentile\", _xlfn.PERCENTILE.INC(Capture3_CPUPower, 0.05), IF(Meta_TableFormula=\"10th Percentile\", _xlfn.PERCENTILE.INC(Capture3_CPUPower, 0.1), IF(Meta_TableFormula=\"90th Percentile\", _xlfn.PERCENTILE.INC(Capture3_CPUPower, 0.9), IF(Meta_TableFormula=\"95th Percentile\", _xlfn.PERCENTILE.INC(Capture3_CPUPower, 0.95), IF(Meta_TableFormula=\"99th Percentile\", _xlfn.PERCENTILE.INC(Capture3_CPUPower, 0.99)))))))))), \"\"), \"N/A\")","v":""},null,"MsBetweenDisplayChange",{"$f":"IF(Capture1_Valid, IF(AND(ISNUMBER(Backend!C55), Backend!L55=0), \"GOOD\", IF(ISNUMBER(Backend!L55), \"CAUTION\", \"NOT FOUND\")), \"\")","v":""},{"$f":"IF(Capture2_Valid, IF(AND(ISNUMBER(Backend!D55), Backend!M55=0), \"GOOD\", IF(ISNUMBER(Backend!M55), \"CAUTION\", \"NOT FOUND\")), \"\")","v":""},{"$f":"IF(Capture3_Valid, IF(AND(ISNUMBER(Backend!E55), Backend!N55=0), \"GOOD\", IF(ISNUMBER(Backend!N55), \"CAUTION\", \"NOT FOUND\")), \"\")","v":""}]
[null,"Label Templates",null,null,null,null,"CPU Utilization (%)",{"$f":"IFERROR(IF(Capture1_Valid, IF(Meta_TableFormula=\"Average\", AVERAGE(Capture1_CPUUtil), IF(Meta_TableFormula=\"Minimum\", MIN(Capture1_CPUUtil), IF(Meta_TableFormula=\"Maximum\", MAX(Capture1_CPUUtil), IF(Meta_TableFormula=\"1st Percentile\", _xlfn.PERCENTILE.INC(Capture1_CPUUtil, 0.01), IF(Meta_TableFormula=\"5th Percentile\", _xlfn.PERCENTILE.INC(Capture1_CPUUtil, 0.05), IF(Meta_TableFormula=\"10th Percentile\", _xlfn.PERCENTILE.INC(Capture1_CPUUtil, 0.1), IF(Meta_TableFormula=\"90th Percentile\", _xlfn.PERCENTILE.INC(Capture1_CPUUtil, 0.9), IF(Meta_TableFormula=\"95th Percentile\", _xlfn.PERCENTILE.INC(Capture1_CPUUtil, 0.95), IF(Meta_TableFormula=\"99th Percentile\", _xlfn.PERCENTILE.INC(Capture1_CPUUtil, 0.99)))))))))), \"\"), \"N/A\")","v":""},{"$f":"IFERROR(IF(Capture2_Valid, IF(Meta_TableFormula=\"Average\", AVERAGE(Capture2_CPUUtil), IF(Meta_TableFormula=\"Minimum\", MIN(Capture2_CPUUtil), IF(Meta_TableFormula=\"Maximum\", MAX(Capture2_CPUUtil), IF(Meta_TableFormula=\"1st Percentile\", _xlfn.PERCENTILE.INC(Capture2_CPUUtil, 0.01), IF(Meta_TableFormula=\"5th Percentile\", _xlfn.PERCENTILE.INC(Capture2_CPUUtil, 0.05), IF(Meta_TableFormula=\"10th Percentile\", _xlfn.PERCENTILE.INC(Capture2_CPUUtil, 0.1), IF(Meta_TableFormula=\"90th Percentile\", _xlfn.PERCENTILE.INC(Capture2_CPUUtil, 0.9), IF(Meta_TableFormula=\"95th Percentile\", _xlfn.PERCENTILE.INC(Capture2_CPUUtil, 0.95), IF(Meta_TableFormula=\"99th Percentile\", _xlfn.PERCENTILE.INC(Capture2_CPUUtil, 0.99)))))))))), \"\"), \"N/A\")","v":""},{"$f":"IFERROR(IF(Capture3_Valid, IF(Meta_TableFormula=\"Average\", AVERAGE(Capture3_CPUUtil), IF(Meta_TableFormula=\"Minimum\", MIN(Capture3_CPUUtil), IF(Meta_TableFormula=\"Maximum\", MAX(Capture3_CPUUtil), IF(Meta_TableFormula=\"1st Percentile\", _xlfn.PERCENTILE.INC(Capture3_CPUUtil, 0.01), IF(Meta_TableFormula=\"5th Percentile\", _xlfn.PERCENTILE.INC(Capture3_CPUUtil, 0.05), IF(Meta_TableFormula=\"10th Percentile\", _xlfn.PERCENTILE.INC(Capture3_CPUUtil, 0.1), IF(Meta_TableFormula=\"90th Percentile\", _xlfn.PERCENTILE.INC(Capture3_CPUUtil, 0.9), IF(Meta_TableFormula=\"95th Percentile\", _xlfn.PERCENTILE.INC(Capture3_CPUUtil, 0.95), IF(Meta_TableFormula=\"99th Percentile\", _xlfn.PERCENTILE.INC(Capture3_CPUUtil, 0.99)))))))))), \"\"), \"N/A\")","v":""}]
[null,"Chart Title Tags","[Application] ([Runtime]) at [Resolution] w/ [GPU] | ",null,null,null,"CPU Temp (°C)",{"$f":"IFERROR(IF(Capture1_Valid, IF(Meta_TableFormula=\"Average\", AVERAGE(Capture1_CPUTemp), IF(Meta_TableFormula=\"Minimum\", MIN(Capture1_CPUTemp), IF(Meta_TableFormula=\"Maximum\", MAX(Capture1_CPUTemp), IF(Meta_TableFormula=\"1st Percentile\", _xlfn.PERCENTILE.INC(Capture1_CPUTemp, 0.01), IF(Meta_TableFormula=\"5th Percentile\", _xlfn.PERCENTILE.INC(Capture1_CPUTemp, 0.05), IF(Meta_TableFormula=\"10th Percentile\", _xlfn.PERCENTILE.INC(Capture1_CPUTemp, 0.1), IF(Meta_TableFormula=\"90th Percentile\", _xlfn.PERCENTILE.INC(Capture1_CPUTemp, 0.9), IF(Meta_TableFormula=\"95th Percentile\", _xlfn.PERCENTILE.INC(Capture1_CPUTemp, 0.95), IF(Meta_TableFormula=\"99th Percentile\", _xlfn.PERCENTILE.INC(Capture1_CPUTemp, 0.99)))))))))), \"\"), \"N/A\")","v":""},{"$f":"IFERROR(IF(Capture2_Valid, IF(Meta_TableFormula=\"Average\", AVERAGE(Capture2_CPUTemp), IF(Meta_TableFormula=\"Minimum\", MIN(Capture2_CPUTemp), IF(Meta_TableFormula=\"Maximum\", MAX(Capture2_CPUTemp), IF(Meta_TableFormula=\"1st Percentile\", _xlfn.PERCENTILE.INC(Capture2_CPUTemp, 0.01), IF(Meta_TableFormula=\"5th Percentile\", _xlfn.PERCENTILE.INC(Capture2_CPUTemp, 0.05), IF(Meta_TableFormula=\"10th Percentile\", _xlfn.PERCENTILE.INC(Capture2_CPUTemp, 0.1), IF(Meta_TableFormula=\"90th Percentile\", _xlfn.PERCENTILE.INC(Capture2_CPUTemp, 0.9), IF(Meta_TableFormula=\"95th Percentile\", _xlfn.PERCENTILE.INC(Capture2_CPUTemp, 0.95), IF(Meta_TableFormula=\"99th Percentile\", _xlfn.PERCENTILE.INC(Capture2_CPUTemp, 0.99)))))))))), \"\"), \"N/A\")","v":""},{"$f":"IFERROR(IF(Capture3_Valid, IF(Meta_TableFormula=\"Average\", AVERAGE(Capture3_CPUTemp), IF(Meta_TableFormula=\"Minimum\", MIN(Capture3_CPUTemp), IF(Meta_TableFormula=\"Maximum\", MAX(Capture3_CPUTemp), IF(Meta_TableFormula=\"1st Percentile\", _xlfn.PERCENTILE.INC(Capture3_CPUTemp, 0.01), IF(Meta_TableFormula=\"5th Percentile\", _xlfn.PERCENTILE.INC(Capture3_CPUTemp, 0.05), IF(Meta_TableFormula=\"10th Percentile\", _xlfn.PERCENTILE.INC(Capture3_CPUTemp, 0.1), IF(Meta_TableFormula=\"90th Percentile\", _xlfn.PERCENTILE.INC(Capture3_CPUTemp, 0.9), IF(Meta_TableFormula=\"95th Percentile\", _xlfn.PERCENTILE.INC(Capture3_CPUTemp, 0.95), IF(Meta_TableFormula=\"99th Percentile\", _xlfn.PERCENTILE.INC(Capture3_CPUTemp, 0.99)))))))))), \"\"), \"N/A\")","v":""}]
[null,"Capture Tags","[GPU]",null,null,null,"CPU Clock (MHz)",{"$f":"IFERROR(IF(Capture1_Valid, IF(Meta_TableFormula=\"Average\", AVERAGE(Capture1_CPUClock), IF(Meta_TableFormula=\"Minimum\", MIN(Capture1_CPUClock), IF(Meta_TableFormula=\"Maximum\", MAX(Capture1_CPUClock), IF(Meta_TableFormula=\"1st Percentile\", _xlfn.PERCENTILE.INC(Capture1_CPUClock, 0.01), IF(Meta_TableFormula=\"5th Percentile\", _xlfn.PERCENTILE.INC(Capture1_CPUClock, 0.05), IF(Meta_TableFormula=\"10th Percentile\", _xlfn.PERCENTILE.INC(Capture1_CPUClock, 0.1), IF(Meta_TableFormula=\"90th Percentile\", _xlfn.PERCENTILE.INC(Capture1_CPUClock, 0.9), IF(Meta_TableFormula=\"95th Percentile\", _xlfn.PERCENTILE.INC(Capture1_CPUClock, 0.95), IF(Meta_TableFormula=\"99th Percentile\", _xlfn.PERCENTILE.INC(Capture1_CPUClock, 0.99)))))))))), \"\"), \"N/A\")","v":""},{"$f":"IFERROR(IF(Capture2_Valid, IF(Meta_TableFormula=\"Average\", AVERAGE(Capture2_CPUClock), IF(Meta_TableFormula=\"Minimum\", MIN(Capture2_CPUClock), IF(Meta_TableFormula=\"Maximum\", MAX(Capture2_CPUClock), IF(Meta_TableFormula=\"1st Percentile\", _xlfn.PERCENTILE.INC(Capture2_CPUClock, 0.01), IF(Meta_TableFormula=\"5th Percentile\", _xlfn.PERCENTILE.INC(Capture2_CPUClock, 0.05), IF(Meta_TableFormula=\"10th Percentile\", _xlfn.PERCENTILE.INC(Capture2_CPUClock, 0.1), IF(Meta_TableFormula=\"90th Percentile\", _xlfn.PERCENTILE.INC(Capture2_CPUClock, 0.9), IF(Meta_TableFormula=\"95th Percentile\", _xlfn.PERCENTILE.INC(Capture2_CPUClock, 0.95), IF(Meta_TableFormula=\"99th Percentile\", _xlfn.PERCENTILE.INC(Capture2_CPUClock, 0.99)))))))))), \"\"), \"N/A\")","v":""},{"$f":"IFERROR(IF(Capture3_Valid, IF(Meta_TableFormula=\"Average\", AVERAGE(Capture3_CPUClock), IF(Meta_TableFormula=\"Minimum\", MIN(Capture3_CPUClock), IF(Meta_TableFormula=\"Maximum\", MAX(Capture3_CPUClock), IF(Meta_TableFormula=\"1st Percentile\", _xlfn.PERCENTILE.INC(Capture3_CPUClock, 0.01), IF(Meta_TableFormula=\"5th Percentile\", _xlfn.PERCENTILE.INC(Capture3_CPUClock, 0.05), IF(Meta_TableFormula=\"10th Percentile\", _xlfn.PERCENTILE.INC(Capture3_CPUClock, 0.1), IF(Meta_TableFormula=\"90th Percentile\", _xlfn.PERCENTILE.INC(Capture3_CPUClock, 0.9), IF(Meta_TableFormula=\"95th Percentile\", _xlfn.PERCENTILE.INC(Capture3_CPUClock, 0.95), IF(Meta_TableFormula=\"99th Percentile\", _xlfn.PERCENTILE.INC(Capture3_CPUClock, 0.99)))))))))), \"\"), \"N/A\")","v":""}]
[]
[null,{"$f":"CONCATENATE(\" Run \", Meta_TableFormula, \"s\")","v":" Run Averages"}]
[]
[]
[]
[]
[]
[]
[]
[]
[]
[]
[]
[]
[]
[]
[]
[]
[]
[]
[]
[]
[]
[null,"Individual Captures"]
[]
[]
[]
[]
[]
[]
[]
[]
[]
[]
[]
[]
[]
[]
[]
[]
[]
[]
[]
[]
[]
[]
[]
[]
[]
[]
[]
[]
[]
[]
[]
[]
[]
[]
[]
[]
[]
[]
[]
[]
[]
[]
[]
[]
[]
[]
[null,"Categorical Comparisons"]

{"sheet":"Backend","index":4,"n_rows":152,"n_cols":14,"rows_kept":152,"cut":false,"hidden":false,"merged":[[74,8,74,10],[74,5,74,7],[62,7,63,7],[62,6,63,6],[40,1,41,1],[42,10,43,10],[42,9,43,9],[42,8,43,8],[42,7,43,7],[42,6,43,6],[42,5,43,5],[42,4,43,4],[42,3,43,3],[42,2,43,2],[42,1,43,1],[62,5,63,5],[6,0,6,7],[7,1,7,7],[5,2,5,4],[0,2,0,4],[1,2,1,4],[2,2,2,4],[3,2,3,4],[4,2,4,4],[25,1,25,8],[28,1,28,8],[30,1,30,8],[26,1,26,8],[36,2,36,4],[140,1,140,7],[17,1,17,8],[18,1,18,8],[19,1,19,8],[23,1,23,8],[139,0,139,7],[64,5,65,5],[64,6,65,6],[64,7,65,7],[66,5,67,5],[66,6,67,6],[66,7,67,7],[68,5,69,5],[68,6,69,6],[68,7,69,7],[74,2,74,4],[8,1,8,7],[9,1,9,7],[11,0,11,8],[13,1,13,8],[14,1,14,8],[12,1,12,8],[16,0,16,8],[15,1,15,8],[10,1,10,7],[49,1,50,1],[49,10,50,10],[49,9,50,9],[49,8,50,8],[49,7,50,7],[49,6,50,6],[20,1,20,8],[21,1,21,8],[22,1,22,8],[31,1,31,8],[24,1,24,8],[27,1,27,8],[29,1,29,8],[36,11,36,13],[49,5,50,5],[49,4,50,4],[49,3,50,3],[49,2,50,2],[40,10,41,10],[40,9,41,9],[40,8,41,8],[40,7,41,7],[40,6,41,6],[40,5,41,5],[40,4,41,4],[40,3,41,3],[40,2,41,2],[36,5,36,7],[36,8,36,10]]}
["Metadata Parity","Reported","User-Defined"]
["Application",{"$f":"IF(Meta_NumberOfCaptures=1, TRUE, IF(Meta_NumberOfCaptures=2, Capture1_ReportedApplication=Capture2_ReportedApplication, IF(Meta_NumberOfCaptures=3, AND(Capture1_ReportedApplication=Capture2_ReportedApplication, Capture2_ReportedApplication=Capture3_ReportedApplication), FALSE)))","v":false},{"$f":"IF(Meta_NumberOfCaptures=1, TRUE, IF(Meta_NumberOfCaptures=2, Results!C7=Results!D7, IF(Meta_NumberOfCaptures=3, AND(Results!C7=Results!D7, Results!D7=Results!E7), FALSE)))","v":false}]
["Runtime",{"$f":"IF(Meta_NumberOfCaptures=1, TRUE, IF(Meta_NumberOfCaptures=2, Capture1_ReportedRuntime=Capture2_ReportedRuntime, IF(Meta_NumberOfCaptures=3, AND(Capture1_ReportedRuntime=Capture2_ReportedRuntime, Capture2_ReportedRuntime=Capture3_ReportedRuntime), FALSE)))","v":false},{"$f":"IF(Meta_NumberOfCaptures=1, TRUE, IF(Meta_NumberOfCaptures=2, Results!C8=Results!D8, IF(Meta_NumberOfCaptures=3, AND(Results!C8=Results!D8, Results!D8=Results!E8), FALSE)))","v":false}]
["Resolution",{"$f":"IF(Meta_NumberOfCaptures=1, TRUE, IF(Meta_NumberOfCaptures=2, Capture1_ReportedResolution=Capture2_ReportedResolution, IF(Meta_NumberOfCaptures=3, AND(Capture1_ReportedResolution=Capture2_ReportedResolution, Capture2_ReportedResolution=Capture3_ReportedResolution), FALSE)))","v":false},{"$f":"IF(Meta_NumberOfCaptures=1, TRUE, IF(Meta_NumberOfCaptures=2, Results!C9=Results!D9, IF(Meta_NumberOfCaptures=3, AND(Results!C9=Results!D9, Results!D9=Results!E9), FALSE)))","v":false}]
["GPU",{"$f":"IF(Meta_NumberOfCaptures=1, TRUE, IF(Meta_NumberOfCaptures=2, Capture1_ReportedGPU=Capture2_ReportedGPU, IF(Meta_NumberOfCaptures=3, AND(Capture1_ReportedGPU=Capture2_ReportedGPU, Capture2_ReportedGPU=Capture3_ReportedGPU), FALSE)))","v":false},{"$f":"IF(Meta_NumberOfCaptures=1, TRUE, IF(Meta_NumberOfCaptures=2, Results!C10=Results!D10, IF(Meta_NumberOfCaptures=3, AND(Results!C10=Results!D10, Results!D10=Results!E10), FALSE)))","v":false}]
["Variable",{"$f":"IF(Meta_NumberOfCaptures=1, TRUE, IF(Meta_NumberOfCaptures=2, Results!C11=Results!D11, IF(Meta_NumberOfCaptures=3, AND(Results!C11=Results!D11, Results!D11=Results!E11), FALSE)))","v":false}]
["Chart Title Templates"]
["Static Chart Properties",{"$f":"IF(SUM($C$34:$C$36)>0, SUBSTITUTE(SUBSTITUTE(SUBSTITUTE(SUBSTITUTE(SUBSTITUTE(Tags_ChartTitles, \"[Application]\", IF(AND(B2, C2), Results!C7, \"Different Applications\")), \"[Resolution]\", IF(AND(B4, C4), Results!C9, \"Different Resolutions\")), \"[GPU]\", IF(AND(B5, C5), Results!C10, \"Different GPUs\")), \"[Variable]\", IF(AND(B6, C6), Results!C11, \"Different Variables\")), \"[Runtime]\", IF(AND(B3, C3), Results!C8, \"Different Runtimes\")), \"\")","v":""}]
["Capture #1",{"$f":"IF(Capture1_Valid, SUBSTITUTE(SUBSTITUTE(SUBSTITUTE(SUBSTITUTE(Tags_CaptureVariables, \"[Application]\", Results!C7), \"[Resolution]\", Results!C9), \"[GPU]\", Results!C10), \"[Variable]\", IF(Results!C11=\"\", \"Capture #1\", Results!C11)), \"\")","v":""}]
["Capture #2",{"$f":"IF(Capture2_Valid, SUBSTITUTE(SUBSTITUTE(SUBSTITUTE(SUBSTITUTE(Tags_CaptureVariables, \"[Application]\", IF(B2, Results!C7, Results!D7)), \"[Resolution]\", IF(B4, Results!C9, Results!D9)), \"[GPU]\", IF(B5, Results!C10, Results!D10)), \"[Variable]\", IF(B6, IF(Results!C11=\"\", \"Capture #2\", Results!C11), Results!D11)), \"\")","v":""}]
["Capture #3",{"$f":"IF(Capture3_Valid, SUBSTITUTE(SUBSTITUTE(SUBSTITUTE(SUBSTITUTE(Tags_CaptureVariables, \"[Application]\", IF(B2, Results!C7, Results!E7)), \"[Resolution]\", IF(B4, Results!C9, Results!E9)), \"[GPU]\", IF(B5, Results!C10, Results!E10)), \"[Variable]\", IF(B6, IF(Results!C11=\"\", \"Capture #3\", Results!C11), Results!E11)), \"\")","v":""}]
["Bar Graphs"]
[{"$f":"CONCATENATE(Meta_TableFormula, \" Frame Rate (fps)\")","v":"Average Frame Rate (fps)"},{"$f":"CONCATENATE(Meta_StaticChartProperties, A13)","v":"Average Frame Rate (fps)"}]
[{"$f":"CONCATENATE(Meta_TableFormula, \" Power Draw (W)\")","v":"Average Power Draw (W)"},{"$f":"CONCATENATE(Meta_StaticChartProperties, A14)","v":"Average Power Draw (W)"}]
[{"$f":"CONCATENATE(Meta_TableFormula, \" Perf/Watt\")","v":"Average Perf/Watt"},{"$f":"CONCATENATE(Meta_StaticChartProperties, A15)","v":"Average Perf/Watt"}]
[{"$f":"CONCATENATE(Meta_TableFormula, \" Render Present Latency (ms)\")","v":"Average Render Present Latency (ms)"},{"$f":"CONCATENATE(Meta_StaticChartProperties, A16)","v":"Average Render Present Latency (ms)"}]
["Line Graphs"]
["Capture #1",{"$f":"IF(Capture1_Valid, CONCATENATE(Meta_StaticChartProperties, Capture1_Variable), \"\")","v":""}]
["Capture #2",{"$f":"IF(Capture2_Valid, CONCATENATE(Meta_StaticChartProperties, Capture2_Variable), \"\")","v":""}]
["Capture #3",{"$f":"IF(Capture3_Valid, CONCATENATE(Meta_StaticChartProperties, Capture3_Variable), \"\")","v":""}]
["PCAT vs API",{"$f":"IF(Capture1_Valid, CONCATENATE(B18, \", PCAT versus API Power\"), \"\")","v":""}]
["PCAT vs API",{"$f":"IF(Capture2_Valid, CONCATENATE(B19, \", PCAT versus API Power\"), \"\")","v":""}]
["PCAT vs API",{"$f":"IF(Capture3_Valid, CONCATENATE(B20, \", PCAT versus API Power\"), \"\")","v":""}]
["Frame Rate",{"$f":"CONCATENATE(Meta_StaticChartProperties, A24)","v":"Frame Rate"}]
["Power Draw","Power Draw"]
["Perf/Watt","Perf/Watt"]
["Render Present Latency","Render Present Latency"]
["Render Queue Depth","Render Queue Depth"]
["GPU0 Graphics Clock","GPU0 Graphics Clock"]
["CPU Clock","CPU Clock"]
["GPU0 Temperature","GPU0 Temperature"]
["CPU Temperature","CPU Temperature"]
["Hardware Detection","NVIDIA GPU","Length","Cores","PCAT"]
["Capture #1 CSV",{"$f":"IFERROR(SEARCH(\"NVIDIA\", Capture1_ReportedGPU)>0, FALSE)","v":false},{"$f":"Capture1_Length","v":0},{"$f":"COUNT(I76:I139)","v":0},{"$f":"ISNUMBER(INDEX('Capture #1 CSV'!$A:$FF,F61,C61))","v":false}]
["Capture #2 CSV",{"$f":"IFERROR(SEARCH(\"NVIDIA\", Capture2_ReportedGPU)>0, FALSE)","v":false},{"$f":"Capture2_Length","v":0},{"$f":"COUNT(J76:J139)","v":0},{"$f":"ISNUMBER(INDEX('Capture #2 CSV'!$A:$FF, G61, D61))","v":false}]
["Capture #3 CSV",{"$f":"IFERROR(SEARCH(\"NVIDIA\", Capture3_ReportedGPU)>0, FALSE)","v":false},{"$f":"Capture3_Length","v":0},{"$f":"COUNT(K76:K139)","v":0},{"$f":"ISNUMBER(INDEX('Capture #3 CSV'!$A:$FF, H61, E61))","v":false}]
["Performance Metrics","Header","Column",null,null,"Offset",null,null,"Reported Values",null,null,"Capture Health Violations"]
["Reported Application","Application",{"$f":"IF(Capture1_Valid, IFERROR(MATCH($B38, 'Capture #1 CSV'!$1:$1, 0), \"\"), \"\")","v":""},{"$f":"IF(Capture2_Valid, IFERROR(MATCH($B38, 'Capture #2 CSV'!$1:$1, 0), \"\"), \"\")","v":""},{"$f":"IF(Capture3_Valid, IFERROR(MATCH($B38, 'Capture #3 CSV'!$1:$1, 0), \"\"), \"\")","v":""},{"$f":"IF(ISNUMBER(C38), Capture1_Length-COUNTA(INDEX('Capture #1 CSV'!$A:$FF, 2, C38):INDEX('Capture #1 CSV'!$A:$FF, Capture1_Length, C38))+1, \"\")","v":""},{"$f":"IF(ISNUMBER(D38), Capture2_Length-COUNTA(INDEX('Capture #2 CSV'!$A:$FF, 2, D38):INDEX('Capture #2 CSV'!$A:$FF, Capture2_Length, D38))+1, \"\")","v":""},{"$f":"IF(ISNUMBER(E38), Capture3_Length-COUNTA(INDEX('Capture #3 CSV'!$A:$FF, 2, E38):INDEX('Capture #3 CSV'!$A:$FF, Capture3_Length, E38))+1, \"\")","v":""},{"$f":"IFERROR(INDEX('Capture #1 CSV'!$A:$FF, F38, C38), \"\")","v":""},{"$f":"IFERROR(INDEX('Capture #2 CSV'!$A:$FF, G38, D38), \"\")","v":""},{"$f":"IFERROR(INDEX('Capture #3 CSV'!$A:$FF, H38, E38), \"\")","v":""},{"$f":"IF(Capture1_Valid, IFERROR((Capture1_Length-1)-COUNTIF(INDEX('Capture #1 CSV'!$A:$FF, F38, C38):INDEX('Capture #1 CSV'!$A:$FF, Capture1_Length, C38), I38), \"\"), \"\")","v":""},{"$f":"IF(Capture2_Valid, IFERROR((Capture2_Length-1)-COUNTIF(INDEX('Capture #2 CSV'!$A:$FF, G38, D38):INDEX('Capture #2 CSV'!$A:$FF, Capture2_Length, D38), J38), \"\"), \"\")","v":""},{"$f":"IF(Capture3_Valid, IFERROR((Capture3_Length-1)-COUNTIF(INDEX('Capture #3 CSV'!$A:$FF, H38, E38):INDEX('Capture #3 CSV'!$A:$FF, Capture3_Length, E38), K38), \"\"), \"\")","v":""}]
["Reported GPU","GPU",{"$f":"IF(Capture1_Valid, IFERROR(MATCH($B39, 'Capture #1 CSV'!$1:$1, 0), \"\"), \"\")","v":""},{"$f":"IF(Capture2_Valid, IFERROR(MATCH($B39, 'Capture #2 CSV'!$1:$1, 0), \"\"), \"\")","v":""},{"$f":"IF(Capture3_Valid, IFERROR(MATCH($B39, 'Capture #3 CSV'!$1:$1, 0), \"\"), \"\")","v":""},{"$f":"IF(ISNUMBER(C39), Capture1_Length-COUNTA(INDEX('Capture #1 CSV'!$A:$FF, 2, C39):INDEX('Capture #1 CSV'!$A:$FF, Capture1_Length, C39))+1, \"\")","v":""},{"$f":"IF(ISNUMBER(D39), Capture2_Length-COUNTA(INDEX('Capture #2 CSV'!$A:$FF, 2, D39):INDEX('Capture #2 CSV'!$A:$FF, Capture2_Length, D39))+1, \"\")","v":""},{"$f":"IF(ISNUMBER(E39), Capture3_Length-COUNTA(INDEX('Capture #3 CSV'!$A:$FF, 2, E39):INDEX('Capture #3 CSV'!$A:$FF, Capture3_Length, E39))+1, \"\")","v":""},{"$f":"IFERROR(INDEX('Capture #1 CSV'!$A:$FF, F39, C39), \"\")","v":""},{"$f":"IFERROR(INDEX('Capture #2 CSV'!$A:$FF, G39, D39), \"\")","v":""},{"$f":"IFERROR(INDEX('Capture #3 CSV'!$A:$FF, H39, E39), \"\")","v":""},{"$f":"IF(Capture1_Valid, IFERROR((Capture1_Length-1)-COUNTIF(INDEX('Capture #1 CSV'!$A:$FF, F39, C39):INDEX('Capture #1 CSV'!$A:$FF, Capture1_Length, C39), I39), \"\"), \"\")","v":""},{"$f":"IF(Capture2_Valid, IFERROR((Capture2_Length-1)-COUNTIF(INDEX('Capture #2 CSV'!$A:$FF, G39, D39):INDEX('Capture #2 CSV'!$A:$FF, Capture2_Length, D39), J39), \"\"), \"\")","v":""},{"$f":"IF(Capture3_Valid, IFERROR((Capture3_Length-1)-COUNTIF(INDEX('Capture #3 CSV'!$A:$FF, H39, E39):INDEX('Capture #3 CSV'!$A:$FF, Capture3_Length, E39), K39), \"\"), \"\")","v":""}]
["Reported CPU","CPU",{"$f":"IF(Capture1_Valid, IFERROR(MATCH($B40, 'Capture #1 CSV'!$1:$1, 0), \"\"), \"\")","v":""},{"$f":"IF(Capture2_Valid, IFERROR(MATCH($B40, 'Capture #2 CSV'!$1:$1, 0), \"\"), \"\")","v":""},{"$f":"IF(Capture3_Valid, IFERROR(MATCH($B40, 'Capture #3 CSV'!$1:$1, 0), \"\"), \"\")","v":""},{"$f":"IF(ISNUMBER(C40), Capture1_Length-COUNTA(INDEX('Capture #1 CSV'!$A:$FF, 2, C40):INDEX('Capture #1 CSV'!$A:$FF, Capture1_Length, C40))+1, \"\")","v":""},{"$f":"IF(ISNUMBER(D40), Capture2_Length-COUNTA(INDEX('Capture #2 CSV'!$A:$FF, 2, D40):INDEX('Capture #2 CSV'!$A:$FF, Capture2_Length, D40))+1, \"\")","v":""},{"$f":"IF(ISNUMBER(E40), Capture3_Length-COUNTA(INDEX('Capture #3 CSV'!$A:$FF, 2, E40):INDEX('Capture #3 CSV'!$A:$FF, Capture3_Length, E40))+1, \"\")","v":""},{"$f":"IFERROR(INDEX('Capture #1 CSV'!$A:$FF, F40, C40), \"\")","v":""},{"$f":"IFERROR(INDEX('Capture #2 CSV'!$A:$FF, G40, D40), \"\")","v":""},{"$f":"IFERROR(INDEX('Capture #3 CSV'!$A:$FF, H40, E40), \"\")","v":""}]
["Reported Resolution (Type)","Resolution",{"$f":"IF(Capture1_Valid, IFERROR(MATCH($B41, 'Capture #1 CSV'!$1:$1, 0), \"\"), \"\")","v":""},{"$f":"IF(Capture2_Valid, IFERROR(MATCH($B41, 'Capture #2 CSV'!$1:$1, 0), \"\"), \"\")","v":""},{"$f":"IF(Capture3_Valid, IFERROR(MATCH($B41, 'Capture #3 CSV'!$1:$1, 0), \"\"), \"\")","v":""},{"$f":"IF(ISNUMBER(C41), Capture1_Length-COUNTA(INDEX('Capture #1 CSV'!$A:$FF, 2, C41):INDEX('Capture #1 CSV'!$A:$FF, Capture1_Length, C41))+1, \"\")","v":""},{"$f":"IF(ISNUMBER(D41), Capture2_Length-COUNTA(INDEX('Capture #2 CSV'!$A:$FF, 2, D41):INDEX('Capture #2 CSV'!$A:$FF, Capture2_Length, D41))+1, \"\")","v":""},{"$f":"IF(ISNUMBER(E41), Capture3_Length-COUNTA(INDEX('Capture #3 CSV'!$A:$FF, 2, E41):INDEX('Capture #3 CSV'!$A:$FF, Capture3_Length, E41))+1, \"\")","v":""},{"$f":"IFERROR(INDEX('Capture #1 CSV'!$A:$FF, F41, C41), \"\")","v":""},{"$f":"IFERROR(INDEX('Capture #2 CSV'!$A:$FF, G41, D41), \"\")","v":""},{"$f":"IFERROR(INDEX('Capture #3 CSV'!$A:$FF, H41, E41), \"\")","v":""},{"$f":"IFERROR(IF(AND(ISNUMBER(C41), Capture1_Valid), SUM(IFERROR(SEARCH(\"WINDOWED\", INDEX('Capture #1 CSV'!$A:$FF, Backend!F41, Backend!C41):INDEX('Capture #1 CSV'!$A:$FF, Capture1_Length, Backend!C41)), 0)), \"\"), \"\")","v":""},{"$f":"IFERROR(IF(AND(ISNUMBER(D41), Capture2_Valid), SUM(IFERROR(SEARCH(\"WINDOWED\", INDEX('Capture #2 CSV'!$A:$FF, Backend!G41, Backend!D41):INDEX('Capture #2 CSV'!$A:$FF, Capture2_Length, Backend!D41)), 0)), \"\"), \"\")","v":""},{"$f":"IFERROR(IF(AND(ISNUMBER(E41), Capture3_Valid), SUM(IFERROR(SEARCH(\"WINDOWED\", INDEX('Capture #3 CSV'!$A:$FF, Backend!H41, Backend!E41):INDEX('Capture #3 CSV'!$A:$FF, Capture3_Length, Backend!E41)), 0)), \"\"), \"\")","v":""}]
["Reported Resolution (Uniformity)",null,null,null,null,null,null,null,null,null,null,{"$f":"IF(Capture1_Valid, IFERROR((Capture1_Length-1)-COUNTIF(INDEX('Capture #1 CSV'!$A:$FF, F41, C41):INDEX('Capture #1 CSV'!$A:$FF, Capture1_Length, C41), I41), \"\"), \"\")","v":""},{"$f":"IF(Capture2_Valid, IFERROR((Capture2_Length-1)-COUNTIF(INDEX('Capture #2 CSV'!$A:$FF, G41, D41):INDEX('Capture #2 CSV'!$A:$FF, Capture2_Length, D41), J41), \"\"), \"\")","v":""},{"$f":"IF(Capture3_Valid, IFERROR((Capture3_Length-1)-COUNTIF(INDEX('Capture #3 CSV'!$A:$FF, H41, E41):INDEX('Capture #3 CSV'!$A:$FF, Capture3_Length, E41), K41), \"\"), \"\")","v":""}]
["Reported Runtime (Type)","Runtime",{"$f":"IF(Capture1_Valid, IFERROR(MATCH($B43, 'Capture #1 CSV'!$1:$1, 0), \"\"), \"\")","v":""},{"$f":"IF(Capture2_Valid, IFERROR(MATCH($B43, 'Capture #2 CSV'!$1:$1, 0), \"\"), \"\")","v":""},{"$f":"IF(Capture3_Valid, IFERROR(MATCH($B43, 'Capture #3 CSV'!$1:$1, 0), \"\"), \"\")","v":""},{"$f":"IF(ISNUMBER(C43), Capture1_Length-COUNTA(INDEX('Capture #1 CSV'!$A:$FF, 2, C43):INDEX('Capture #1 CSV'!$A:$FF, Capture1_Length, C43))+1, \"\")","v":""},{"$f":"IF(ISNUMBER(D43), Capture2_Length-COUNTA(INDEX('Capture #2 CSV'!$A:$FF, 2, D43):INDEX('Capture #2 CSV'!$A:$FF, Capture2_Length, D43))+1, \"\")","v":""},{"$f":"IF(ISNUMBER(E43), Capture3_Length-COUNTA(INDEX('Capture #3 CSV'!$A:$FF, 2, E43):INDEX('Capture #3 CSV'!$A:$FF, Capture3_Length, E43))+1, \"\")","v":""},{"$f":"IFERROR(INDEX('Capture #1 CSV'!$A:$FF, F43, C43), \"\")","v":""},{"$f":"IFERROR(INDEX('Capture #2 CSV'!$A:$FF, G43, D43), \"\")","v":""},{"$f":"IFERROR(INDEX('Capture #3 CSV'!$A:$FF, H43, E43), \"\")","v":""},{"$f":"IFERROR(IF(AND(ISNUMBER(C43), Capture1_Valid), SUM(IFERROR(SEARCH(\"Other\", INDEX('Capture #1 CSV'!$A:$FF, Backend!F43, Backend!C43):INDEX('Capture #1 CSV'!$A:$FF, Capture1_Length, Backend!C43)), 0)), \"\"), \"\")","v":""},{"$f":"IFERROR(IF(AND(ISNUMBER(D43), Capture2_Valid), SUM(IFERROR(SEARCH(\"Other\", INDEX('Capture #2 CSV'!$A:$FF, Backend!G43, Backend!D43):INDEX('Capture #2 CSV'!$A:$FF, Capture2_Length, Backend!D43)), 0)), \"\"), \"\")","v":""},{"$f":"IFERROR(IF(AND(ISNUMBER(E43), Capture3_Valid), SUM(IFERROR(SEARCH(\"Other\", INDEX('Capture #3 CSV'!$A:$FF, Backend!H43, Backend!E43):INDEX('Capture #3 CSV'!$A:$FF, Capture3_Length, Backend!E43)), 0)), \"\"), \"\")","v":""}]
["Reported Runtime (Uniformity)",null,null,null,null,null,null,null,null,null,null,{"$f":"IF(Capture1_Valid, IFERROR((Capture1_Length-1)-COUNTIF(INDEX('Capture #1 CSV'!$A:$FF, F43, C43):INDEX('Capture #1 CSV'!$A:$FF, Capture1_Length, C43), I43), \"\"), \"\")","v":""},{"$f":"IF(Capture2_Valid, IFERROR((Capture2_Length-1)-COUNTIF(INDEX('Capture #2 CSV'!$A:$FF, G43, D43):INDEX('Capture #2 CSV'!$A:$FF, Capture2_Length, D43), J43), \"\"), \"\")","v":""},{"$f":"IF(Capture3_Valid, IFERROR((Capture3_Length-1)-COUNTIF(INDEX('Capture #3 CSV'!$A:$FF, H43, E43):INDEX('Capture #3 CSV'!$A:$FF, Capture3_Length, E43), K43), \"\"), \"\")","v":""}]
["Tearing Possible","AllowsTearing",{"$f":"IF(Capture1_Valid, IFERROR(MATCH($B45, 'Capture #1 CSV'!$1:$1, 0), \"\"), \"\")","v":""},{"$f":"IF(Capture2_Valid, IFERROR(MATCH($B45, 'Capture #2 CSV'!$1:$1, 0), \"\"), \"\")","v":""},{"$f":"IF(Capture3_Valid, IFERROR(MATCH($B45, 'Capture #3 CSV'!$1:$1, 0), \"\"), \"\")","v":""},{"$f":"IF(ISNUMBER(C45), Capture1_Length-COUNTA(INDEX('Capture #1 CSV'!$A:$FF, 2, C45):INDEX('Capture #1 CSV'!$A:$FF, Capture1_Length, C45))+1, \"\")","v":""},{"$f":"IF(ISNUMBER(D45), Capture2_Length-COUNTA(INDEX('Capture #2 CSV'!$A:$FF, 2, D45):INDEX('Capture #2 CSV'!$A:$FF, Capture2_Length, D45))+1, \"\")","v":""},{"$f":"IF(ISNUMBER(E45), Capture3_Length-COUNTA(INDEX('Capture #3 CSV'!$A:$FF, 2, E45):INDEX('Capture #3 CSV'!$A:$FF, Capture3_Length, E45))+1, \"\")","v":""},null,null,null,{"$f":"IF(Capture1_Valid, IFERROR(COUNTIF(INDEX('Capture #1 CSV'!$A:$FF, F45, C45):INDEX('Capture #1 CSV'!$A:$FF, Capture1_Length, C45), 0), \"\"), \"\")","v":""},{"$f":"IF(Capture2_Valid, IFERROR(COUNTIF(INDEX('Capture #2 CSV'!$A:$FF, G45, D45):INDEX('Capture #2 CSV'!$A:$FF, Capture2_Length, D45), 0), \"\"), \"\")","v":""},{"$f":"IF(Capture3_Valid, IFERROR(COUNTIF(INDEX('Capture #3 CSV'!$A:$FF, H45, E45):INDEX('Capture #3 CSV'!$A:$FF, Capture3_Length, E45), 0), \"\"), \"\")","v":""}]
["Process ID","ProcessID",{"$f":"IF(Capture1_Valid, IFERROR(MATCH($B46, 'Capture #1 CSV'!$1:$1, 0), \"\"), \"\")","v":""},{"$f":"IF(Capture2_Valid, IFERROR(MATCH($B46, 'Capture #2 CSV'!$1:$1, 0), \"\"), \"\")","v":""},{"$f":"IF(Capture3_Valid, IFERROR(MATCH($B46, 'Capture #3 CSV'!$1:$1, 0), \"\"), \"\")","v":""},{"$f":"IF(ISNUMBER(C46), Capture1_Length-COUNTA(INDEX('Capture #1 CSV'!$A:$FF, 2, C46):INDEX('Capture #1 CSV'!$A:$FF, Capture1_Length, C46))+1, \"\")","v":""},{"$f":"IF(ISNUMBER(D46), Capture2_Length-COUNTA(INDEX('Capture #2 CSV'!$A:$FF, 2, D46):INDEX('Capture #2 CSV'!$A:$FF, Capture2_Length, D46))+1, \"\")","v":""},{"$f":"IF(ISNUMBER(E46), Capture3_Length-COUNTA(INDEX('Capture #3 CSV'!$A:$FF, 2, E46):INDEX('Capture #3 CSV'!$A:$FF, Capture3_Length, E46))+1, \"\")","v":""},{"$f":"IFERROR(INDEX('Capture #1 CSV'!$A:$FF, F46, C46), \"\")","v":""},{"$f":"IFERROR(INDEX('Capture #2 CSV'!$A:$FF, G46, D46), \"\")","v":""},{"$f":"IFERROR(INDEX('Capture #3 CSV'!$A:$FF, H46, E46), \"\")","v":""},{"$f":"IF(Capture1_Valid, IFERROR((Capture1_Length-1)-COUNTIF(INDEX('Capture #1 CSV'!$A:$FF, F46, C46):INDEX('Capture #1 CSV'!$A:$FF, Capture1_Length, C46), I46), \"\"), \"\")","v":""},{"$f":"IF(Capture2_Valid, IFERROR((Capture2_Length-1)-COUNTIF(INDEX('Capture #2 CSV'!$A:$FF, G46, D46):INDEX('Capture #2 CSV'!$A:$FF, Capture2_Length, D46), J46), \"\"), \"\")","v":""},{"$f":"IF(Capture3_Valid, IFERROR((Capture3_Length-1)-COUNTIF(INDEX('Capture #3 CSV'!$A:$FF, H46, E46):INDEX('Capture #3 CSV'!$A:$FF, Capture3_Length, E46), K46), \"\"), \"\")","v":""}]
["Swap Chain ID","SwapChainAddress",{"$f":"IF(Capture1_Valid, IFERROR(MATCH($B47, 'Capture #1 CSV'!$1:$1, 0), \"\"), \"\")","v":""},{"$f":"IF(Capture2_Valid, IFERROR(MATCH($B47, 'Capture #2 CSV'!$1:$1, 0), \"\"), \"\")","v":""},{"$f":"IF(Capture3_Valid, IFERROR(MATCH($B47, 'Capture #3 CSV'!$1:$1, 0), \"\"), \"\")","v":""},{"$f":"IF(ISNUMBER(C47), Capture1_Length-COUNTA(INDEX('Capture #1 CSV'!$A:$FF, 2, C47):INDEX('Capture #1 CSV'!$A:$FF, Capture1_Length, C47))+1, \"\")","v":""},{"$f":"IF(ISNUMBER(D47), Capture2_Length-COUNTA(INDEX('Capture #2 CSV'!$A:$FF, 2, D47):INDEX('Capture #2 CSV'!$A:$FF, Capture2_Length, D47))+1, \"\")","v":""},{"$f":"IF(ISNUMBER(E47), Capture3_Length-COUNTA(INDEX('Capture #3 CSV'!$A:$FF, 2, E47):INDEX('Capture #3 CSV'!$A:$FF, Capture3_Length, E47))+1, \"\")","v":""},{"$f":"IFERROR(INDEX('Capture #1 CSV'!$A:$FF, F47, C47), \"\")","v":""},{"$f":"IFERROR(INDEX('Capture #2 CSV'!$A:$FF, G47, D47), \"\")","v":""},{"$f":"IFERROR(INDEX('Capture #3 CSV'!$A:$FF, H47, E47), \"\")","v":""},{"$f":"IF(Capture1_Valid, IFERROR((Capture1_Length-1)-COUNTIF(INDEX('Capture #1 CSV'!$A:$FF, F47, C47):INDEX('Capture #1 CSV'!$A:$FF, Capture1_Length, C47), I47), \"\"), \"\")","v":""},{"$f":"IF(Capture2_Valid, IFERROR((Capture2_Length-1)-COUNTIF(INDEX('Capture #2 CSV'!$A:$FF, G47, D47):INDEX('Capture #2 CSV'!$A:$FF, Capture2_Length, D47), J47), \"\"), \"\")","v":""},{"$f":"IF(Capture3_Valid, IFERROR((Capture3_Length-1)-COUNTIF(INDEX('Capture #3 CSV'!$A:$FF, H47, E47):INDEX('Capture #3 CSV'!$A:$FF, Capture3_Length, E47), K47), \"\"), \"\")","v":""}]
["Sync Interval","SyncInterval",{"$f":"IF(Capture1_Valid, IFERROR(MATCH($B48, 'Capture #1 CSV'!$1:$1, 0), \"\"), \"\")","v":""},{"$f":"IF(Capture2_Valid, IFERROR(MATCH($B48, 'Capture #2 CSV'!$1:$1, 0), \"\"), \"\")","v":""},{"$f":"IF(Capture3_Valid, IFERROR(MATCH($B48, 'Capture #3 CSV'!$1:$1, 0), \"\"), \"\")","v":""},{"$f":"IF(ISNUMBER(C48), Capture1_Length-COUNTA(INDEX('Capture #1 CSV'!$A:$FF, 2, C48):INDEX('Capture #1 CSV'!$A:$FF, Capture1_Length, C48))+1, \"\")","v":""},{"$f":"IF(ISNUMBER(D48), Capture2_Length-COUNTA(INDEX('Capture #2 CSV'!$A:$FF, 2, D48):INDEX('Capture #2 CSV'!$A:$FF, Capture2_Length, D48))+1, \"\")","v":""},{"$f":"IF(ISNUMBER(E48), Capture3_Length-COUNTA(INDEX('Capture #3 CSV'!$A:$FF, 2, E48):INDEX('Capture #3 CSV'!$A:$FF, Capture3_Length, E48))+1, \"\")","v":""},null,null,null,{"$f":"IF(Capture1_Valid, IFERROR(COUNTIF(INDEX('Capture #1 CSV'!$A:$FF, F48, C48):INDEX('Capture #1 CSV'!$A:$FF, Capture1_Length, C48), \">\"&0), \"\"), \"\")","v":""},{"$f":"IF(Capture2_Valid, IFERROR(COUNTIF(INDEX('Capture #2 CSV'!$A:$FF, G48, D48):INDEX('Capture #2 CSV'!$A:$FF, Capture2_Length, D48), \">\"&0), \"\"), \"\")","v":""},{"$f":"IF(Capture3_Valid, IFERROR(COUNTIF(INDEX('Capture #3 CSV'!$A:$FF, H48, E48):INDEX('Capture #3 CSV'!$A:$FF, Capture3_Length, E48), \">\"&0), \"\"), \"\")","v":""}]
["PresentFlags","PresentFlags",{"$f":"IF(Capture1_Valid, IFERROR(MATCH($B49, 'Capture #1 CSV'!$1:$1, 0), \"\"), \"\")","v":""},{"$f":"IF(Capture2_Valid, IFERROR(MATCH($B49, 'Capture #2 CSV'!$1:$1, 0), \"\"), \"\")","v":""},{"$f":"IF(Capture3_Valid, IFERROR(MATCH($B49, 'Capture #3 CSV'!$1:$1, 0), \"\"), \"\")","v":""},{"$f":"IF(ISNUMBER(C49), Capture1_Length-COUNTA(INDEX('Capture #1 CSV'!$A:$FF, 2, C49):INDEX('Capture #1 CSV'!$A:$FF, Capture1_Length, C49))+1, \"\")","v":""},{"$f":"IF(ISNUMBER(D49), Capture2_Length-COUNTA(INDEX('Capture #2 CSV'!$A:$FF, 2, D49):INDEX('Capture #2 CSV'!$A:$FF, Capture2_Length, D49))+1, \"\")","v":""},{"$f":"IF(ISNUMBER(E49), Capture3_Length-COUNTA(INDEX('Capture #3 CSV'!$A:$FF, 2, E49):INDEX('Capture #3 CSV'!$A:$FF, Capture3_Length, E49))+1, \"\")","v":""},{"$f":"IFERROR(INDEX('Capture #1 CSV'!$A:$FF, F49, C49), \"\")","v":""},{"$f":"IFERROR(INDEX('Capture #2 CSV'!$A:$FF, G49, D49), \"\")","v":""},{"$f":"IFERROR(INDEX('Capture #3 CSV'!$A:$FF, H49, E49), \"\")","v":""},{"$f":"IF(Capture1_Valid, IFERROR((Capture1_Length-1)-COUNTIF(INDEX('Capture #1 CSV'!$A:$FF, F49, C49):INDEX('Capture #1 CSV'!$A:$FF, Capture1_Length, C49), I49), \"\"), \"\")","v":""},{"$f":"IF(Capture2_Valid, IFERROR((Capture2_Length-1)-COUNTIF(INDEX('Capture #2 CSV'!$A:$FF, G49, D49):INDEX('Capture #2 CSV'!$A:$FF, Capture2_Length, D49), J49), \"\"), \"\")","v":""},{"$f":"IF(Capture3_Valid, IFERROR((Capture3_Length-1)-COUNTIF(INDEX('Capture #3 CSV'!$A:$FF, H49, E49):INDEX('Capture #3 CSV'!$A:$FF, Capture3_Length, E49), K49), \"\"), \"\")","v":""}]
["PresentMode (Type)","PresentMode",{"$f":"IF(Capture1_Valid, IFERROR(MATCH($B50, 'Capture #1 CSV'!$1:$1, 0), \"\"), \"\")","v":""},{"$f":"IF(Capture2_Valid, IFERROR(MATCH($B50, 'Capture #2 CSV'!$1:$1, 0), \"\"), \"\")","v":""},{"$f":"IF(Capture3_Valid, IFERROR(MATCH($B50, 'Capture #3 CSV'!$1:$1, 0), \"\"), \"\")","v":""},{"$f":"IF(ISNUMBER(C50), Capture1_Length-COUNTA(INDEX('Capture #1 CSV'!$A:$FF, 2, C50):INDEX('Capture #1 CSV'!$A:$FF, Capture1_Length, C50))+1, \"\")","v":""},{"$f":"IF(ISNUMBER(D50), Capture2_Length-COUNTA(INDEX('Capture #2 CSV'!$A:$FF, 2, D50):INDEX('Capture #2 CSV'!$A:$FF, Capture2_Length, D50))+1, \"\")","v":""},{"$f":"IF(ISNUMBER(E50), Capture3_Length-COUNTA(INDEX('Capture #3 CSV'!$A:$FF, 2, E50):INDEX('Capture #3 CSV'!$A:$FF, Capture3_Length, E50))+1, \"\")","v":""},{"$f":"IFERROR(INDEX('Capture #1 CSV'!$A:$FF, F50, C50), \"\")","v":""},{"$f":"IFERROR(INDEX('Capture #2 CSV'!$A:$FF, G50, D50), \"\")","v":""},{"$f":"IFERROR(INDEX('Capture #3 CSV'!$A:$FF, H50, E50), \"\")","v":""},{"$f":"IFERROR(IF(AND(ISNUMBER(C50), Capture1_Valid), (Capture1_Length-1)-SUM(IFERROR(SEARCH(\"Hardware\", INDEX('Capture #1 CSV'!$A:$FF, Backend!F50, Backend!C50):INDEX('Capture #1 CSV'!$A:$FF, Capture1_Length, Backend!C50)), 0)), \"\"), \"\")","v":""},{"$f":"IFERROR(IF(AND(ISNUMBER(D50), Capture2_Valid), (Capture2_Length-1)-SUM(IFERROR(SEARCH(\"Hardware\", INDEX('Capture #2 CSV'!$A:$FF, Backend!G50, Backend!D50):INDEX('Capture #2 CSV'!$A:$FF, Capture2_Length, Backend!D50)), 0)), \"\"), \"\")","v":""},{"$f":"IFERROR(IF(AND(ISNUMBER(E50), Capture3_Valid), (Capture3_Length-1)-SUM(IFERROR(SEARCH(\"Hardware\", INDEX('Capture #3 CSV'!$A:$FF, Backend!H50, Backend!E50):INDEX('Capture #3 CSV'!$A:$FF, Capture3_Length, Backend!E50)), 0)), \"\"), \"\")","v":""}]
["PresentMode (Uniformity)",null,null,null,null,null,null,null,null,null,null,{"$f":"IF(Capture1_Valid, IFERROR(COUNTIF(INDEX('Capture #1 CSV'!$A:$FF, F50, C50):INDEX('Capture #1 CSV'!$A:$FF, Capture1_Length, C50), \"<>\"&I50), \"\"), \"\")","v":""},{"$f":"IF(Capture2_Valid, IFERROR(COUNTIF(INDEX('Capture #2 CSV'!$A:$FF, G50, D50):INDEX('Capture #2 CSV'!$A:$FF, Capture2_Length, D50), \"<>\"&J50), \"\"), \"\")","v":""},{"$f":"IF(Capture3_Valid, IFERROR(COUNTIF(INDEX('Capture #3 CSV'!$A:$FF, H50, E50):INDEX('Capture #3 CSV'!$A:$FF, Capture3_Length, E50), \"<>\"&K50), \"\"), \"\")","v":""}]
["Dropped Frames","Dropped",{"$f":"IF(Capture1_Valid, IFERROR(MATCH($B52, 'Capture #1 CSV'!$1:$1, 0), \"\"), \"\")","v":""},{"$f":"IF(Capture2_Valid, IFERROR(MATCH($B52, 'Capture #2 CSV'!$1:$1, 0), \"\"), \"\")","v":""},{"$f":"IF(Capture3_Valid, IFERROR(MATCH($B52, 'Capture #3 CSV'!$1:$1, 0), \"\"), \"\")","v":""},{"$f":"IF(ISNUMBER(C52), Capture1_Length-COUNTA(INDEX('Capture #1 CSV'!$A:$FF, 2, C52):INDEX('Capture #1 CSV'!$A:$FF, Capture1_Length, C52))+1, \"\")","v":""},{"$f":"IF(ISNUMBER(D52), Capture2_Length-COUNTA(INDEX('Capture #2 CSV'!$A:$FF, 2, D52):INDEX('Capture #2 CSV'!$A:$FF, Capture2_Length, D52))+1, \"\")","v":""},{"$f":"IF(ISNUMBER(E52), Capture3_Length-COUNTA(INDEX('Capture #3 CSV'!$A:$FF, 2, E52):INDEX('Capture #3 CSV'!$A:$FF, Capture3_Length, E52))+1, \"\")","v":""},null,null,null,{"$f":"IF(Capture1_Valid, IFERROR((Capture1_Length-1)-COUNTIF(INDEX('Capture #1 CSV'!$A:$FF, F52, C52):INDEX('Capture #1 CSV'!$A:$FF, Capture1_Length, C52), 0), \"\"), \"\")","v":""},{"$f":"IF(Capture2_Valid, IFERROR((Capture2_Length-1)-COUNTIF(INDEX('Capture #2 CSV'!$A:$FF, G52, D52):INDEX('Capture #2 CSV'!$A:$FF, Capture2_Length, D52), 0), \"\"), \"\")","v":""},{"$f":"IF(Capture3_Valid, IFERROR((Capture3_Length-1)-COUNTIF(INDEX('Capture #3 CSV'!$A:$FF, H52, E52):INDEX('Capture #3 CSV'!$A:$FF, Capture3_Length, E52), 0), \"\"), \"\")","v":""}]
["Elapsed Time","TimeInSeconds",{"$f":"IF(Capture1_Valid, IFERROR(MATCH($B53, 'Capture #1 CSV'!$1:$1, 0), \"\"), \"\")","v":""},{"$f":"IF(Capture2_Valid, IFERROR(MATCH($B53, 'Capture #2 CSV'!$1:$1, 0), \"\"), \"\")","v":""},{"$f":"IF(Capture3_Valid, IFERROR(MATCH($B53, 'Capture #3 CSV'!$1:$1, 0), \"\"), \"\")","v":""},{"$f":"IF(ISNUMBER(C53), Capture1_Length-COUNTA(INDEX('Capture #1 CSV'!$A:$FF, 2, C53):INDEX('Capture #1 CSV'!$A:$FF, Capture1_Length, C53))+1, \"\")","v":""},{"$f":"IF(ISNUMBER(D53), Capture2_Length-COUNTA(INDEX('Capture #2 CSV'!$A:$FF, 2, D53):INDEX('Capture #2 CSV'!$A:$FF, Capture2_Length, D53))+1, \"\")","v":""},{"$f":"IF(ISNUMBER(E53), Capture3_Length-COUNTA(INDEX('Capture #3 CSV'!$A:$FF, 2, E53):INDEX('Capture #3 CSV'!$A:$FF, Capture3_Length, E53))+1, \"\")","v":""}]
["Performance (Fallback)","MsBetweenPresents",{"$f":"IF(Capture1_Valid, IFERROR(MATCH($B54, 'Capture #1 CSV'!$1:$1, 0), \"\"), \"\")","v":""},{"$f":"IF(Capture2_Valid, IFERROR(MATCH($B54, 'Capture #2 CSV'!$1:$1, 0), \"\"), \"\")","v":""},{"$f":"IF(Capture3_Valid, IFERROR(MATCH($B54, 'Capture #3 CSV'!$1:$1, 0), \"\"), \"\")","v":""},{"$f":"IF(ISNUMBER(C54), Capture1_Length-COUNTA(INDEX('Capture #1 CSV'!$A:$FF, 2, C54):INDEX('Capture #1 CSV'!$A:$FF, Capture1_Length, C54))+1, \"\")","v":""},{"$f":"IF(ISNUMBER(D54), Capture2_Length-COUNTA(INDEX('Capture #2 CSV'!$A:$FF, 2, D54):INDEX('Capture #2 CSV'!$A:$FF, Capture2_Length, D54))+1, \"\")","v":""},{"$f":"IF(ISNUMBER(E54), Capture3_Length-COUNTA(INDEX('Capture #3 CSV'!$A:$FF, 2, E54):INDEX('Capture #3 CSV'!$A:$FF, Capture3_Length, E54))+1, \"\")","v":""}]
["Performance","MsBetweenDisplayChange",{"$f":"IF(Capture1_Valid, IFERROR(MATCH($B55, 'Capture #1 CSV'!$1:$1, 0), \"\"), \"\")","v":""},{"$f":"IF(Capture2_Valid, IFERROR(MATCH($B55, 'Capture #2 CSV'!$1:$1, 0), \"\"), \"\")","v":""},{"$f":"IF(Capture3_Valid, IFERROR(MATCH($B55, 'Capture #3 CSV'!$1:$1, 0), \"\"), \"\")","v":""},{"$f":"IF(ISNUMBER(C55), Capture1_Length-COUNTA(INDEX('Capture #1 CSV'!$A:$FF, 2, C55):INDEX('Capture #1 CSV'!$A:$FF, Capture1_Length, C55))+1, \"\")","v":""},{"$f":"IF(ISNUMBER(D55), Capture2_Length-COUNTA(INDEX('Capture #2 CSV'!$A:$FF, 2, D55):INDEX('Capture #2 CSV'!$A:$FF, Capture2_Length, D55))+1, \"\")","v":""},{"$f":"IF(ISNUMBER(E55), Capture3_Length-COUNTA(INDEX('Capture #3 CSV'!$A:$FF, 2, E55):INDEX('Capture #3 CSV'!$A:$FF, Capture3_Length, E55))+1, \"\")","v":""},null,null,null,{"$f":"IF(Capture1_Valid, IFERROR(COUNTIF(INDEX('Capture #1 CSV'!$A:$FF, F55, C55):INDEX('Capture #1 CSV'!$A:$FF, Capture1_Length, C55), 0), \"\"), \"\")","v":""},{"$f":"IF(Capture2_Valid, IFERROR(COUNTIF(INDEX('Capture #2 CSV'!$A:$FF, G55, D55):INDEX('Capture #2 CSV'!$A:$FF, Capture2_Length, D55), 0), \"\"), \"\")","v":""},{"$f":"IF(Capture3_Valid, IFERROR(COUNTIF(INDEX('Capture #3 CSV'!$A:$FF, H55, E55):INDEX('Capture #3 CSV'!$A:$FF, Capture3_Length, E55), 0), \"\"), \"\")","v":""}]
["Render Present Latency","MsRenderPresentLatency",{"$f":"IF(Capture1_Valid, IFERROR(MATCH($B56, 'Capture #1 CSV'!$1:$1, 0), \"\"), \"\")","v":""},{"$f":"IF(Capture2_Valid, IFERROR(MATCH($B56, 'Capture #2 CSV'!$1:$1, 0), \"\"), \"\")","v":""},{"$f":"IF(Capture3_Valid, IFERROR(MATCH($B56, 'Capture #3 CSV'!$1:$1, 0), \"\"), \"\")","v":""},{"$f":"IF(ISNUMBER(C56), Capture1_Length-COUNTA(INDEX('Capture #1 CSV'!$A:$FF, 2, C56):INDEX('Capture #1 CSV'!$A:$FF, Capture1_Length, C56))+1, \"\")","v":""},{"$f":"IF(ISNUMBER(D56), Capture2_Length-COUNTA(INDEX('Capture #2 CSV'!$A:$FF, 2, D56):INDEX('Capture #2 CSV'!$A:$FF, Capture2_Length, D56))+1, \"\")","v":""},{"$f":"IF(ISNUMBER(E56), Capture3_Length-COUNTA(INDEX('Capture #3 CSV'!$A:$FF, 2, E56):INDEX('Capture #3 CSV'!$A:$FF, Capture3_Length, E56))+1, \"\")","v":""}]
["Render Queue Depth","Render Queue Depth",{"$f":"IF(Capture1_Valid, IFERROR(MATCH($B57, 'Capture #1 CSV'!$1:$1, 0), \"\"), \"\")","v":""},{"$f":"IF(Capture2_Valid, IFERROR(MATCH($B57, 'Capture #2 CSV'!$1:$1, 0), \"\"), \"\")","v":""},{"$f":"IF(Capture3_Valid, IFERROR(MATCH($B57, 'Capture #3 CSV'!$1:$1, 0), \"\"), \"\")","v":""},{"$f":"IF(ISNUMBER(C57), Capture1_Length-COUNTA(INDEX('Capture #1 CSV'!$A:$FF, 2, C57):INDEX('Capture #1 CSV'!$A:$FF, Capture1_Length, C57))+1, \"\")","v":""},{"$f":"IF(ISNUMBER(D57), Capture2_Length-COUNTA(INDEX('Capture #2 CSV'!$A:$FF, 2, D57):INDEX('Capture #2 CSV'!$A:$FF, Capture2_Length, D57))+1, \"\")","v":""},{"$f":"IF(ISNUMBER(E57), Capture3_Length-COUNTA(INDEX('Capture #3 CSV'!$A:$FF, 2, E57):INDEX('Capture #3 CSV'!$A:$FF, Capture3_Length, E57))+1, \"\")","v":""}]
["GPU0 Clock","GPU0Clk(MHz)",{"$f":"IF(Capture1_Valid, IFERROR(MATCH($B58, 'Capture #1 CSV'!$1:$1, 0), \"\"), \"\")","v":""},{"$f":"IF(Capture2_Valid, IFERROR(MATCH($B58, 'Capture #2 CSV'!$1:$1, 0), \"\"), \"\")","v":""},{"$f":"IF(Capture3_Valid, IFERROR(MATCH($B58, 'Capture #3 CSV'!$1:$1, 0), \"\"), \"\")","v":""},{"$f":"IF(ISNUMBER(C58), Capture1_Length-COUNTA(INDEX('Capture #1 CSV'!$A:$FF, 2, C58):INDEX('Capture #1 CSV'!$A:$FF, Capture1_Length, C58))+1, \"\")","v":""},{"$f":"IF(ISNUMBER(D58), Capture2_Length-COUNTA(INDEX('Capture #2 CSV'!$A:$FF, 2, D58):INDEX('Capture #2 CSV'!$A:$FF, Capture2_Length, D58))+1, \"\")","v":""},{"$f":"IF(ISNUMBER(E58), Capture3_Length-COUNTA(INDEX('Capture #3 CSV'!$A:$FF, 2, E58):INDEX('Capture #3 CSV'!$A:$FF, Capture3_Length, E58))+1, \"\")","v":""}]
["GPU0 Utilization","GPU0Util(%)",{"$f":"IF(Capture1_Valid, IFERROR(MATCH($B59, 'Capture #1 CSV'!$1:$1, 0), \"\"), \"\")","v":""},{"$f":"IF(Capture2_Valid, IFERROR(MATCH($B59, 'Capture #2 CSV'!$1:$1, 0), \"\"), \"\")","v":""},{"$f":"IF(Capture3_Valid, IFERROR(MATCH($B59, 'Capture #3 CSV'!$1:$1, 0), \"\"), \"\")","v":""},{"$f":"IF(ISNUMBER(C59), Capture1_Length-COUNTA(INDEX('Capture #1 CSV'!$A:$FF, 2, C59):INDEX('Capture #1 CSV'!$A:$FF, Capture1_Length, C59))+1, \"\")","v":""},{"$f":"IF(ISNUMBER(D59), Capture2_Length-COUNTA(INDEX('Capture #2 CSV'!$A:$FF, 2, D59):INDEX('Capture #2 CSV'!$A:$FF, Capture2_Length, D59))+1, \"\")","v":""},{"$f":"IF(ISNUMBER(E59), Capture3_Length-COUNTA(INDEX('Capture #3 CSV'!$A:$FF, 2, E59):INDEX('Capture #3 CSV'!$A:$FF, Capture3_Length, E59))+1, \"\")","v":""}]
["GPU0 Temperature","GPU0Temp(C)",{"$f":"IF(Capture1_Valid, IFERROR(MATCH($B60, 'Capture #1 CSV'!$1:$1, 0), \"\"), \"\")","v":""},{"$f":"IF(Capture2_Valid, IFERROR(MATCH($B60, 'Capture #2 CSV'!$1:$1, 0), \"\"), \"\")","v":""},{"$f":"IF(Capture3_Valid, IFERROR(MATCH($B60, 'Capture #3 CSV'!$1:$1, 0), \"\"), \"\")","v":""},{"$f":"IF(ISNUMBER(C60), Capture1_Length-COUNTA(INDEX('Capture #1 CSV'!$A:$FF, 2, C60):INDEX('Capture #1 CSV'!$A:$FF, Capture1_Length, C60))+1, \"\")","v":""},{"$f":"IF(ISNUMBER(D60), Capture2_Length-COUNTA(INDEX('Capture #2 CSV'!$A:$FF, 2, D60):INDEX('Capture #2 CSV'!$A:$FF, Capture2_Length, D60))+1, \"\")","v":""},{"$f":"IF(ISNUMBER(E60), Capture3_Length-COUNTA(INDEX('Capture #3 CSV'!$A:$FF, 2, E60):INDEX('Capture #3 CSV'!$A:$FF, Capture3_Length, E60))+1, \"\")","v":""}]
["PCAT Total Power","PCAT Power Total(W)",{"$f":"IF(Capture1_Valid, IFERROR(MATCH($B61, 'Capture #1 CSV'!$1:$1, 0), \"\"), \"\")","v":""},{"$f":"IF(Capture2_Valid, IFERROR(MATCH($B61, 'Capture #2 CSV'!$1:$1, 0), \"\"), \"\")","v":""},{"$f":"IF(Capture3_Valid, IFERROR(MATCH($B61, 'Capture #3 CSV'!$1:$1, 0), \"\"), \"\")","v":""},{"$f":"IF(ISNUMBER(C61), Capture1_Length-COUNTA(INDEX('Capture #1 CSV'!$A:$FF, 2, C61):INDEX('Capture #1 CSV'!$A:$FF, Capture1_Length, C61))+1, \"\")","v":""},{"$f":"IF(ISNUMBER(D61), Capture2_Length-COUNTA(INDEX('Capture #2 CSV'!$A:$FF, 2, D61):INDEX('Capture #2 CSV'!$A:$FF, Capture2_Length, D61))+1, \"\")","v":""},{"$f":"IF(ISNUMBER(E61), Capture3_Length-COUNTA(INDEX('Capture #3 CSV'!$A:$FF, 2, E61):INDEX('Capture #3 CSV'!$A:$FF, Capture3_Length, E61))+1, \"\")","v":""}]
["PCAT Perf/Watt","Perf/W Total(F/J) (PCAT)",{"$f":"IF(Capture1_Valid, IFERROR(MATCH($B62, 'Capture #1 CSV'!$1:$1, 0), \"\"), \"\")","v":""},{"$f":"IF(Capture2_Valid, IFERROR(MATCH($B62, 'Capture #2 CSV'!$1:$1, 0), \"\"), \"\")","v":""},{"$f":"IF(Capture3_Valid, IFERROR(MATCH($B62, 'Capture #3 CSV'!$1:$1, 0), \"\"), \"\")","v":""},{"$f":"IF(ISNUMBER(C62), Capture1_Length-COUNTA(INDEX('Capture #1 CSV'!$A:$FF, 2, C62):INDEX('Capture #1 CSV'!$A:$FF, Capture1_Length, C62))+1, \"\")","v":""},{"$f":"IF(ISNUMBER(D62), Capture2_Length-COUNTA(INDEX('Capture #2 CSV'!$A:$FF, 2, D62):INDEX('Capture #2 CSV'!$A:$FF, Capture2_Length, D62))+1, \"\")","v":""},{"$f":"IF(ISNUMBER(E62), Capture3_Length-COUNTA(INDEX('Capture #3 CSV'!$A:$FF, 2, E62):INDEX('Capture #3 CSV'!$A:$FF, Capture3_Length, E62))+1, \"\")","v":""}]
["Chip Power Draw (NV)","GPUOnlyPwr(W) (API)",{"$f":"IF(AND(Capture1_NVGPU, Capture1_Valid), IFERROR(MATCH($B63, 'Capture #1 CSV'!$1:$1, 0), \"\"), \"\")","v":""},{"$f":"IF(AND(Capture2_NVGPU, Capture2_Valid), IFERROR(MATCH($B63, 'Capture #2 CSV'!$1:$1, 0), \"\"), \"\")","v":""},{"$f":"IF(AND(Capture3_NVGPU, Capture3_Valid), IFERROR(MATCH($B63, 'Capture #3 CSV'!$1:$1, 0), \"\"), \"\")","v":""},{"$f":"IF(AND(Capture1_Valid, OR(ISNUMBER(C63), ISNUMBER(C64))), Capture1_Length-COUNTA(INDEX('Capture #1 CSV'!$A:$FF, 2, MAX(C63:C64)):INDEX('Capture #1 CSV'!$A:$FF, Capture1_Length, MAX(C63:C64)))+1, \"\")","v":""},{"$f":"IF(AND(Capture2_Valid, OR(ISNUMBER(D63), ISNUMBER(D64))), Capture2_Length-COUNTA(INDEX('Capture #2 CSV'!$A:$FF, 2, MAX(D63:D64)):INDEX('Capture #2 CSV'!$A:$FF, Capture2_Length, MAX(D63:D64)))+1, \"\")","v":""},{"$f":"IF(AND(Capture3_Valid, OR(ISNUMBER(E63), ISNUMBER(E64))), Capture3_Length-COUNTA(INDEX('Capture #3 CSV'!$A:$FF, 2, MAX(E63:E64)):INDEX('Capture #3 CSV'!$A:$FF, Capture3_Length, MAX(E63:E64)))+1, \"\")","v":""}]
["Chip Power Draw (AMD)","AMDPwr(W) (API)",{"$f":"IF(AND(NOT(Capture1_NVGPU), Capture1_Valid), IFERROR(MATCH($B64, 'Capture #1 CSV'!$1:$1, 0), \"\"), \"\")","v":""},{"$f":"IF(AND(NOT(Capture2_NVGPU), Capture2_Valid), IFERROR(MATCH($B64, 'Capture #2 CSV'!$1:$1, 0), \"\"), \"\")","v":""},{"$f":"IF(AND(NOT(Capture3_NVGPU), Capture3_Valid), IFERROR(MATCH($B64, 'Capture #3 CSV'!$1:$1, 0), \"\"), \"\")","v":""}]
["Chip Perf/Watt (NV)","Perf/W GPUOnly(F/J) (API)",{"$f":"IF(AND(Capture1_NVGPU, Capture1_Valid), IFERROR(MATCH($B65, 'Capture #1 CSV'!$1:$1, 0), \"\"), \"\")","v":""},{"$f":"IF(AND(Capture2_NVGPU, Capture2_Valid), IFERROR(MATCH($B65, 'Capture #2 CSV'!$1:$1, 0), \"\"), \"\")","v":""},{"$f":"IF(AND(Capture3_NVGPU, Capture3_Valid), IFERROR(MATCH($B65, 'Capture #3 CSV'!$1:$1, 0), \"\"), \"\")","v":""},{"$f":"IF(AND(Capture1_Valid, OR(ISNUMBER(C65), ISNUMBER(C66))), Capture1_Length-COUNTA(INDEX('Capture #1 CSV'!$A:$FF, 2, MAX(C65:C66)):INDEX('Capture #1 CSV'!$A:$FF, Capture1_Length, MAX(C65:C66)))+1, \"\")","v":""},{"$f":"IF(AND(Capture2_Valid, OR(ISNUMBER(D65), ISNUMBER(D66))), Capture2_Length-COUNTA(INDEX('Capture #2 CSV'!$A:$FF, 2, MAX(D65:D66)):INDEX('Capture #2 CSV'!$A:$FF, Capture2_Length, MAX(D65:D66)))+1, \"\")","v":""},{"$f":"IF(AND(Capture3_Valid, OR(ISNUMBER(E65), ISNUMBER(E66))), Capture3_Length-COUNTA(INDEX('Capture #3 CSV'!$A:$FF, 2, MAX(E65:E66)):INDEX('Capture #3 CSV'!$A:$FF, Capture3_Length, MAX(E65:E66)))+1, \"\")","v":""}]
["Chip Perf/Watt (AMD)",null,{"$f":"IF(AND(NOT(Capture1_NVGPU), Capture1_Valid), IFERROR(MATCH($B66, 'Capture #1 CSV'!$1:$1, 0), \"\"), \"\")","v":""},{"$f":"IF(AND(NOT(Capture2_NVGPU), Capture2_Valid), IFERROR(MATCH($B66, 'Capture #2 CSV'!$1:$1, 0), \"\"), \"\")","v":""},{"$f":"IF(AND(NOT(Capture3_NVGPU), Capture3_Valid), IFERROR(MATCH($B66, 'Capture #3 CSV'!$1:$1, 0), \"\"), \"\")","v":""}]
["Board Power Draw (NV)","NV Pwr(W) (API)",{"$f":"IF(AND(Capture1_NVGPU, Capture1_Valid), IFERROR(MATCH($B67, 'Capture #1 CSV'!$1:$1, 0), \"\"), \"\")","v":""},{"$f":"IF(AND(Capture2_NVGPU, Capture2_Valid), IFERROR(MATCH($B67, 'Capture #2 CSV'!$1:$1, 0), \"\"), \"\")","v":""},{"$f":"IF(AND(Capture3_NVGPU, Capture3_Valid), IFERROR(MATCH($B67, 'Capture #3 CSV'!$1:$1, 0), \"\"), \"\")","v":""},{"$f":"IF(AND(Capture1_Valid, OR(ISNUMBER(C67), ISNUMBER(C68))), Capture1_Length-COUNTA(INDEX('Capture #1 CSV'!$A:$FF, 2, MAX(C67:C68)):INDEX('Capture #1 CSV'!$A:$FF, Capture1_Length, MAX(C67:C68)))+1, \"\")","v":""},{"$f":"IF(AND(Capture2_Valid, OR(ISNUMBER(D67), ISNUMBER(D68))), Capture2_Length-COUNTA(INDEX('Capture #2 CSV'!$A:$FF, 2, MAX(D67:D68)):INDEX('Capture #2 CSV'!$A:$FF, Capture2_Length, MAX(D67:D68)))+1, \"\")","v":""},{"$f":"IF(AND(Capture3_Valid, OR(ISNUMBER(E67), ISNUMBER(E68))), Capture3_Length-COUNTA(INDEX('Capture #3 CSV'!$A:$FF, 2, MAX(E67:E68)):INDEX('Capture #3 CSV'!$A:$FF, Capture3_Length, MAX(E67:E68)))+1, \"\")","v":""}]
["Board Power Draw (AMD)",null,{"$f":"IF(AND(NOT(Capture1_NVGPU), Capture1_Valid), IFERROR(MATCH($B68, 'Capture #1 CSV'!$1:$1, 0), \"\"), \"\")","v":""},{"$f":"IF(AND(NOT(Capture2_NVGPU), Capture2_Valid), IFERROR(MATCH($B68, 'Capture #2 CSV'!$1:$1, 0), \"\"), \"\")","v":""},{"$f":"IF(AND(NOT(Capture3_NVGPU), Capture3_Valid), IFERROR(MATCH($B68, 'Capture #3 CSV'!$1:$1, 0), \"\"), \"\")","v":""}]
["Board Perf/Watt (NV)","Perf/W Total(F/J) (API)",{"$f":"IF(AND(Capture1_NVGPU, Capture1_Valid), IFERROR(MATCH($B69, 'Capture #1 CSV'!$1:$1, 0), \"\"), \"\")","v":""},{"$f":"IF(AND(Capture2_NVGPU, Capture2_Valid), IFERROR(MATCH($B69, 'Capture #2 CSV'!$1:$1, 0), \"\"), \"\")","v":""},{"$f":"IF(AND(Capture3_NVGPU, Capture3_Valid), IFERROR(MATCH($B69, 'Capture #3 CSV'!$1:$1, 0), \"\"), \"\")","v":""},{"$f":"IF(AND(Capture1_Valid, OR(ISNUMBER(C69), ISNUMBER(C70))), Capture1_Length-COUNTA(INDEX('Capture #1 CSV'!$A:$FF, 2, MAX(C69:C70)):INDEX('Capture #1 CSV'!$A:$FF, Capture1_Length, MAX(C69:C70)))+1, \"\")","v":""},{"$f":"IF(AND(Capture2_Valid, OR(ISNUMBER(D69), ISNUMBER(D70))), Capture2_Length-COUNTA(INDEX('Capture #2 CSV'!$A:$FF, 2, MAX(D69:D70)):INDEX('Capture #2 CSV'!$A:$FF, Capture2_Length, MAX(D69:D70)))+1, \"\")","v":""},{"$f":"IF(AND(Capture3_Valid, OR(ISNUMBER(E69), ISNUMBER(E70))), Capture3_Length-COUNTA(INDEX('Capture #3 CSV'!$A:$FF, 2, MAX(E69:E70)):INDEX('Capture #3 CSV'!$A:$FF, Capture3_Length, MAX(E69:E70)))+1, \"\")","v":""}]
["Board Perf/Watt (AMD)",null,{"$f":"IF(AND(NOT(Capture1_NVGPU), Capture1_Valid), IFERROR(MATCH($B70, 'Capture #1 CSV'!$1:$1, 0), \"\"), \"\")","v":""},{"$f":"IF(AND(NOT(Capture2_NVGPU), Capture2_Valid), IFERROR(MATCH($B70, 'Capture #2 CSV'!$1:$1, 0), \"\"), \"\")","v":""},{"$f":"IF(AND(NOT(Capture3_NVGPU), Capture3_Valid), IFERROR(MATCH($B70, 'Capture #3 CSV'!$1:$1, 0), \"\"), \"\")","v":""}]
["CPU Clock","CPUClk(MHz)",{"$f":"IF(Capture1_Valid, IFERROR(MATCH($B71, 'Capture #1 CSV'!$1:$1, 0), \"\"), \"\")","v":""},{"$f":"IF(Capture2_Valid, IFERROR(MATCH($B71, 'Capture #2 CSV'!$1:$1, 0), \"\"), \"\")","v":""},{"$f":"IF(Capture3_Valid, IFERROR(MATCH($B71, 'Capture #3 CSV'!$1:$1, 0), \"\"), \"\")","v":""},{"$f":"IF(ISNUMBER(C71), Capture1_Length-COUNTA(INDEX('Capture #1 CSV'!$A:$FF, 2, C71):INDEX('Capture #1 CSV'!$A:$FF, Capture1_Length, C71))+1, \"\")","v":""},{"$f":"IF(ISNUMBER(D71), Capture2_Length-COUNTA(INDEX('Capture #2 CSV'!$A:$FF, 2, D71):INDEX('Capture #2 CSV'!$A:$FF, Capture2_Length, D71))+1, \"\")","v":""},{"$f":"IF(ISNUMBER(E71), Capture3_Length-COUNTA(INDEX('Capture #3 CSV'!$A:$FF, 2, E71):INDEX('Capture #3 CSV'!$A:$FF, Capture3_Length, E71))+1, \"\")","v":""}]
["CPU Temperature","CPU Package Temp(C)",{"$f":"IF(Capture1_Valid, IFERROR(MATCH($B72, 'Capture #1 CSV'!$1:$1, 0), \"\"), \"\")","v":""},{"$f":"IF(Capture2_Valid, IFERROR(MATCH($B72, 'Capture #2 CSV'!$1:$1, 0), \"\"), \"\")","v":""},{"$f":"IF(Capture3_Valid, IFERROR(MATCH($B72, 'Capture #3 CSV'!$1:$1, 0), \"\"), \"\")","v":""},{"$f":"IF(ISNUMBER(C72), Capture1_Length-COUNTA(INDEX('Capture #1 CSV'!$A:$FF, 2, C72):INDEX('Capture #1 CSV'!$A:$FF, Capture1_Length, C72))+1, \"\")","v":""},{"$f":"IF(ISNUMBER(D72), Capture2_Length-COUNTA(INDEX('Capture #2 CSV'!$A:$FF, 2, D72):INDEX('Capture #2 CSV'!$A:$FF, Capture2_Length, D72))+1, \"\")","v":""},{"$f":"IF(ISNUMBER(E72), Capture3_Length-COUNTA(INDEX('Capture #3 CSV'!$A:$FF, 2, E72):INDEX('Capture #3 CSV'!$A:$FF, Capture3_Length, E72))+1, \"\")","v":""}]
["CPU Power","CPU Package Power(W)",{"$f":"IF(Capture1_Valid, IFERROR(MATCH($B73, 'Capture #1 CSV'!$1:$1, 0), \"\"), \"\")","v":""},{"$f":"IF(Capture2_Valid, IFERROR(MATCH($B73, 'Capture #2 CSV'!$1:$1, 0), \"\"), \"\")","v":""},{"$f":"IF(Capture3_Valid, IFERROR(MATCH($B73, 'Capture #3 CSV'!$1:$1, 0), \"\"), \"\")","v":""},{"$f":"IF(ISNUMBER(C73), Capture1_Length-COUNTA(INDEX('Capture #1 CSV'!$A:$FF, 2, C73):INDEX('Capture #1 CSV'!$A:$FF, Capture1_Length, C73))+1, \"\")","v":""},{"$f":"IF(ISNUMBER(D73), Capture2_Length-COUNTA(INDEX('Capture #2 CSV'!$A:$FF, 2, D73):INDEX('Capture #2 CSV'!$A:$FF, Capture2_Length, D73))+1, \"\")","v":""},{"$f":"IF(ISNUMBER(E73), Capture3_Length-COUNTA(INDEX('Capture #3 CSV'!$A:$FF, 2, E73):INDEX('Capture #3 CSV'!$A:$FF, Capture3_Length, E73))+1, \"\")","v":""}]
["CPU TDP","CPU TDP (W)",{"$f":"IF(Capture1_Valid, IFERROR(MATCH($B74, 'Capture #1 CSV'!$1:$1, 0), \"\"), \"\")","v":""},{"$f":"IF(Capture2_Valid, IFERROR(MATCH($B74, 'Capture #2 CSV'!$1:$1, 0), \"\"), \"\")","v":""},{"$f":"IF(Capture3_Valid, IFERROR(MATCH($B74, 'Capture #3 CSV'!$1:$1, 0), \"\"), \"\")","v":""},{"$f":"IF(ISNUMBER(C74), Capture1_Length-COUNTA(INDEX('Capture #1 CSV'!$A:$FF, 2, C74):INDEX('Capture #1 CSV'!$A:$FF, Capture1_Length, C74))+1, \"\")","v":""},{"$f":"IF(ISNUMBER(D74), Capture2_Length-COUNTA(INDEX('Capture #2 CSV'!$A:$FF, 2, D74):INDEX('Capture #2 CSV'!$A:$FF, Capture2_Length, D74))+1, \"\")","v":""},{"$f":"IF(ISNUMBER(E74), Capture3_Length-COUNTA(INDEX('Capture #3 CSV'!$A:$FF, 2, E74):INDEX('Capture #3 CSV'!$A:$FF, Capture3_Length, E74))+1, \"\")","v":""}]
["CPU Threads","Header","Column",null,null,"Offset",null,null,"Average Per-Core Util"]
["Core #1","CPUCoreUtil%[ 0]",{"$f":"IF(Capture1_Valid, IFERROR(MATCH($B76, 'Capture #1 CSV'!$1:$1, 0), \"\"), \"\")","v":""},{"$f":"IF(Capture2_Valid, IFERROR(MATCH($B76, 'Capture #2 CSV'!$1:$1, 0), \"\"), \"\")","v":""},{"$f":"IF(Capture1_Valid, IFERROR(MATCH($B76, 'Capture #3 CSV'!$1:$1, 0), \"\"), \"\")","v":""},{"$f":"IF(ISNUMBER(C76), Capture1_Length-COUNTA(INDEX('Capture #1 CSV'!$A:$FF, 2, C76):INDEX('Capture #1 CSV'!$A:$FF, Capture1_Length, C76))+1, \"\")","v":""},{"$f":"IF(ISNUMBER(D76), Capture2_Length-COUNTA(INDEX('Capture #2 CSV'!$A:$FF, 2, D76):INDEX('Capture #2 CSV'!$A:$FF, Capture2_Length, D76))+1, \"\")","v":""},{"$f":"IF(ISNUMBER(E76), Capture3_Length-COUNTA(INDEX('Capture #3 CSV'!$A:$FF, 2, E76):INDEX('Capture #3 CSV'!$A:$FF, Capture3_Length, E76))+1, \"\")","v":""},{"$f":"IF(Capture1_Valid, IFERROR(AVERAGE(INDEX('Capture #1 CSV'!$A:$FF, Backend!F76, Backend!C76):INDEX('Capture #1 CSV'!$A:$FF, Capture1_Length, Backend!C76)), \"\"), \"\")","v":""},{"$f":"IF(Capture2_Valid, IFERROR(AVERAGE(INDEX('Capture #2 CSV'!$A:$FF, Backend!G76, Backend!D76):INDEX('Capture #2 CSV'!$A:$FF, Capture2_Length, Backend!D76)), \"\"), \"\")","v":""},{"$f":"IF(Capture3_Valid, IFERROR(AVERAGE(INDEX('Capture #3 CSV'!$A:$FF, Backend!H76, Backend!E76):INDEX('Capture #3 CSV'!$A:$FF, Capture3_Length, Backend!E76)), \"\"), \"\")","v":""}]
["Core #2","CPUCoreUtil%[ 1]",{"$f":"IFERROR(IF(I76=\"\", \"\", MATCH($B77, 'Capture #1 CSV'!$1:$1, 0)), \"\")","v":""},{"$f":"IFERROR(IF(J76=\"\", \"\", MATCH($B77, 'Capture #2 CSV'!$1:$1, 0)), \"\")","v":""},{"$f":"IFERROR(IF(K76=\"\", \"\", MATCH($B77, 'Capture #3 CSV'!$1:$1, 0)), \"\")","v":""},{"$f":"IF(I76=\"\", \"\", IF(ISNUMBER(C77), Capture1_Length-COUNTA(INDEX('Capture #1 CSV'!$A:$FF, 2, C77):INDEX('Capture #1 CSV'!$A:$FF, Capture1_Length, C77))+1, \"\"))","v":""},{"$f":"IF(J76=\"\", \"\", IF(ISNUMBER(D77), Capture2_Length-COUNTA(INDEX('Capture #2 CSV'!$A:$FF, 2, D77):INDEX('Capture #2 CSV'!$A:$FF, Capture2_Length, D77))+1, \"\"))","v":""},{"$f":"IF(K76=\"\", \"\", IF(ISNUMBER(E77), Capture3_Length-COUNTA(INDEX('Capture #3 CSV'!$A:$FF, 2, E77):INDEX('Capture #3 CSV'!$A:$FF, Capture3_Length, E77))+1, \"\"))","v":""},{"$f":"IFERROR(IF(I76=\"\", \"\", AVERAGE(INDEX('Capture #1 CSV'!$A:$FF, Backend!F77, Backend!C77):INDEX('Capture #1 CSV'!$A:$FF, Capture1_Length, Backend!C77))), \"\")","v":""},{"$f":"IFERROR(IF(J76=\"\", \"\", AVERAGE(INDEX('Capture #2 CSV'!$A:$FF, Backend!G77, Backend!D77):INDEX('Capture #2 CSV'!$A:$FF, Capture2_Length, Backend!D77))), \"\")","v":""},{"$f":"IFERROR(IF(K76=\"\", \"\", AVERAGE(INDEX('Capture #3 CSV'!$A:$FF, Backend!H77, Backend!E77):INDEX('Capture #3 CSV'!$A:$FF, Capture3_Length, Backend!E77))), \"\")","v":""}]
["Core #3","CPUCoreUtil%[ 2]",{"$f":"IFERROR(IF(I77=\"\", \"\", MATCH($B78, 'Capture #1 CSV'!$1:$1, 0)), \"\")","v":""},{"$f":"IFERROR(IF(J77=\"\", \"\", MATCH($B78, 'Capture #2 CSV'!$1:$1, 0)), \"\")","v":""},{"$f":"IFERROR(IF(K77=\"\", \"\", MATCH($B78, 'Capture #3 CSV'!$1:$1, 0)), \"\")","v":""},{"$f":"IF(I77=\"\", \"\", IF(ISNUMBER(C78), Capture1_Length-COUNTA(INDEX('Capture #1 CSV'!$A:$FF, 2, C78):INDEX('Capture #1 CSV'!$A:$FF, Capture1_Length, C78))+1, \"\"))","v":""},{"$f":"IF(J77=\"\", \"\", IF(ISNUMBER(D78), Capture2_Length-COUNTA(INDEX('Capture #2 CSV'!$A:$FF, 2, D78):INDEX('Capture #2 CSV'!$A:$FF, Capture2_Length, D78))+1, \"\"))","v":""},{"$f":"IF(K77=\"\", \"\", IF(ISNUMBER(E78), Capture3_Length-COUNTA(INDEX('Capture #3 CSV'!$A:$FF, 2, E78):INDEX('Capture #3 CSV'!$A:$FF, Capture3_Length, E78))+1, \"\"))","v":""},{"$f":"IFERROR(IF(I77=\"\", \"\", AVERAGE(INDEX('Capture #1 CSV'!$A:$FF, Backend!F78, Backend!C78):INDEX('Capture #1 CSV'!$A:$FF, Capture1_Length, Backend!C78))), \"\")","v":""},{"$f":"IFERROR(IF(J77=\"\", \"\", AVERAGE(INDEX('Capture #2 CSV'!$A:$FF, Backend!G78, Backend!D78):INDEX('Capture #2 CSV'!$A:$FF, Capture2_Length, Backend!D78))), \"\")","v":""},{"$f":"IFERROR(IF(K77=\"\", \"\", AVERAGE(INDEX('Capture #3 CSV'!$A:$FF, Backend!H78, Backend!E78):INDEX('Capture #3 CSV'!$A:$FF, Capture3_Length, Backend!E78))), \"\")","v":""}]
["Core #4","CPUCoreUtil%[ 3]",{"$f":"IFERROR(IF(I78=\"\", \"\", MATCH($B79, 'Capture #1 CSV'!$1:$1, 0)), \"\")","v":""},{"$f":"IFERROR(IF(J78=\"\", \"\", MATCH($B79, 'Capture #2 CSV'!$1:$1, 0)), \"\")","v":""},{"$f":"IFERROR(IF(K78=\"\", \"\", MATCH($B79, 'Capture #3 CSV'!$1:$1, 0)), \"\")","v":""},{"$f":"IF(I78=\"\", \"\", IF(ISNUMBER(C79), Capture1_Length-COUNTA(INDEX('Capture #1 CSV'!$A:$FF, 2, C79):INDEX('Capture #1 CSV'!$A:$FF, Capture1_Length, C79))+1, \"\"))","v":""},{"$f":"IF(J78=\"\", \"\", IF(ISNUMBER(D79), Capture2_Length-COUNTA(INDEX('Capture #2 CSV'!$A:$FF, 2, D79):INDEX('Capture #2 CSV'!$A:$FF, Capture2_Length, D79))+1, \"\"))","v":""},{"$f":"IF(K78=\"\", \"\", IF(ISNUMBER(E79), Capture3_Length-COUNTA(INDEX('Capture #3 CSV'!$A:$FF, 2, E79):INDEX('Capture #3 CSV'!$A:$FF, Capture3_Length, E79))+1, \"\"))","v":""},{"$f":"IFERROR(IF(I78=\"\", \"\", AVERAGE(INDEX('Capture #1 CSV'!$A:$FF, Backend!F79, Backend!C79):INDEX('Capture #1 CSV'!$A:$FF, Capture1_Length, Backend!C79))), \"\")","v":""},{"$f":"IFERROR(IF(J78=\"\", \"\", AVERAGE(INDEX('Capture #2 CSV'!$A:$FF, Backend!G79, Backend!D79):INDEX('Capture #2 CSV'!$A:$FF, Capture2_Length, Backend!D79))), \"\")","v":""},{"$f":"IFERROR(IF(K78=\"\", \"\", AVERAGE(INDEX('Capture #3 CSV'!$A:$FF, Backend!H79, Backend!E79):INDEX('Capture #3 CSV'!$A:$FF, Capture3_Length, Backend!E79))), \"\")","v":""}]
["Core #5","CPUCoreUtil%[ 4]",{"$f":"IFERROR(IF(I79=\"\", \"\", MATCH($B80, 'Capture #1 CSV'!$1:$1, 0)), \"\")","v":""},{"$f":"IFERROR(IF(J79=\"\", \"\", MATCH($B80, 'Capture #2 CSV'!$1:$1, 0)), \"\")","v":""},{"$f":"IFERROR(IF(K79=\"\", \"\", MATCH($B80, 'Capture #3 CSV'!$1:$1, 0)), \"\")","v":""},{"$f":"IF(I79=\"\", \"\", IF(ISNUMBER(C80), Capture1_Length-COUNTA(INDEX('Capture #1 CSV'!$A:$FF, 2, C80):INDEX('Capture #1 CSV'!$A:$FF, Capture1_Length, C80))+1, \"\"))","v":""},{"$f":"IF(J79=\"\", \"\", IF(ISNUMBER(D80), Capture2_Length-COUNTA(INDEX('Capture #2 CSV'!$A:$FF, 2, D80):INDEX('Capture #2 CSV'!$A:$FF, Capture2_Length, D80))+1, \"\"))","v":""},{"$f":"IF(K79=\"\", \"\", IF(ISNUMBER(E80), Capture3_Length-COUNTA(INDEX('Capture #3 CSV'!$A:$FF, 2, E80):INDEX('Capture #3 CSV'!$A:$FF, Capture3_Length, E80))+1, \"\"))","v":""},{"$f":"IFERROR(IF(I79=\"\", \"\", AVERAGE(INDEX('Capture #1 CSV'!$A:$FF, Backend!F80, Backend!C80):INDEX('Capture #1 CSV'!$A:$FF, Capture1_Length, Backend!C80))), \"\")","v":""},{"$f":"IFERROR(IF(J79=\"\", \"\", AVERAGE(INDEX('Capture #2 CSV'!$A:$FF, Backend!G80, Backend!D80):INDEX('Capture #2 CSV'!$A:$FF, Capture2_Length, Backend!D80))), \"\")","v":""},{"$f":"IFERROR(IF(K79=\"\", \"\", AVERAGE(INDEX('Capture #3 CSV'!$A:$FF, Backend!H80, Backend!E80):INDEX('Capture #3 CSV'!$A:$FF, Capture3_Length, Backend!E80))), \"\")","v":""}]
["Core #6","CPUCoreUtil%[ 5]",{"$f":"IFERROR(IF(I80=\"\", \"\", MATCH($B81, 'Capture #1 CSV'!$1:$1, 0)), \"\")","v":""},{"$f":"IFERROR(IF(J80=\"\", \"\", MATCH($B81, 'Capture #2 CSV'!$1:$1, 0)), \"\")","v":""},{"$f":"IFERROR(IF(K80=\"\", \"\", MATCH($B81, 'Capture #3 CSV'!$1:$1, 0)), \"\")","v":""},{"$f":"IF(I80=\"\", \"\", IF(ISNUMBER(C81), Capture1_Length-COUNTA(INDEX('Capture #1 CSV'!$A:$FF, 2, C81):INDEX('Capture #1 CSV'!$A:$FF, Capture1_Length, C81))+1, \"\"))","v":""},{"$f":"IF(J80=\"\", \"\", IF(ISNUMBER(D81), Capture2_Length-COUNTA(INDEX('Capture #2 CSV'!$A:$FF, 2, D81):INDEX('Capture #2 CSV'!$A:$FF, Capture2_Length, D81))+1, \"\"))","v":""},{"$f":"IF(K80=\"\", \"\", IF(ISNUMBER(E81), Capture3_Length-COUNTA(INDEX('Capture #3 CSV'!$A:$FF, 2, E81):INDEX('Capture #3 CSV'!$A:$FF, Capture3_Length, E81))+1, \"\"))","v":""},{"$f":"IFERROR(IF(I80=\"\", \"\", AVERAGE(INDEX('Capture #1 CSV'!$A:$FF, Backend!F81, Backend!C81):INDEX('Capture #1 CSV'!$A:$FF, Capture1_Length, Backend!C81))), \"\")","v":""},{"$f":"IFERROR(IF(J80=\"\", \"\", AVERAGE(INDEX('Capture #2 CSV'!$A:$FF, Backend!G81, Backend!D81):INDEX('Capture #2 CSV'!$A:$FF, Capture2_Length, Backend!D81))), \"\")","v":""},{"$f":"IFERROR(IF(K80=\"\", \"\", AVERAGE(INDEX('Capture #3 CSV'!$A:$FF, Backend!H81, Backend!E81):INDEX('Capture #3 CSV'!$A:$FF, Capture3_Length, Backend!E81))), \"\")","v":""}]
["Core #7","CPUCoreUtil%[ 6]",{"$f":"IFERROR(IF(I81=\"\", \"\", MATCH($B82, 'Capture #1 CSV'!$1:$1, 0)), \"\")","v":""},{"$f":"IFERROR(IF(J81=\"\", \"\", MATCH($B82, 'Capture #2 CSV'!$1:$1, 0)), \"\")","v":""},{"$f":"IFERROR(IF(K81=\"\", \"\", MATCH($B82, 'Capture #3 CSV'!$1:$1, 0)), \"\")","v":""},{"$f":"IF(I81=\"\", \"\", IF(ISNUMBER(C82), Capture1_Length-COUNTA(INDEX('Capture #1 CSV'!$A:$FF, 2, C82):INDEX('Capture #1 CSV'!$A:$FF, Capture1_Length, C82))+1, \"\"))","v":""},{"$f":"IF(J81=\"\", \"\", IF(ISNUMBER(D82), Capture2_Length-COUNTA(INDEX('Capture #2 CSV'!$A:$FF, 2, D82):INDEX('Capture #2 CSV'!$A:$FF, Capture2_Length, D82))+1, \"\"))","v":""},{"$f":"IF(K81=\"\", \"\", IF(ISNUMBER(E82), Capture3_Length-COUNTA(INDEX('Capture #3 CSV'!$A:$FF, 2, E82):INDEX('Capture #3 CSV'!$A:$FF, Capture3_Length, E82))+1, \"\"))","v":""},{"$f":"IFERROR(IF(I81=\"\", \"\", AVERAGE(INDEX('Capture #1 CSV'!$A:$FF, Backend!F82, Backend!C82):INDEX('Capture #1 CSV'!$A:$FF, Capture1_Length, Backend!C82))), \"\")","v":""},{"$f":"IFERROR(IF(J81=\"\", \"\", AVERAGE(INDEX('Capture #2 CSV'!$A:$FF, Backend!G82, Backend!D82):INDEX('Capture #2 CSV'!$A:$FF, Capture2_Length, Backend!D82))), \"\")","v":""},{"$f":"IFERROR(IF(K81=\"\", \"\", AVERAGE(INDEX('Capture #3 CSV'!$A:$FF, Backend!H82, Backend!E82):INDEX('Capture #3 CSV'!$A:$FF, Capture3_Length, Backend!E82))), \"\")","v":""}]
["Core #8","CPUCoreUtil%[ 7]",{"$f":"IFERROR(IF(I82=\"\", \"\", MATCH($B83, 'Capture #1 CSV'!$1:$1, 0)), \"\")","v":""},{"$f":"IFERROR(IF(J82=\"\", \"\", MATCH($B83, 'Capture #2 CSV'!$1:$1, 0)), \"\")","v":""},{"$f":"IFERROR(IF(K82=\"\", \"\", MATCH($B83, 'Capture #3 CSV'!$1:$1, 0)), \"\")","v":""},{"$f":"IF(I82=\"\", \"\", IF(ISNUMBER(C83), Capture1_Length-COUNTA(INDEX('Capture #1 CSV'!$A:$FF, 2, C83):INDEX('Capture #1 CSV'!$A:$FF, Capture1_Length, C83))+1, \"\"))","v":""},{"$f":"IF(J82=\"\", \"\", IF(ISNUMBER(D83), Capture2_Length-COUNTA(INDEX('Capture #2 CSV'!$A:$FF, 2, D83):INDEX('Capture #2 CSV'!$A:$FF, Capture2_Length, D83))+1, \"\"))","v":""},{"$f":"IF(K82=\"\", \"\", IF(ISNUMBER(E83), Capture3_Length-COUNTA(INDEX('Capture #3 CSV'!$A:$FF, 2, E83):INDEX('Capture #3 CSV'!$A:$FF, Capture3_Length, E83))+1, \"\"))","v":""},{"$f":"IFERROR(IF(I82=\"\", \"\", AVERAGE(INDEX('Capture #1 CSV'!$A:$FF, Backend!F83, Backend!C83):INDEX('Capture #1 CSV'!$A:$FF, Capture1_Length, Backend!C83))), \"\")","v":""},{"$f":"IFERROR(IF(J82=\"\", \"\", AVERAGE(INDEX('Capture #2 CSV'!$A:$FF, Backend!G83, Backend!D83):INDEX('Capture #2 CSV'!$A:$FF, Capture2_Length, Backend!D83))), \"\")","v":""},{"$f":"IFERROR(IF(K82=\"\", \"\", AVERAGE(INDEX('Capture #3 CSV'!$A:$FF, Backend!H83, Backend!E83):INDEX('Capture #3 CSV'!$A:$FF, Capture3_Length, Backend!E83))), \"\")","v":""}]
["Core #9","CPUCoreUtil%[ 8]",{"$f":"IFERROR(IF(I83=\"\", \"\", MATCH($B84, 'Capture #1 CSV'!$1:$1, 0)), \"\")","v":""},{"$f":"IFERROR(IF(J83=\"\", \"\", MATCH($B84, 'Capture #2 CSV'!$1:$1, 0)), \"\")","v":""},{"$f":"IFERROR(IF(K83=\"\", \"\", MATCH($B84, 'Capture #3 CSV'!$1:$1, 0)), \"\")","v":""},{"$f":"IF(I83=\"\", \"\", IF(ISNUMBER(C84), Capture1_Length-COUNTA(INDEX('Capture #1 CSV'!$A:$FF, 2, C84):INDEX('Capture #1 CSV'!$A:$FF, Capture1_Length, C84))+1, \"\"))","v":""},{"$f":"IF(J83=\"\", \"\", IF(ISNUMBER(D84), Capture2_Length-COUNTA(INDEX('Capture #2 CSV'!$A:$FF, 2, D84):INDEX('Capture #2 CSV'!$A:$FF, Capture2_Length, D84))+1, \"\"))","v":""},{"$f":"IF(K83=\"\", \"\", IF(ISNUMBER(E84), Capture3_Length-COUNTA(INDEX('Capture #3 CSV'!$A:$FF, 2, E84):INDEX('Capture #3 CSV'!$A:$FF, Capture3_Length, E84))+1, \"\"))","v":""},{"$f":"IFERROR(IF(I83=\"\", \"\", AVERAGE(INDEX('Capture #1 CSV'!$A:$FF, Backend!F84, Backend!C84):INDEX('Capture #1 CSV'!$A:$FF, Capture1_Length, Backend!C84))), \"\")","v":""},{"$f":"IFERROR(IF(J83=\"\", \"\", AVERAGE(INDEX('Capture #2 CSV'!$A:$FF, Backend!G84, Backend!D84):INDEX('Capture #2 CSV'!$A:$FF, Capture2_Length, Backend!D84))), \"\")","v":""},{"$f":"IFERROR(IF(K83=\"\", \"\", AVERAGE(INDEX('Capture #3 CSV'!$A:$FF, Backend!H84, Backend!E84):INDEX('Capture #3 CSV'!$A:$FF, Capture3_Length, Backend!E84))), \"\")","v":""}]
["Core #10","CPUCoreUtil%[ 9]",{"$f":"IFERROR(IF(I84=\"\", \"\", MATCH($B85, 'Capture #1 CSV'!$1:$1, 0)), \"\")","v":""},{"$f":"IFERROR(IF(J84=\"\", \"\", MATCH($B85, 'Capture #2 CSV'!$1:$1, 0)), \"\")","v":""},{"$f":"IFERROR(IF(K84=\"\", \"\", MATCH($B85, 'Capture #3 CSV'!$1:$1, 0)), \"\")","v":""},{"$f":"IF(I84=\"\", \"\", IF(ISNUMBER(C85), Capture1_Length-COUNTA(INDEX('Capture #1 CSV'!$A:$FF, 2, C85):INDEX('Capture #1 CSV'!$A:$FF, Capture1_Length, C85))+1, \"\"))","v":""},{"$f":"IF(J84=\"\", \"\", IF(ISNUMBER(D85), Capture2_Length-COUNTA(INDEX('Capture #2 CSV'!$A:$FF, 2, D85):INDEX('Capture #2 CSV'!$A:$FF, Capture2_Length, D85))+1, \"\"))","v":""},{"$f":"IF(K84=\"\", \"\", IF(ISNUMBER(E85), Capture3_Length-COUNTA(INDEX('Capture #3 CSV'!$A:$FF, 2, E85):INDEX('Capture #3 CSV'!$A:$FF, Capture3_Length, E85))+1, \"\"))","v":""},{"$f":"IFERROR(IF(I84=\"\", \"\", AVERAGE(INDEX('Capture #1 CSV'!$A:$FF, Backend!F85, Backend!C85):INDEX('Capture #1 CSV'!$A:$FF, Capture1_Length, Backend!C85))), \"\")","v":""},{"$f":"IFERROR(IF(J84=\"\", \"\", AVERAGE(INDEX('Capture #2 CSV'!$A:$FF, Backend!G85, Backend!D85):INDEX('Capture #2 CSV'!$A:$FF, Capture2_Length, Backend!D85))), \"\")","v":""},{"$f":"IFERROR(IF(K84=\"\", \"\", AVERAGE(INDEX('Capture #3 CSV'!$A:$FF, Backend!H85, Backend!E85):INDEX('Capture #3 CSV'!$A:$FF, Capture3_Length, Backend!E85))), \"\")","v":""}]
["Core #11","CPUCoreUtil%[10]",{"$f":"IFERROR(IF(I85=\"\", \"\", MATCH($B86, 'Capture #1 CSV'!$1:$1, 0)), \"\")","v":""},{"$f":"IFERROR(IF(J85=\"\", \"\", MATCH($B86, 'Capture #2 CSV'!$1:$1, 0)), \"\")","v":""},{"$f":"IFERROR(IF(K85=\"\", \"\", MATCH($B86, 'Capture #3 CSV'!$1:$1, 0)), \"\")","v":""},{"$f":"IF(I85=\"\", \"\", IF(ISNUMBER(C86), Capture1_Length-COUNTA(INDEX('Capture #1 CSV'!$A:$FF, 2, C86):INDEX('Capture #1 CSV'!$A:$FF, Capture1_Length, C86))+1, \"\"))","v":""},{"$f":"IF(J85=\"\", \"\", IF(ISNUMBER(D86), Capture2_Length-COUNTA(INDEX('Capture #2 CSV'!$A:$FF, 2, D86):INDEX('Capture #2 CSV'!$A:$FF, Capture2_Length, D86))+1, \"\"))","v":""},{"$f":"IF(K85=\"\", \"\", IF(ISNUMBER(E86), Capture3_Length-COUNTA(INDEX('Capture #3 CSV'!$A:$FF, 2, E86):INDEX('Capture #3 CSV'!$A:$FF, Capture3_Length, E86))+1, \"\"))","v":""},{"$f":"IFERROR(IF(I85=\"\", \"\", AVERAGE(INDEX('Capture #1 CSV'!$A:$FF, Backend!F86, Backend!C86):INDEX('Capture #1 CSV'!$A:$FF, Capture1_Length, Backend!C86))), \"\")","v":""},{"$f":"IFERROR(IF(J85=\"\", \"\", AVERAGE(INDEX('Capture #2 CSV'!$A:$FF, Backend!G86, Backend!D86):INDEX('Capture #2 CSV'!$A:$FF, Capture2_Length, Backend!D86))), \"\")","v":""},{"$f":"IFERROR(IF(K85=\"\", \"\", AVERAGE(INDEX('Capture #3 CSV'!$A:$FF, Backend!H86, Backend!E86):INDEX('Capture #3 CSV'!$A:$FF, Capture3_Length, Backend!E86))), \"\")","v":""}]
["Core #12","CPUCoreUtil%[11]",{"$f":"IFERROR(IF(I86=\"\", \"\", MATCH($B87, 'Capture #1 CSV'!$1:$1, 0)), \"\")","v":""},{"$f":"IFERROR(IF(J86=\"\", \"\", MATCH($B87, 'Capture #2 CSV'!$1:$1, 0)), \"\")","v":""},{"$f":"IFERROR(IF(K86=\"\", \"\", MATCH($B87, 'Capture #3 CSV'!$1:$1, 0)), \"\")","v":""},{"$f":"IF(I86=\"\", \"\", IF(ISNUMBER(C87), Capture1_Length-COUNTA(INDEX('Capture #1 CSV'!$A:$FF, 2, C87):INDEX('Capture #1 CSV'!$A:$FF, Capture1_Length, C87))+1, \"\"))","v":""},{"$f":"IF(J86=\"\", \"\", IF(ISNUMBER(D87), Capture2_Length-COUNTA(INDEX('Capture #2 CSV'!$A:$FF, 2, D87):INDEX('Capture #2 CSV'!$A:$FF, Capture2_Length, D87))+1, \"\"))","v":""},{"$f":"IF(K86=\"\", \"\", IF(ISNUMBER(E87), Capture3_Length-COUNTA(INDEX('Capture #3 CSV'!$A:$FF, 2, E87):INDEX('Capture #3 CSV'!$A:$FF, Capture3_Length, E87))+1, \"\"))","v":""},{"$f":"IFERROR(IF(I86=\"\", \"\", AVERAGE(INDEX('Capture #1 CSV'!$A:$FF, Backend!F87, Backend!C87):INDEX('Capture #1 CSV'!$A:$FF, Capture1_Length, Backend!C87))), \"\")","v":""},{"$f":"IFERROR(IF(J86=\"\", \"\", AVERAGE(INDEX('Capture #2 CSV'!$A:$FF, Backend!G87, Backend!D87):INDEX('Capture #2 CSV'!$A:$FF, Capture2_Length, Backend!D87))), \"\")","v":""},{"$f":"IFERROR(IF(K86=\"\", \"\", AVERAGE(INDEX('Capture #3 CSV'!$A:$FF, Backend!H87, Backend!E87):INDEX('Capture #3 CSV'!$A:$FF, Capture3_Length, Backend!E87))), \"\")","v":""}]
["Core #13","CPUCoreUtil%[12]",{"$f":"IFERROR(IF(I87=\"\", \"\", MATCH($B88, 'Capture #1 CSV'!$1:$1, 0)), \"\")","v":""},{"$f":"IFERROR(IF(J87=\"\", \"\", MATCH($B88, 'Capture #2 CSV'!$1:$1, 0)), \"\")","v":""},{"$f":"IFERROR(IF(K87=\"\", \"\", MATCH($B88, 'Capture #3 CSV'!$1:$1, 0)), \"\")","v":""},{"$f":"IF(I87=\"\", \"\", IF(ISNUMBER(C88), Capture1_Length-COUNTA(INDEX('Capture #1 CSV'!$A:$FF, 2, C88):INDEX('Capture #1 CSV'!$A:$FF, Capture1_Length, C88))+1, \"\"))","v":""},{"$f":"IF(J87=\"\", \"\", IF(ISNUMBER(D88), Capture2_Length-COUNTA(INDEX('Capture #2 CSV'!$A:$FF, 2, D88):INDEX('Capture #2 CSV'!$A:$FF, Capture2_Length, D88))+1, \"\"))","v":""},{"$f":"IF(K87=\"\", \"\", IF(ISNUMBER(E88), Capture3_Length-COUNTA(INDEX('Capture #3 CSV'!$A:$FF, 2, E88):INDEX('Capture #3 CSV'!$A:$FF, Capture3_Length, E88))+1, \"\"))","v":""},{"$f":"IFERROR(IF(I87=\"\", \"\", AVERAGE(INDEX('Capture #1 CSV'!$A:$FF, Backend!F88, Backend!C88):INDEX('Capture #1 CSV'!$A:$FF, Capture1_Length, Backend!C88))), \"\")","v":""},{"$f":"IFERROR(IF(J87=\"\", \"\", AVERAGE(INDEX('Capture #2 CSV'!$A:$FF, Backend!G88, Backend!D88):INDEX('Capture #2 CSV'!$A:$FF, Capture2_Length, Backend!D88))), \"\")","v":""},{"$f":"IFERROR(IF(K87=\"\", \"\", AVERAGE(INDEX('Capture #3 CSV'!$A:$FF, Backend!H88, Backend!E88):INDEX('Capture #3 CSV'!$A:$FF, Capture3_Length, Backend!E88))), \"\")","v":""}]
["Core #14","CPUCoreUtil%[13]",{"$f":"IFERROR(IF(I88=\"\", \"\", MATCH($B89, 'Capture #1 CSV'!$1:$1, 0)), \"\")","v":""},{"$f":"IFERROR(IF(J88=\"\", \"\", MATCH($B89, 'Capture #2 CSV'!$1:$1, 0)), \"\")","v":""},{"$f":"IFERROR(IF(K88=\"\", \"\", MATCH($B89, 'Capture #3 CSV'!$1:$1, 0)), \"\")","v":""},{"$f":"IF(I88=\"\", \"\", IF(ISNUMBER(C89), Capture1_Length-COUNTA(INDEX('Capture #1 CSV'!$A:$FF, 2, C89):INDEX('Capture #1 CSV'!$A:$FF, Capture1_Length, C89))+1, \"\"))","v":""},{"$f":"IF(J88=\"\", \"\", IF(ISNUMBER(D89), Capture2_Length-COUNTA(INDEX('Capture #2 CSV'!$A:$FF, 2, D89):INDEX('Capture #2 CSV'!$A:$FF, Capture2_Length, D89))+1, \"\"))","v":""},{"$f":"IF(K88=\"\", \"\", IF(ISNUMBER(E89), Capture3_Length-COUNTA(INDEX('Capture #3 CSV'!$A:$FF, 2, E89):INDEX('Capture #3 CSV'!$A:$FF, Capture3_Length, E89))+1, \"\"))","v":""},{"$f":"IFERROR(IF(I88=\"\", \"\", AVERAGE(INDEX('Capture #1 CSV'!$A:$FF, Backend!F89, Backend!C89):INDEX('Capture #1 CSV'!$A:$FF, Capture1_Length, Backend!C89))), \"\")","v":""},{"$f":"IFERROR(IF(J88=\"\", \"\", AVERAGE(INDEX('Capture #2 CSV'!$A:$FF, Backend!G89, Backend!D89):INDEX('Capture #2 CSV'!$A:$FF, Capture2_Length, Backend!D89))), \"\")","v":""},{"$f":"IFERROR(IF(K88=\"\", \"\", AVERAGE(INDEX('Capture #3 CSV'!$A:$FF, Backend!H89, Backend!E89):INDEX('Capture #3 CSV'!$A:$FF, Capture3_Length, Backend!E89))), \"\")","v":""}]
["Core #15","CPUCoreUtil%[14]",{"$f":"IFERROR(IF(I89=\"\", \"\", MATCH($B90, 'Capture #1 CSV'!$1:$1, 0)), \"\")","v":""},{"$f":"IFERROR(IF(J89=\"\", \"\", MATCH($B90, 'Capture #2 CSV'!$1:$1, 0)), \"\")","v":""},{"$f":"IFERROR(IF(K89=\"\", \"\", MATCH($B90, 'Capture #3 CSV'!$1:$1, 0)), \"\")","v":""},{"$f":"IF(I89=\"\", \"\", IF(ISNUMBER(C90), Capture1_Length-COUNTA(INDEX('Capture #1 CSV'!$A:$FF, 2, C90):INDEX('Capture #1 CSV'!$A:$FF, Capture1_Length, C90))+1, \"\"))","v":""},{"$f":"IF(J89=\"\", \"\", IF(ISNUMBER(D90), Capture2_Length-COUNTA(INDEX('Capture #2 CSV'!$A:$FF, 2, D90):INDEX('Capture #2 CSV'!$A:$FF, Capture2_Length, D90))+1, \"\"))","v":""},{"$f":"IF(K89=\"\", \"\", IF(ISNUMBER(E90), Capture3_Length-COUNTA(INDEX('Capture #3 CSV'!$A:$FF, 2, E90):INDEX('Capture #3 CSV'!$A:$FF, Capture3_Length, E90))+1, \"\"))","v":""},{"$f":"IFERROR(IF(I89=\"\", \"\", AVERAGE(INDEX('Capture #1 CSV'!$A:$FF, Backend!F90, Backend!C90):INDEX('Capture #1 CSV'!$A:$FF, Capture1_Length, Backend!C90))), \"\")","v":""},{"$f":"IFERROR(IF(J89=\"\", \"\", AVERAGE(INDEX('Capture #2 CSV'!$A:$FF, Backend!G90, Backend!D90):INDEX('Capture #2 CSV'!$A:$FF, Capture2_Length, Backend!D90))), \"\")","v":""},{"$f":"IFERROR(IF(K89=\"\", \"\", AVERAGE(INDEX('Capture #3 CSV'!$A:$FF, Backend!H90, Backend!E90):INDEX('Capture #3 CSV'!$A:$FF, Capture3_Length, Backend!E90))), \"\")","v":""}]
["Core #16","CPUCoreUtil%[15]",{"$f":"IFERROR(IF(I90=\"\", \"\", MATCH($B91, 'Capture #1 CSV'!$1:$1, 0)), \"\")","v":""},{"$f":"IFERROR(IF(J90=\"\", \"\", MATCH($B91, 'Capture #2 CSV'!$1:$1, 0)), \"\")","v":""},{"$f":"IFERROR(IF(K90=\"\", \"\", MATCH($B91, 'Capture #3 CSV'!$1:$1, 0)), \"\")","v":""},{"$f":"IF(I90=\"\", \"\", IF(ISNUMBER(C91), Capture1_Length-COUNTA(INDEX('Capture #1 CSV'!$A:$FF, 2, C91):INDEX('Capture #1 CSV'!$A:$FF, Capture1_Length, C91))+1, \"\"))","v":""},{"$f":"IF(J90=\"\", \"\", IF(ISNUMBER(D91), Capture2_Length-COUNTA(INDEX('Capture #2 CSV'!$A:$FF, 2, D91):INDEX('Capture #2 CSV'!$A:$FF, Capture2_Length, D91))+1, \"\"))","v":""},{"$f":"IF(K90=\"\", \"\", IF(ISNUMBER(E91), Capture3_Length-COUNTA(INDEX('Capture #3 CSV'!$A:$FF, 2, E91):INDEX('Capture #3 CSV'!$A:$FF, Capture3_Length, E91))+1, \"\"))","v":""},{"$f":"IFERROR(IF(I90=\"\", \"\", AVERAGE(INDEX('Capture #1 CSV'!$A:$FF, Backend!F91, Backend!C91):INDEX('Capture #1 CSV'!$A:$FF, Capture1_Length, Backend!C91))), \"\")","v":""},{"$f":"IFERROR(IF(J90=\"\", \"\", AVERAGE(INDEX('Capture #2 CSV'!$A:$FF, Backend!G91, Backend!D91):INDEX('Capture #2 CSV'!$A:$FF, Capture2_Length, Backend!D91))), \"\")","v":""},{"$f":"IFERROR(IF(K90=\"\", \"\", AVERAGE(INDEX('Capture #3 CSV'!$A:$FF, Backend!H91, Backend!E91):INDEX('Capture #3 CSV'!$A:$FF, Capture3_Length, Backend!E91))), \"\")","v":""}]
["Core #17","CPUCoreUtil%[16]",{"$f":"IFERROR(IF(I91=\"\", \"\", MATCH($B92, 'Capture #1 CSV'!$1:$1, 0)), \"\")","v":""},{"$f":"IFERROR(IF(J91=\"\", \"\", MATCH($B92, 'Capture #2 CSV'!$1:$1, 0)), \"\")","v":""},{"$f":"IFERROR(IF(K91=\"\", \"\", MATCH($B92, 'Capture #3 CSV'!$1:$1, 0)), \"\")","v":""},{"$f":"IF(I91=\"\", \"\", IF(ISNUMBER(C92), Capture1_Length-COUNTA(INDEX('Capture #1 CSV'!$A:$FF, 2, C92):INDEX('Capture #1 CSV'!$A:$FF, Capture1_Length, C92))+1, \"\"))","v":""},{"$f":"IF(J91=\"\", \"\", IF(ISNUMBER(D92), Capture2_Length-COUNTA(INDEX('Capture #2 CSV'!$A:$FF, 2, D92):INDEX('Capture #2 CSV'!$A:$FF, Capture2_Length, D92))+1, \"\"))","v":""},{"$f":"IF(K91=\"\", \"\", IF(ISNUMBER(E92), Capture3_Length-COUNTA(INDEX('Capture #3 CSV'!$A:$FF, 2, E92):INDEX('Capture #3 CSV'!$A:$FF, Capture3_Length, E92))+1, \"\"))","v":""},{"$f":"IFERROR(IF(I91=\"\", \"\", AVERAGE(INDEX('Capture #1 CSV'!$A:$FF, Backend!F92, Backend!C92):INDEX('Capture #1 CSV'!$A:$FF, Capture1_Length, Backend!C92))), \"\")","v":""},{"$f":"IFERROR(IF(J91=\"\", \"\", AVERAGE(INDEX('Capture #2 CSV'!$A:$FF, Backend!G92, Backend!D92):INDEX('Capture #2 CSV'!$A:$FF, Capture2_Length, Backend!D92))), \"\")","v":""},{"$f":"IFERROR(IF(K91=\"\", \"\", AVERAGE(INDEX('Capture #3 CSV'!$A:$FF, Backend!H92, Backend!E92):INDEX('Capture #3 CSV'!$A:$FF, Capture3_Length, Backend!E92))), \"\")","v":""}]
["Core #18","CPUCoreUtil%[17]",{"$f":"IFERROR(IF(I92=\"\", \"\", MATCH($B93, 'Capture #1 CSV'!$1:$1, 0)), \"\")","v":""},{"$f":"IFERROR(IF(J92=\"\", \"\", MATCH($B93, 'Capture #2 CSV'!$1:$1, 0)), \"\")","v":""},{"$f":"IFERROR(IF(K92=\"\", \"\", MATCH($B93, 'Capture #3 CSV'!$1:$1, 0)), \"\")","v":""},{"$f":"IF(I92=\"\", \"\", IF(ISNUMBER(C93), Capture1_Length-COUNTA(INDEX('Capture #1 CSV'!$A:$FF, 2, C93):INDEX('Capture #1 CSV'!$A:$FF, Capture1_Length, C93))+1, \"\"))","v":""},{"$f":"IF(J92=\"\", \"\", IF(ISNUMBER(D93), Capture2_Length-COUNTA(INDEX('Capture #2 CSV'!$A:$FF, 2, D93):INDEX('Capture #2 CSV'!$A:$FF, Capture2_Length, D93))+1, \"\"))","v":""},{"$f":"IF(K92=\"\", \"\", IF(ISNUMBER(E93), Capture3_Length-COUNTA(INDEX('Capture #3 CSV'!$A:$FF, 2, E93):INDEX('Capture #3 CSV'!$A:$FF, Capture3_Length, E93))+1, \"\"))","v":""},{"$f":"IFERROR(IF(I92=\"\", \"\", AVERAGE(INDEX('Capture #1 CSV'!$A:$FF, Backend!F93, Backend!C93):INDEX('Capture #1 CSV'!$A:$FF, Capture1_Length, Backend!C93))), \"\")","v":""},{"$f":"IFERROR(IF(J92=\"\", \"\", AVERAGE(INDEX('Capture #2 CSV'!$A:$FF, Backend!G93, Backend!D93):INDEX('Capture #2 CSV'!$A:$FF, Capture2_Length, Backend!D93))), \"\")","v":""},{"$f":"IFERROR(IF(K92=\"\", \"\", AVERAGE(INDEX('Capture #3 CSV'!$A:$FF, Backend!H93, Backend!E93):INDEX('Capture #3 CSV'!$A:$FF, Capture3_Length, Backend!E93))), \"\")","v":""}]
["Core #19","CPUCoreUtil%[18]",{"$f":"IFERROR(IF(I93=\"\", \"\", MATCH($B94, 'Capture #1 CSV'!$1:$1, 0)), \"\")","v":""},{"$f":"IFERROR(IF(J93=\"\", \"\", MATCH($B94, 'Capture #2 CSV'!$1:$1, 0)), \"\")","v":""},{"$f":"IFERROR(IF(K93=\"\", \"\", MATCH($B94, 'Capture #3 CSV'!$1:$1, 0)), \"\")","v":""},{"$f":"IF(I93=\"\", \"\", IF(ISNUMBER(C94), Capture1_Length-COUNTA(INDEX('Capture #1 CSV'!$A:$FF, 2, C94):INDEX('Capture #1 CSV'!$A:$FF, Capture1_Length, C94))+1, \"\"))","v":""},{"$f":"IF(J93=\"\", \"\", IF(ISNUMBER(D94), Capture2_Length-COUNTA(INDEX('Capture #2 CSV'!$A:$FF, 2, D94):INDEX('Capture #2 CSV'!$A:$FF, Capture2_Length, D94))+1, \"\"))","v":""},{"$f":"IF(K93=\"\", \"\", IF(ISNUMBER(E94), Capture3_Length-COUNTA(INDEX('Capture #3 CSV'!$A:$FF, 2, E94):INDEX('Capture #3 CSV'!$A:$FF, Capture3_Length, E94))+1, \"\"))","v":""},{"$f":"IFERROR(IF(I93=\"\", \"\", AVERAGE(INDEX('Capture #1 CSV'!$A:$FF, Backend!F94, Backend!C94):INDEX('Capture #1 CSV'!$A:$FF, Capture1_Length, Backend!C94))), \"\")","v":""},{"$f":"IFERROR(IF(J93=\"\", \"\", AVERAGE(INDEX('Capture #2 CSV'!$A:$FF, Backend!G94, Backend!D94):INDEX('Capture #2 CSV'!$A:$FF, Capture2_Length, Backend!D94))), \"\")","v":""},{"$f":"IFERROR(IF(K93=\"\", \"\", AVERAGE(INDEX('Capture #3 CSV'!$A:$FF, Backend!H94, Backend!E94):INDEX('Capture #3 CSV'!$A:$FF, Capture3_Length, Backend!E94))), \"\")","v":""}]
["Core #20","CPUCoreUtil%[19]",{"$f":"IFERROR(IF(I94=\"\", \"\", MATCH($B95, 'Capture #1 CSV'!$1:$1, 0)), \"\")","v":""},{"$f":"IFERROR(IF(J94=\"\", \"\", MATCH($B95, 'Capture #2 CSV'!$1:$1, 0)), \"\")","v":""},{"$f":"IFERROR(IF(K94=\"\", \"\", MATCH($B95, 'Capture #3 CSV'!$1:$1, 0)), \"\")","v":""},{"$f":"IF(I94=\"\", \"\", IF(ISNUMBER(C95), Capture1_Length-COUNTA(INDEX('Capture #1 CSV'!$A:$FF, 2, C95):INDEX('Capture #1 CSV'!$A:$FF, Capture1_Length, C95))+1, \"\"))","v":""},{"$f":"IF(J94=\"\", \"\", IF(ISNUMBER(D95), Capture2_Length-COUNTA(INDEX('Capture #2 CSV'!$A:$FF, 2, D95):INDEX('Capture #2 CSV'!$A:$FF, Capture2_Length, D95))+1, \"\"))","v":""},{"$f":"IF(K94=\"\", \"\", IF(ISNUMBER(E95), Capture3_Length-COUNTA(INDEX('Capture #3 CSV'!$A:$FF, 2, E95):INDEX('Capture #3 CSV'!$A:$FF, Capture3_Length, E95))+1, \"\"))","v":""},{"$f":"IFERROR(IF(I94=\"\", \"\", AVERAGE(INDEX('Capture #1 CSV'!$A:$FF, Backend!F95, Backend!C95):INDEX('Capture #1 CSV'!$A:$FF, Capture1_Length, Backend!C95))), \"\")","v":""},{"$f":"IFERROR(IF(J94=\"\", \"\", AVERAGE(INDEX('Capture #2 CSV'!$A:$FF, Backend!G95, Backend!D95):INDEX('Capture #2 CSV'!$A:$FF, Capture2_Length, Backend!D95))), \"\")","v":""},{"$f":"IFERROR(IF(K94=\"\", \"\", AVERAGE(INDEX('Capture #3 CSV'!$A:$FF, Backend!H95, Backend!E95):INDEX('Capture #3 CSV'!$A:$FF, Capture3_Length, Backend!E95))), \"\")","v":""}]
["Core #21","CPUCoreUtil%[20]",{"$f":"IFERROR(IF(I95=\"\", \"\", MATCH($B96, 'Capture #1 CSV'!$1:$1, 0)), \"\")","v":""},{"$f":"IFERROR(IF(J95=\"\", \"\", MATCH($B96, 'Capture #2 CSV'!$1:$1, 0)), \"\")","v":""},{"$f":"IFERROR(IF(K95=\"\", \"\", MATCH($B96, 'Capture #3 CSV'!$1:$1, 0)), \"\")","v":""},{"$f":"IF(I95=\"\", \"\", IF(ISNUMBER(C96), Capture1_Length-COUNTA(INDEX('Capture #1 CSV'!$A:$FF, 2, C96):INDEX('Capture #1 CSV'!$A:$FF, Capture1_Length, C96))+1, \"\"))","v":""},{"$f":"IF(J95=\"\", \"\", IF(ISNUMBER(D96), Capture2_Length-COUNTA(INDEX('Capture #2 CSV'!$A:$FF, 2, D96):INDEX('Capture #2 CSV'!$A:$FF, Capture2_Length, D96))+1, \"\"))","v":""},{"$f":"IF(K95=\"\", \"\", IF(ISNUMBER(E96), Capture3_Length-COUNTA(INDEX('Capture #3 CSV'!$A:$FF, 2, E96):INDEX('Capture #3 CSV'!$A:$FF, Capture3_Length, E96))+1, \"\"))","v":""},{"$f":"IFERROR(IF(I95=\"\", \"\", AVERAGE(INDEX('Capture #1 CSV'!$A:$FF, Backend!F96, Backend!C96):INDEX('Capture #1 CSV'!$A:$FF, Capture1_Length, Backend!C96))), \"\")","v":""},{"$f":"IFERROR(IF(J95=\"\", \"\", AVERAGE(INDEX('Capture #2 CSV'!$A:$FF, Backend!G96, Backend!D96):INDEX('Capture #2 CSV'!$A:$FF, Capture2_Length, Backend!D96))), \"\")","v":""},{"$f":"IFERROR(IF(K95=\"\", \"\", AVERAGE(INDEX('Capture #3 CSV'!$A:$FF, Backend!H96, Backend!E96):INDEX('Capture #3 CSV'!$A:$FF, Capture3_Length, Backend!E96))), \"\")","v":""}]
["Core #22","CPUCoreUtil%[21]",{"$f":"IFERROR(IF(I96=\"\", \"\", MATCH($B97, 'Capture #1 CSV'!$1:$1, 0)), \"\")","v":""},{"$f":"IFERROR(IF(J96=\"\", \"\", MATCH($B97, 'Capture #2 CSV'!$1:$1, 0)), \"\")","v":""},{"$f":"IFERROR(IF(K96=\"\", \"\", MATCH($B97, 'Capture #3 CSV'!$1:$1, 0)), \"\")","v":""},{"$f":"IF(I96=\"\", \"\", IF(ISNUMBER(C97), Capture1_Length-COUNTA(INDEX('Capture #1 CSV'!$A:$FF, 2, C97):INDEX('Capture #1 CSV'!$A:$FF, Capture1_Length, C97))+1, \"\"))","v":""},{"$f":"IF(J96=\"\", \"\", IF(ISNUMBER(D97), Capture2_Length-COUNTA(INDEX('Capture #2 CSV'!$A:$FF, 2, D97):INDEX('Capture #2 CSV'!$A:$FF, Capture2_Length, D97))+1, \"\"))","v":""},{"$f":"IF(K96=\"\", \"\", IF(ISNUMBER(E97), Capture3_Length-COUNTA(INDEX('Capture #3 CSV'!$A:$FF, 2, E97):INDEX('Capture #3 CSV'!$A:$FF, Capture3_Length, E97))+1, \"\"))","v":""},{"$f":"IFERROR(IF(I96=\"\", \"\", AVERAGE(INDEX('Capture #1 CSV'!$A:$FF, Backend!F97, Backend!C97):INDEX('Capture #1 CSV'!$A:$FF, Capture1_Length, Backend!C97))), \"\")","v":""},{"$f":"IFERROR(IF(J96=\"\", \"\", AVERAGE(INDEX('Capture #2 CSV'!$A:$FF, Backend!G97, Backend!D97):INDEX('Capture #2 CSV'!$A:$FF, Capture2_Length, Backend!D97))), \"\")","v":""},{"$f":"IFERROR(IF(K96=\"\", \"\", AVERAGE(INDEX('Capture #3 CSV'!$A:$FF, Backend!H97, Backend!E97):INDEX('Capture #3 CSV'!$A:$FF, Capture3_Length, Backend!E97))), \"\")","v":""}]
["Core #23","CPUCoreUtil%[22]",{"$f":"IFERROR(IF(I97=\"\", \"\", MATCH($B98, 'Capture #1 CSV'!$1:$1, 0)), \"\")","v":""},{"$f":"IFERROR(IF(J97=\"\", \"\", MATCH($B98, 'Capture #2 CSV'!$1:$1, 0)), \"\")","v":""},{"$f":"IFERROR(IF(K97=\"\", \"\", MATCH($B98, 'Capture #3 CSV'!$1:$1, 0)), \"\")","v":""},{"$f":"IF(I97=\"\", \"\", IF(ISNUMBER(C98), Capture1_Length-COUNTA(INDEX('Capture #1 CSV'!$A:$FF, 2, C98):INDEX('Capture #1 CSV'!$A:$FF, Capture1_Length, C98))+1, \"\"))","v":""},{"$f":"IF(J97=\"\", \"\", IF(ISNUMBER(D98), Capture2_Length-COUNTA(INDEX('Capture #2 CSV'!$A:$FF, 2, D98):INDEX('Capture #2 CSV'!$A:$FF, Capture2_Length, D98))+1, \"\"))","v":""},{"$f":"IF(K97=\"\", \"\", IF(ISNUMBER(E98), Capture3_Length-COUNTA(INDEX('Capture #3 CSV'!$A:$FF, 2, E98):INDEX('Capture #3 CSV'!$A:$FF, Capture3_Length, E98))+1, \"\"))","v":""},{"$f":"IFERROR(IF(I97=\"\", \"\", AVERAGE(INDEX('Capture #1 CSV'!$A:$FF, Backend!F98, Backend!C98):INDEX('Capture #1 CSV'!$A:$FF, Capture1_Length, Backend!C98))), \"\")","v":""},{"$f":"IFERROR(IF(J97=\"\", \"\", AVERAGE(INDEX('Capture #2 CSV'!$A:$FF, Backend!G98, Backend!D98):INDEX('Capture #2 CSV'!$A:$FF, Capture2_Length, Backend!D98))), \"\")","v":""},{"$f":"IFERROR(IF(K97=\"\", \"\", AVERAGE(INDEX('Capture #3 CSV'!$A:$FF, Backend!H98, Backend!E98):INDEX('Capture #3 CSV'!$A:$FF, Capture3_Length, Backend!E98))), \"\")","v":""}]
["Core #24","CPUCoreUtil%[23]",{"$f":"IFERROR(IF(I98=\"\", \"\", MATCH($B99, 'Capture #1 CSV'!$1:$1, 0)), \"\")","v":""},{"$f":"IFERROR(IF(J98=\"\", \"\", MATCH($B99, 'Capture #2 CSV'!$1:$1, 0)), \"\")","v":""},{"$f":"IFERROR(IF(K98=\"\", \"\", MATCH($B99, 'Capture #3 CSV'!$1:$1, 0)), \"\")","v":""},{"$f":"IF(I98=\"\", \"\", IF(ISNUMBER(C99), Capture1_Length-COUNTA(INDEX('Capture #1 CSV'!$A:$FF, 2, C99):INDEX('Capture #1 CSV'!$A:$FF, Capture1_Length, C99))+1, \"\"))","v":""},{"$f":"IF(J98=\"\", \"\", IF(ISNUMBER(D99), Capture2_Length-COUNTA(INDEX('Capture #2 CSV'!$A:$FF, 2, D99):INDEX('Capture #2 CSV'!$A:$FF, Capture2_Length, D99))+1, \"\"))","v":""},{"$f":"IF(K98=\"\", \"\", IF(ISNUMBER(E99), Capture3_Length-COUNTA(INDEX('Capture #3 CSV'!$A:$FF, 2, E99):INDEX('Capture #3 CSV'!$A:$FF, Capture3_Length, E99))+1, \"\"))","v":""},{"$f":"IFERROR(IF(I98=\"\", \"\", AVERAGE(INDEX('Capture #1 CSV'!$A:$FF, Backend!F99, Backend!C99):INDEX('Capture #1 CSV'!$A:$FF, Capture1_Length, Backend!C99))), \"\")","v":""},{"$f":"IFERROR(IF(J98=\"\", \"\", AVERAGE(INDEX('Capture #2 CSV'!$A:$FF, Backend!G99, Backend!D99):INDEX('Capture #2 CSV'!$A:$FF, Capture2_Length, Backend!D99))), \"\")","v":""},{"$f":"IFERROR(IF(K98=\"\", \"\", AVERAGE(INDEX('Capture #3 CSV'!$A:$FF, Backend!H99, Backend!E99):INDEX('Capture #3 CSV'!$A:$FF, Capture3_Length, Backend!E99))), \"\")","v":""}]
["Core #25","CPUCoreUtil%[24]",{"$f":"IFERROR(IF(I99=\"\", \"\", MATCH($B100, 'Capture #1 CSV'!$1:$1, 0)), \"\")","v":""},{"$f":"IFERROR(IF(J99=\"\", \"\", MATCH($B100, 'Capture #2 CSV'!$1:$1, 0)), \"\")","v":""},{"$f":"IFERROR(IF(K99=\"\", \"\", MATCH($B100, 'Capture #3 CSV'!$1:$1, 0)), \"\")","v":""},{"$f":"IF(I99=\"\", \"\", IF(ISNUMBER(C100), Capture1_Length-COUNTA(INDEX('Capture #1 CSV'!$A:$FF, 2, C100):INDEX('Capture #1 CSV'!$A:$FF, Capture1_Length, C100))+1, \"\"))","v":""},{"$f":"IF(J99=\"\", \"\", IF(ISNUMBER(D100), Capture2_Length-COUNTA(INDEX('Capture #2 CSV'!$A:$FF, 2, D100):INDEX('Capture #2 CSV'!$A:$FF, Capture2_Length, D100))+1, \"\"))","v":""},{"$f":"IF(K99=\"\", \"\", IF(ISNUMBER(E100), Capture3_Length-COUNTA(INDEX('Capture #3 CSV'!$A:$FF, 2, E100):INDEX('Capture #3 CSV'!$A:$FF, Capture3_Length, E100))+1, \"\"))","v":""},{"$f":"IFERROR(IF(I99=\"\", \"\", AVERAGE(INDEX('Capture #1 CSV'!$A:$FF, Backend!F100, Backend!C100):INDEX('Capture #1 CSV'!$A:$FF, Capture1_Length, Backend!C100))), \"\")","v":""},{"$f":"IFERROR(IF(J99=\"\", \"\", AVERAGE(INDEX('Capture #2 CSV'!$A:$FF, Backend!G100, Backend!D100):INDEX('Capture #2 CSV'!$A:$FF, Capture2_Length, Backend!D100))), \"\")","v":""},{"$f":"IFERROR(IF(K99=\"\", \"\", AVERAGE(INDEX('Capture #3 CSV'!$A:$FF, Backend!H100, Backend!E100):INDEX('Capture #3 CSV'!$A:$FF, Capture3_Length, Backend!E100))), \"\")","v":""}]
["Core #26","CPUCoreUtil%[25]",{"$f":"IFERROR(IF(I100=\"\", \"\", MATCH($B101, 'Capture #1 CSV'!$1:$1, 0)), \"\")","v":""},{"$f":"IFERROR(IF(J100=\"\", \"\", MATCH($B101, 'Capture #2 CSV'!$1:$1, 0)), \"\")","v":""},{"$f":"IFERROR(IF(K100=\"\", \"\", MATCH($B101, 'Capture #3 CSV'!$1:$1, 0)), \"\")","v":""},{"$f":"IF(I100=\"\", \"\", IF(ISNUMBER(C101), Capture1_Length-COUNTA(INDEX('Capture #1 CSV'!$A:$FF, 2, C101):INDEX('Capture #1 CSV'!$A:$FF, Capture1_Length, C101))+1, \"\"))","v":""},{"$f":"IF(J100=\"\", \"\", IF(ISNUMBER(D101), Capture2_Length-COUNTA(INDEX('Capture #2 CSV'!$A:$FF, 2, D101):INDEX('Capture #2 CSV'!$A:$FF, Capture2_Length, D101))+1, \"\"))","v":""},{"$f":"IF(K100=\"\", \"\", IF(ISNUMBER(E101), Capture3_Length-COUNTA(INDEX('Capture #3 CSV'!$A:$FF, 2, E101):INDEX('Capture #3 CSV'!$A:$FF, Capture3_Length, E101))+1, \"\"))","v":""},{"$f":"IFERROR(IF(I100=\"\", \"\", AVERAGE(INDEX('Capture #1 CSV'!$A:$FF, Backend!F101, Backend!C101):INDEX('Capture #1 CSV'!$A:$FF, Capture1_Length, Backend!C101))), \"\")","v":""},{"$f":"IFERROR(IF(J100=\"\", \"\", AVERAGE(INDEX('Capture #2 CSV'!$A:$FF, Backend!G101, Backend!D101):INDEX('Capture #2 CSV'!$A:$FF, Capture2_Length, Backend!D101))), \"\")","v":""},{"$f":"IFERROR(IF(K100=\"\", \"\", AVERAGE(INDEX('Capture #3 CSV'!$A:$FF, Backend!H101, Backend!E101):INDEX('Capture #3 CSV'!$A:$FF, Capture3_Length, Backend!E101))), \"\")","v":""}]
["Core #27","CPUCoreUtil%[26]",{"$f":"IFERROR(IF(I101=\"\", \"\", MATCH($B102, 'Capture #1 CSV'!$1:$1, 0)), \"\")","v":""},{"$f":"IFERROR(IF(J101=\"\", \"\", MATCH($B102, 'Capture #2 CSV'!$1:$1, 0)), \"\")","v":""},{"$f":"IFERROR(IF(K101=\"\", \"\", MATCH($B102, 'Capture #3 CSV'!$1:$1, 0)), \"\")","v":""},{"$f":"IF(I101=\"\", \"\", IF(ISNUMBER(C102), Capture1_Length-COUNTA(INDEX('Capture #1 CSV'!$A:$FF, 2, C102):INDEX('Capture #1 CSV'!$A:$FF, Capture1_Length, C102))+1, \"\"))","v":""},{"$f":"IF(J101=\"\", \"\", IF(ISNUMBER(D102), Capture2_Length-COUNTA(INDEX('Capture #2 CSV'!$A:$FF, 2, D102):INDEX('Capture #2 CSV'!$A:$FF, Capture2_Length, D102))+1, \"\"))","v":""},{"$f":"IF(K101=\"\", \"\", IF(ISNUMBER(E102), Capture3_Length-COUNTA(INDEX('Capture #3 CSV'!$A:$FF, 2, E102):INDEX('Capture #3 CSV'!$A:$FF, Capture3_Length, E102))+1, \"\"))","v":""},{"$f":"IFERROR(IF(I101=\"\", \"\", AVERAGE(INDEX('Capture #1 CSV'!$A:$FF, Backend!F102, Backend!C102):INDEX('Capture #1 CSV'!$A:$FF, Capture1_Length, Backend!C102))), \"\")","v":""},{"$f":"IFERROR(IF(J101=\"\", \"\", AVERAGE(INDEX('Capture #2 CSV'!$A:$FF, Backend!G102, Backend!D102):INDEX('Capture #2 CSV'!$A:$FF, Capture2_Length, Backend!D102))), \"\")","v":""},{"$f":"IFERROR(IF(K101=\"\", \"\", AVERAGE(INDEX('Capture #3 CSV'!$A:$FF, Backend!H102, Backend!E102):INDEX('Capture #3 CSV'!$A:$FF, Capture3_Length, Backend!E102))), \"\")","v":""}]
["Core #28","CPUCoreUtil%[27]",{"$f":"IFERROR(IF(I102=\"\", \"\", MATCH($B103, 'Capture #1 CSV'!$1:$1, 0)), \"\")","v":""},{"$f":"IFERROR(IF(J102=\"\", \"\", MATCH($B103, 'Capture #2 CSV'!$1:$1, 0)), \"\")","v":""},{"$f":"IFERROR(IF(K102=\"\", \"\", MATCH($B103, 'Capture #3 CSV'!$1:$1, 0)), \"\")","v":""},{"$f":"IF(I102=\"\", \"\", IF(ISNUMBER(C103), Capture1_Length-COUNTA(INDEX('Capture #1 CSV'!$A:$FF, 2, C103):INDEX('Capture #1 CSV'!$A:$FF, Capture1_Length, C103))+1, \"\"))","v":""},{"$f":"IF(J102=\"\", \"\", IF(ISNUMBER(D103), Capture2_Length-COUNTA(INDEX('Capture #2 CSV'!$A:$FF, 2, D103):INDEX('Capture #2 CSV'!$A:$FF, Capture2_Length, D103))+1, \"\"))","v":""},{"$f":"IF(K102=\"\", \"\", IF(ISNUMBER(E103), Capture3_Length-COUNTA(INDEX('Capture #3 CSV'!$A:$FF, 2, E103):INDEX('Capture #3 CSV'!$A:$FF, Capture3_Length, E103))+1, \"\"))","v":""},{"$f":"IFERROR(IF(I102=\"\", \"\", AVERAGE(INDEX('Capture #1 CSV'!$A:$FF, Backend!F103, Backend!C103):INDEX('Capture #1 CSV'!$A:$FF, Capture1_Length, Backend!C103))), \"\")","v":""},{"$f":"IFERROR(IF(J102=\"\", \"\", AVERAGE(INDEX('Capture #2 CSV'!$A:$FF, Backend!G103, Backend!D103):INDEX('Capture #2 CSV'!$A:$FF, Capture2_Length, Backend!D103))), \"\")","v":""},{"$f":"IFERROR(IF(K102=\"\", \"\", AVERAGE(INDEX('Capture #3 CSV'!$A:$FF, Backend!H103, Backend!E103):INDEX('Capture #3 CSV'!$A:$FF, Capture3_Length, Backend!E103))), \"\")","v":""}]
["Core #29","CPUCoreUtil%[28]",{"$f":"IFERROR(IF(I103=\"\", \"\", MATCH($B104, 'Capture #1 CSV'!$1:$1, 0)), \"\")","v":""},{"$f":"IFERROR(IF(J103=\"\", \"\", MATCH($B104, 'Capture #2 CSV'!$1:$1, 0)), \"\")","v":""},{"$f":"IFERROR(IF(K103=\"\", \"\", MATCH($B104, 'Capture #3 CSV'!$1:$1, 0)), \"\")","v":""},{"$f":"IF(I103=\"\", \"\", IF(ISNUMBER(C104), Capture1_Length-COUNTA(INDEX('Capture #1 CSV'!$A:$FF, 2, C104):INDEX('Capture #1 CSV'!$A:$FF, Capture1_Length, C104))+1, \"\"))","v":""},{"$f":"IF(J103=\"\", \"\", IF(ISNUMBER(D104), Capture2_Length-COUNTA(INDEX('Capture #2 CSV'!$A:$FF, 2, D104):INDEX('Capture #2 CSV'!$A:$FF, Capture2_Length, D104))+1, \"\"))","v":""},{"$f":"IF(K103=\"\", \"\", IF(ISNUMBER(E104), Capture3_Length-COUNTA(INDEX('Capture #3 CSV'!$A:$FF, 2, E104):INDEX('Capture #3 CSV'!$A:$FF, Capture3_Length, E104))+1, \"\"))","v":""},{"$f":"IFERROR(IF(I103=\"\", \"\", AVERAGE(INDEX('Capture #1 CSV'!$A:$FF, Backend!F104, Backend!C104):INDEX('Capture #1 CSV'!$A:$FF, Capture1_Length, Backend!C104))), \"\")","v":""},{"$f":"IFERROR(IF(J103=\"\", \"\", AVERAGE(INDEX('Capture #2 CSV'!$A:$FF, Backend!G104, Backend!D104):INDEX('Capture #2 CSV'!$A:$FF, Capture2_Length, Backend!D104))), \"\")","v":""},{"$f":"IFERROR(IF(K103=\"\", \"\", AVERAGE(INDEX('Capture #3 CSV'!$A:$FF, Backend!H104, Backend!E104):INDEX('Capture #3 CSV'!$A:$FF, Capture3_Length, Backend!E104))), \"\")","v":""}]
["Core #30","CPUCoreUtil%[29]",{"$f":"IFERROR(IF(I104=\"\", \"\", MATCH($B105, 'Capture #1 CSV'!$1:$1, 0)), \"\")","v":""},{"$f":"IFERROR(IF(J104=\"\", \"\", MATCH($B105, 'Capture #2 CSV'!$1:$1, 0)), \"\")","v":""},{"$f":"IFERROR(IF(K104=\"\", \"\", MATCH($B105, 'Capture #3 CSV'!$1:$1, 0)), \"\")","v":""},{"$f":"IF(I104=\"\", \"\", IF(ISNUMBER(C105), Capture1_Length-COUNTA(INDEX('Capture #1 CSV'!$A:$FF, 2, C105):INDEX('Capture #1 CSV'!$A:$FF, Capture1_Length, C105))+1, \"\"))","v":""},{"$f":"IF(J104=\"\", \"\", IF(ISNUMBER(D105), Capture2_Length-COUNTA(INDEX('Capture #2 CSV'!$A:$FF, 2, D105):INDEX('Capture #2 CSV'!$A:$FF, Capture2_Length, D105))+1, \"\"))","v":""},{"$f":"IF(K104=\"\", \"\", IF(ISNUMBER(E105), Capture3_Length-COUNTA(INDEX('Capture #3 CSV'!$A:$FF, 2, E105):INDEX('Capture #3 CSV'!$A:$FF, Capture3_Length, E105))+1, \"\"))","v":""},{"$f":"IFERROR(IF(I104=\"\", \"\", AVERAGE(INDEX('Capture #1 CSV'!$A:$FF, Backend!F105, Backend!C105):INDEX('Capture #1 CSV'!$A:$FF, Capture1_Length, Backend!C105))), \"\")","v":""},{"$f":"IFERROR(IF(J104=\"\", \"\", AVERAGE(INDEX('Capture #2 CSV'!$A:$FF, Backend!G105, Backend!D105):INDEX('Capture #2 CSV'!$A:$FF, Capture2_Length, Backend!D105))), \"\")","v":""},{"$f":"IFERROR(IF(K104=\"\", \"\", AVERAGE(INDEX('Capture #3 CSV'!$A:$FF, Backend!H105, Backend!E105):INDEX('Capture #3 CSV'!$A:$FF, Capture3_Length, Backend!E105))), \"\")","v":""}]
["Core #31","CPUCoreUtil%[30]",{"$f":"IFERROR(IF(I105=\"\", \"\", MATCH($B106, 'Capture #1 CSV'!$1:$1, 0)), \"\")","v":""},{"$f":"IFERROR(IF(J105=\"\", \"\", MATCH($B106, 'Capture #2 CSV'!$1:$1, 0)), \"\")","v":""},{"$f":"IFERROR(IF(K105=\"\", \"\", MATCH($B106, 'Capture #3 CSV'!$1:$1, 0)), \"\")","v":""},{"$f":"IF(I105=\"\", \"\", IF(ISNUMBER(C106), Capture1_Length-COUNTA(INDEX('Capture #1 CSV'!$A:$FF, 2, C106):INDEX('Capture #1 CSV'!$A:$FF, Capture1_Length, C106))+1, \"\"))","v":""},{"$f":"IF(J105=\"\", \"\", IF(ISNUMBER(D106), Capture2_Length-COUNTA(INDEX('Capture #2 CSV'!$A:$FF, 2, D106):INDEX('Capture #2 CSV'!$A:$FF, Capture2_Length, D106))+1, \"\"))","v":""},{"$f":"IF(K105=\"\", \"\", IF(ISNUMBER(E106), Capture3_Length-COUNTA(INDEX('Capture #3 CSV'!$A:$FF, 2, E106):INDEX('Capture #3 CSV'!$A:$FF, Capture3_Length, E106))+1, \"\"))","v":""},{"$f":"IFERROR(IF(I105=\"\", \"\", AVERAGE(INDEX('Capture #1 CSV'!$A:$FF, Backend!F106, Backend!C106):INDEX('Capture #1 CSV'!$A:$FF, Capture1_Length, Backend!C106))), \"\")","v":""},{"$f":"IFERROR(IF(J105=\"\", \"\", AVERAGE(INDEX('Capture #2 CSV'!$A:$FF, Backend!G106, Backend!D106):INDEX('Capture #2 CSV'!$A:$FF, Capture2_Length, Backend!D106))), \"\")","v":""},{"$f":"IFERROR(IF(K105=\"\", \"\", AVERAGE(INDEX('Capture #3 CSV'!$A:$FF, Backend!H106, Backend!E106):INDEX('Capture #3 CSV'!$A:$FF, Capture3_Length, Backend!E106))), \"\")","v":""}]
["Core #32","CPUCoreUtil%[31]",{"$f":"IFERROR(IF(I106=\"\", \"\", MATCH($B107, 'Capture #1 CSV'!$1:$1, 0)), \"\")","v":""},{"$f":"IFERROR(IF(J106=\"\", \"\", MATCH($B107, 'Capture #2 CSV'!$1:$1, 0)), \"\")","v":""},{"$f":"IFERROR(IF(K106=\"\", \"\", MATCH($B107, 'Capture #3 CSV'!$1:$1, 0)), \"\")","v":""},{"$f":"IF(I106=\"\", \"\", IF(ISNUMBER(C107), Capture1_Length-COUNTA(INDEX('Capture #1 CSV'!$A:$FF, 2, C107):INDEX('Capture #1 CSV'!$A:$FF, Capture1_Length, C107))+1, \"\"))","v":""},{"$f":"IF(J106=\"\", \"\", IF(ISNUMBER(D107), Capture2_Length-COUNTA(INDEX('Capture #2 CSV'!$A:$FF, 2, D107):INDEX('Capture #2 CSV'!$A:$FF, Capture2_Length, D107))+1, \"\"))","v":""},{"$f":"IF(K106=\"\", \"\", IF(ISNUMBER(E107), Capture3_Length-COUNTA(INDEX('Capture #3 CSV'!$A:$FF, 2, E107):INDEX('Capture #3 CSV'!$A:$FF, Capture3_Length, E107))+1, \"\"))","v":""},{"$f":"IFERROR(IF(I106=\"\", \"\", AVERAGE(INDEX('Capture #1 CSV'!$A:$FF, Backend!F107, Backend!C107):INDEX('Capture #1 CSV'!$A:$FF, Capture1_Length, Backend!C107))), \"\")","v":""},{"$f":"IFERROR(IF(J106=\"\", \"\", AVERAGE(INDEX('Capture #2 CSV'!$A:$FF, Backend!G107, Backend!D107):INDEX('Capture #2 CSV'!$A:$FF, Capture2_Length, Backend!D107))), \"\")","v":""},{"$f":"IFERROR(IF(K106=\"\", \"\", AVERAGE(INDEX('Capture #3 CSV'!$A:$FF, Backend!H107, Backend!E107):INDEX('Capture #3 CSV'!$A:$FF, Capture3_Length, Backend!E107))), \"\")","v":""}]
["Core #33","CPUCoreUtil%[32]",{"$f":"IFERROR(IF(I107=\"\", \"\", MATCH($B108, 'Capture #1 CSV'!$1:$1, 0)), \"\")","v":""},{"$f":"IFERROR(IF(J107=\"\", \"\", MATCH($B108, 'Capture #2 CSV'!$1:$1, 0)), \"\")","v":""},{"$f":"IFERROR(IF(K107=\"\", \"\", MATCH($B108, 'Capture #3 CSV'!$1:$1, 0)), \"\")","v":""},{"$f":"IF(I107=\"\", \"\", IF(ISNUMBER(C108), Capture1_Length-COUNTA(INDEX('Capture #1 CSV'!$A:$FF, 2, C108):INDEX('Capture #1 CSV'!$A:$FF, Capture1_Length, C108))+1, \"\"))","v":""},{"$f":"IF(J107=\"\", \"\", IF(ISNUMBER(D108), Capture2_Length-COUNTA(INDEX('Capture #2 CSV'!$A:$FF, 2, D108):INDEX('Capture #2 CSV'!$A:$FF, Capture2_Length, D108))+1, \"\"))","v":""},{"$f":"IF(K107=\"\", \"\", IF(ISNUMBER(E108), Capture3_Length-COUNTA(INDEX('Capture #3 CSV'!$A:$FF, 2, E108):INDEX('Capture #3 CSV'!$A:$FF, Capture3_Length, E108))+1, \"\"))","v":""},{"$f":"IFERROR(IF(I107=\"\", \"\", AVERAGE(INDEX('Capture #1 CSV'!$A:$FF, Backend!F108, Backend!C108):INDEX('Capture #1 CSV'!$A:$FF, Capture1_Length, Backend!C108))), \"\")","v":""},{"$f":"IFERROR(IF(J107=\"\", \"\", AVERAGE(INDEX('Capture #2 CSV'!$A:$FF, Backend!G108, Backend!D108):INDEX('Capture #2 CSV'!$A:$FF, Capture2_Length, Backend!D108))), \"\")","v":""},{"$f":"IFERROR(IF(K107=\"\", \"\", AVERAGE(INDEX('Capture #3 CSV'!$A:$FF, Backend!H108, Backend!E108):INDEX('Capture #3 CSV'!$A:$FF, Capture3_Length, Backend!E108))), \"\")","v":""}]
["Core #34","CPUCoreUtil%[33]",{"$f":"IFERROR(IF(I108=\"\", \"\", MATCH($B109, 'Capture #1 CSV'!$1:$1, 0)), \"\")","v":""},{"$f":"IFERROR(IF(J108=\"\", \"\", MATCH($B109, 'Capture #2 CSV'!$1:$1, 0)), \"\")","v":""},{"$f":"IFERROR(IF(K108=\"\", \"\", MATCH($B109, 'Capture #3 CSV'!$1:$1, 0)), \"\")","v":""},{"$f":"IF(I108=\"\", \"\", IF(ISNUMBER(C109), Capture1_Length-COUNTA(INDEX('Capture #1 CSV'!$A:$FF, 2, C109):INDEX('Capture #1 CSV'!$A:$FF, Capture1_Length, C109))+1, \"\"))","v":""},{"$f":"IF(J108=\"\", \"\", IF(ISNUMBER(D109), Capture2_Length-COUNTA(INDEX('Capture #2 CSV'!$A:$FF, 2, D109):INDEX('Capture #2 CSV'!$A:$FF, Capture2_Length, D109))+1, \"\"))","v":""},{"$f":"IF(K108=\"\", \"\", IF(ISNUMBER(E109), Capture3_Length-COUNTA(INDEX('Capture #3 CSV'!$A:$FF, 2, E109):INDEX('Capture #3 CSV'!$A:$FF, Capture3_Length, E109))+1, \"\"))","v":""},{"$f":"IFERROR(IF(I108=\"\", \"\", AVERAGE(INDEX('Capture #1 CSV'!$A:$FF, Backend!F109, Backend!C109):INDEX('Capture #1 CSV'!$A:$FF, Capture1_Length, Backend!C109))), \"\")","v":""},{"$f":"IFERROR(IF(J108=\"\", \"\", AVERAGE(INDEX('Capture #2 CSV'!$A:$FF, Backend!G109, Backend!D109):INDEX('Capture #2 CSV'!$A:$FF, Capture2_Length, Backend!D109))), \"\")","v":""},{"$f":"IFERROR(IF(K108=\"\", \"\", AVERAGE(INDEX('Capture #3 CSV'!$A:$FF, Backend!H109, Backend!E109):INDEX('Capture #3 CSV'!$A:$FF, Capture3_Length, Backend!E109))), \"\")","v":""}]
["Core #35","CPUCoreUtil%[34]",{"$f":"IFERROR(IF(I109=\"\", \"\", MATCH($B110, 'Capture #1 CSV'!$1:$1, 0)), \"\")","v":""},{"$f":"IFERROR(IF(J109=\"\", \"\", MATCH($B110, 'Capture #2 CSV'!$1:$1, 0)), \"\")","v":""},{"$f":"IFERROR(IF(K109=\"\", \"\", MATCH($B110, 'Capture #3 CSV'!$1:$1, 0)), \"\")","v":""},{"$f":"IF(I109=\"\", \"\", IF(ISNUMBER(C110), Capture1_Length-COUNTA(INDEX('Capture #1 CSV'!$A:$FF, 2, C110):INDEX('Capture #1 CSV'!$A:$FF, Capture1_Length, C110))+1, \"\"))","v":""},{"$f":"IF(J109=\"\", \"\", IF(ISNUMBER(D110), Capture2_Length-COUNTA(INDEX('Capture #2 CSV'!$A:$FF, 2, D110):INDEX('Capture #2 CSV'!$A:$FF, Capture2_Length, D110))+1, \"\"))","v":""},{"$f":"IF(K109=\"\", \"\", IF(ISNUMBER(E110), Capture3_Length-COUNTA(INDEX('Capture #3 CSV'!$A:$FF, 2, E110):INDEX('Capture #3 CSV'!$A:$FF, Capture3_Length, E110))+1, \"\"))","v":""},{"$f":"IFERROR(IF(I109=\"\", \"\", AVERAGE(INDEX('Capture #1 CSV'!$A:$FF, Backend!F110, Backend!C110):INDEX('Capture #1 CSV'!$A:$FF, Capture1_Length, Backend!C110))), \"\")","v":""},{"$f":"IFERROR(IF(J109=\"\", \"\", AVERAGE(INDEX('Capture #2 CSV'!$A:$FF, Backend!G110, Backend!D110):INDEX('Capture #2 CSV'!$A:$FF, Capture2_Length, Backend!D110))), \"\")","v":""},{"$f":"IFERROR(IF(K109=\"\", \"\", AVERAGE(INDEX('Capture #3 CSV'!$A:$FF, Backend!H110, Backend!E110):INDEX('Capture #3 CSV'!$A:$FF, Capture3_Length, Backend!E110))), \"\")","v":""}]
["Core #36","CPUCoreUtil%[35]",{"$f":"IFERROR(IF(I110=\"\", \"\", MATCH($B111, 'Capture #1 CSV'!$1:$1, 0)), \"\")","v":""},{"$f":"IFERROR(IF(J110=\"\", \"\", MATCH($B111, 'Capture #2 CSV'!$1:$1, 0)), \"\")","v":""},{"$f":"IFERROR(IF(K110=\"\", \"\", MATCH($B111, 'Capture #3 CSV'!$1:$1, 0)), \"\")","v":""},{"$f":"IF(I110=\"\", \"\", IF(ISNUMBER(C111), Capture1_Length-COUNTA(INDEX('Capture #1 CSV'!$A:$FF, 2, C111):INDEX('Capture #1 CSV'!$A:$FF, Capture1_Length, C111))+1, \"\"))","v":""},{"$f":"IF(J110=\"\", \"\", IF(ISNUMBER(D111), Capture2_Length-COUNTA(INDEX('Capture #2 CSV'!$A:$FF, 2, D111):INDEX('Capture #2 CSV'!$A:$FF, Capture2_Length, D111))+1, \"\"))","v":""},{"$f":"IF(K110=\"\", \"\", IF(ISNUMBER(E111), Capture3_Length-COUNTA(INDEX('Capture #3 CSV'!$A:$FF, 2, E111):INDEX('Capture #3 CSV'!$A:$FF, Capture3_Length, E111))+1, \"\"))","v":""},{"$f":"IFERROR(IF(I110=\"\", \"\", AVERAGE(INDEX('Capture #1 CSV'!$A:$FF, Backend!F111, Backend!C111):INDEX('Capture #1 CSV'!$A:$FF, Capture1_Length, Backend!C111))), \"\")","v":""},{"$f":"IFERROR(IF(J110=\"\", \"\", AVERAGE(INDEX('Capture #2 CSV'!$A:$FF, Backend!G111, Backend!D111):INDEX('Capture #2 CSV'!$A:$FF, Capture2_Length, Backend!D111))), \"\")","v":""},{"$f":"IFERROR(IF(K110=\"\", \"\", AVERAGE(INDEX('Capture #3 CSV'!$A:$FF, Backend!H111, Backend!E111):INDEX('Capture #3 CSV'!$A:$FF, Capture3_Length, Backend!E111))), \"\")","v":""}]
["Core #37","CPUCoreUtil%[36]",{"$f":"IFERROR(IF(I111=\"\", \"\", MATCH($B112, 'Capture #1 CSV'!$1:$1, 0)), \"\")","v":""},{"$f":"IFERROR(IF(J111=\"\", \"\", MATCH($B112, 'Capture #2 CSV'!$1:$1, 0)), \"\")","v":""},{"$f":"IFERROR(IF(K111=\"\", \"\", MATCH($B112, 'Capture #3 CSV'!$1:$1, 0)), \"\")","v":""},{"$f":"IF(I111=\"\", \"\", IF(ISNUMBER(C112), Capture1_Length-COUNTA(INDEX('Capture #1 CSV'!$A:$FF, 2, C112):INDEX('Capture #1 CSV'!$A:$FF, Capture1_Length, C112))+1, \"\"))","v":""},{"$f":"IF(J111=\"\", \"\", IF(ISNUMBER(D112), Capture2_Length-COUNTA(INDEX('Capture #2 CSV'!$A:$FF, 2, D112):INDEX('Capture #2 CSV'!$A:$FF, Capture2_Length, D112))+1, \"\"))","v":""},{"$f":"IF(K111=\"\", \"\", IF(ISNUMBER(E112), Capture3_Length-COUNTA(INDEX('Capture #3 CSV'!$A:$FF, 2, E112):INDEX('Capture #3 CSV'!$A:$FF, Capture3_Length, E112))+1, \"\"))","v":""},{"$f":"IFERROR(IF(I111=\"\", \"\", AVERAGE(INDEX('Capture #1 CSV'!$A:$FF, Backend!F112, Backend!C112):INDEX('Capture #1 CSV'!$A:$FF, Capture1_Length, Backend!C112))), \"\")","v":""},{"$f":"IFERROR(IF(J111=\"\", \"\", AVERAGE(INDEX('Capture #2 CSV'!$A:$FF, Backend!G112, Backend!D112):INDEX('Capture #2 CSV'!$A:$FF, Capture2_Length, Backend!D112))), \"\")","v":""},{"$f":"IFERROR(IF(K111=\"\", \"\", AVERAGE(INDEX('Capture #3 CSV'!$A:$FF, Backend!H112, Backend!E112):INDEX('Capture #3 CSV'!$A:$FF, Capture3_Length, Backend!E112))), \"\")","v":""}]
["Core #38","CPUCoreUtil%[37]",{"$f":"IFERROR(IF(I112=\"\", \"\", MATCH($B113, 'Capture #1 CSV'!$1:$1, 0)), \"\")","v":""},{"$f":"IFERROR(IF(J112=\"\", \"\", MATCH($B113, 'Capture #2 CSV'!$1:$1, 0)), \"\")","v":""},{"$f":"IFERROR(IF(K112=\"\", \"\", MATCH($B113, 'Capture #3 CSV'!$1:$1, 0)), \"\")","v":""},{"$f":"IF(I112=\"\", \"\", IF(ISNUMBER(C113), Capture1_Length-COUNTA(INDEX('Capture #1 CSV'!$A:$FF, 2, C113):INDEX('Capture #1 CSV'!$A:$FF, Capture1_Length, C113))+1, \"\"))","v":""},{"$f":"IF(J112=\"\", \"\", IF(ISNUMBER(D113), Capture2_Length-COUNTA(INDEX('Capture #2 CSV'!$A:$FF, 2, D113):INDEX('Capture #2 CSV'!$A:$FF, Capture2_Length, D113))+1, \"\"))","v":""},{"$f":"IF(K112=\"\", \"\", IF(ISNUMBER(E113), Capture3_Length-COUNTA(INDEX('Capture #3 CSV'!$A:$FF, 2, E113):INDEX('Capture #3 CSV'!$A:$FF, Capture3_Length, E113))+1, \"\"))","v":""},{"$f":"IFERROR(IF(I112=\"\", \"\", AVERAGE(INDEX('Capture #1 CSV'!$A:$FF, Backend!F113, Backend!C113):INDEX('Capture #1 CSV'!$A:$FF, Capture1_Length, Backend!C113))), \"\")","v":""},{"$f":"IFERROR(IF(J112=\"\", \"\", AVERAGE(INDEX('Capture #2 CSV'!$A:$FF, Backend!G113, Backend!D113):INDEX('Capture #2 CSV'!$A:$FF, Capture2_Length, Backend!D113))), \"\")","v":""},{"$f":"IFERROR(IF(K112=\"\", \"\", AVERAGE(INDEX('Capture #3 CSV'!$A:$FF, Backend!H113, Backend!E113):INDEX('Capture #3 CSV'!$A:$FF, Capture3_Length, Backend!E113))), \"\")","v":""}]
["Core #39","CPUCoreUtil%[38]",{"$f":"IFERROR(IF(I113=\"\", \"\", MATCH($B114, 'Capture #1 CSV'!$1:$1, 0)), \"\")","v":""},{"$f":"IFERROR(IF(J113=\"\", \"\", MATCH($B114, 'Capture #2 CSV'!$1:$1, 0)), \"\")","v":""},{"$f":"IFERROR(IF(K113=\"\", \"\", MATCH($B114, 'Capture #3 CSV'!$1:$1, 0)), \"\")","v":""},{"$f":"IF(I113=\"\", \"\", IF(ISNUMBER(C114), Capture1_Length-COUNTA(INDEX('Capture #1 CSV'!$A:$FF, 2, C114):INDEX('Capture #1 CSV'!$A:$FF, Capture1_Length, C114))+1, \"\"))","v":""},{"$f":"IF(J113=\"\", \"\", IF(ISNUMBER(D114), Capture2_Length-COUNTA(INDEX('Capture #2 CSV'!$A:$FF, 2, D114):INDEX('Capture #2 CSV'!$A:$FF, Capture2_Length, D114))+1, \"\"))","v":""},{"$f":"IF(K113=\"\", \"\", IF(ISNUMBER(E114), Capture3_Length-COUNTA(INDEX('Capture #3 CSV'!$A:$FF, 2, E114):INDEX('Capture #3 CSV'!$A:$FF, Capture3_Length, E114))+1, \"\"))","v":""},{"$f":"IFERROR(IF(I113=\"\", \"\", AVERAGE(INDEX('Capture #1 CSV'!$A:$FF, Backend!F114, Backend!C114):INDEX('Capture #1 CSV'!$A:$FF, Capture1_Length, Backend!C114))), \"\")","v":""},{"$f":"IFERROR(IF(J113=\"\", \"\", AVERAGE(INDEX('Capture #2 CSV'!$A:$FF, Backend!G114, Backend!D114):INDEX('Capture #2 CSV'!$A:$FF, Capture2_Length, Backend!D114))), \"\")","v":""},{"$f":"IFERROR(IF(K113=\"\", \"\", AVERAGE(INDEX('Capture #3 CSV'!$A:$FF, Backend!H114, Backend!E114):INDEX('Capture #3 CSV'!$A:$FF, Capture3_Length, Backend!E114))), \"\")","v":""}]
["Core #40","CPUCoreUtil%[39]",{"$f":"IFERROR(IF(I114=\"\", \"\", MATCH($B115, 'Capture #1 CSV'!$1:$1, 0)), \"\")","v":""},{"$f":"IFERROR(IF(J114=\"\", \"\", MATCH($B115, 'Capture #2 CSV'!$1:$1, 0)), \"\")","v":""},{"$f":"IFERROR(IF(K114=\"\", \"\", MATCH($B115, 'Capture #3 CSV'!$1:$1, 0)), \"\")","v":""},{"$f":"IF(I114=\"\", \"\", IF(ISNUMBER(C115), Capture1_Length-COUNTA(INDEX('Capture #1 CSV'!$A:$FF, 2, C115):INDEX('Capture #1 CSV'!$A:$FF, Capture1_Length, C115))+1, \"\"))","v":""},{"$f":"IF(J114=\"\", \"\", IF(ISNUMBER(D115), Capture2_Length-COUNTA(INDEX('Capture #2 CSV'!$A:$FF, 2, D115):INDEX('Capture #2 CSV'!$A:$FF, Capture2_Length, D115))+1, \"\"))","v":""},{"$f":"IF(K114=\"\", \"\", IF(ISNUMBER(E115), Capture3_Length-COUNTA(INDEX('Capture #3 CSV'!$A:$FF, 2, E115):INDEX('Capture #3 CSV'!$A:$FF, Capture3_Length, E115))+1, \"\"))","v":""},{"$f":"IFERROR(IF(I114=\"\", \"\", AVERAGE(INDEX('Capture #1 CSV'!$A:$FF, Backend!F115, Backend!C115):INDEX('Capture #1 CSV'!$A:$FF, Capture1_Length, Backend!C115))), \"\")","v":""},{"$f":"IFERROR(IF(J114=\"\", \"\", AVERAGE(INDEX('Capture #2 CSV'!$A:$FF, Backend!G115, Backend!D115):INDEX('Capture #2 CSV'!$A:$FF, Capture2_Length, Backend!D115))), \"\")","v":""},{"$f":"IFERROR(IF(K114=\"\", \"\", AVERAGE(INDEX('Capture #3 CSV'!$A:$FF, Backend!H115, Backend!E115):INDEX('Capture #3 CSV'!$A:$FF, Capture3_Length, Backend!E115))), \"\")","v":""}]
["Core #41","CPUCoreUtil%[40]",{"$f":"IFERROR(IF(I115=\"\", \"\", MATCH($B116, 'Capture #1 CSV'!$1:$1, 0)), \"\")","v":""},{"$f":"IFERROR(IF(J115=\"\", \"\", MATCH($B116, 'Capture #2 CSV'!$1:$1, 0)), \"\")","v":""},{"$f":"IFERROR(IF(K115=\"\", \"\", MATCH($B116, 'Capture #3 CSV'!$1:$1, 0)), \"\")","v":""},{"$f":"IF(I115=\"\", \"\", IF(ISNUMBER(C116), Capture1_Length-COUNTA(INDEX('Capture #1 CSV'!$A:$FF, 2, C116):INDEX('Capture #1 CSV'!$A:$FF, Capture1_Length, C116))+1, \"\"))","v":""},{"$f":"IF(J115=\"\", \"\", IF(ISNUMBER(D116), Capture2_Length-COUNTA(INDEX('Capture #2 CSV'!$A:$FF, 2, D116):INDEX('Capture #2 CSV'!$A:$FF, Capture2_Length, D116))+1, \"\"))","v":""},{"$f":"IF(K115=\"\", \"\", IF(ISNUMBER(E116), Capture3_Length-COUNTA(INDEX('Capture #3 CSV'!$A:$FF, 2, E116):INDEX('Capture #3 CSV'!$A:$FF, Capture3_Length, E116))+1, \"\"))","v":""},{"$f":"IFERROR(IF(I115=\"\", \"\", AVERAGE(INDEX('Capture #1 CSV'!$A:$FF, Backend!F116, Backend!C116):INDEX('Capture #1 CSV'!$A:$FF, Capture1_Length, Backend!C116))), \"\")","v":""},{"$f":"IFERROR(IF(J115=\"\", \"\", AVERAGE(INDEX('Capture #2 CSV'!$A:$FF, Backend!G116, Backend!D116):INDEX('Capture #2 CSV'!$A:$FF, Capture2_Length, Backend!D116))), \"\")","v":""},{"$f":"IFERROR(IF(K115=\"\", \"\", AVERAGE(INDEX('Capture #3 CSV'!$A:$FF, Backend!H116, Backend!E116):INDEX('Capture #3 CSV'!$A:$FF, Capture3_Length, Backend!E116))), \"\")","v":""}]
["Core #42","CPUCoreUtil%[41]",{"$f":"IFERROR(IF(I116=\"\", \"\", MATCH($B117, 'Capture #1 CSV'!$1:$1, 0)), \"\")","v":""},{"$f":"IFERROR(IF(J116=\"\", \"\", MATCH($B117, 'Capture #2 CSV'!$1:$1, 0)), \"\")","v":""},{"$f":"IFERROR(IF(K116=\"\", \"\", MATCH($B117, 'Capture #3 CSV'!$1:$1, 0)), \"\")","v":""},{"$f":"IF(I116=\"\", \"\", IF(ISNUMBER(C117), Capture1_Length-COUNTA(INDEX('Capture #1 CSV'!$A:$FF, 2, C117):INDEX('Capture #1 CSV'!$A:$FF, Capture1_Length, C117))+1, \"\"))","v":""},{"$f":"IF(J116=\"\", \"\", IF(ISNUMBER(D117), Capture2_Length-COUNTA(INDEX('Capture #2 CSV'!$A:$FF, 2, D117):INDEX('Capture #2 CSV'!$A:$FF, Capture2_Length, D117))+1, \"\"))","v":""},{"$f":"IF(K116=\"\", \"\", IF(ISNUMBER(E117), Capture3_Length-COUNTA(INDEX('Capture #3 CSV'!$A:$FF, 2, E117):INDEX('Capture #3 CSV'!$A:$FF, Capture3_Length, E117))+1, \"\"))","v":""},{"$f":"IFERROR(IF(I116=\"\", \"\", AVERAGE(INDEX('Capture #1 CSV'!$A:$FF, Backend!F117, Backend!C117):INDEX('Capture #1 CSV'!$A:$FF, Capture1_Length, Backend!C117))), \"\")","v":""},{"$f":"IFERROR(IF(J116=\"\", \"\", AVERAGE(INDEX('Capture #2 CSV'!$A:$FF, Backend!G117, Backend!D117):INDEX('Capture #2 CSV'!$A:$FF, Capture2_Length, Backend!D117))), \"\")","v":""},{"$f":"IFERROR(IF(K116=\"\", \"\", AVERAGE(INDEX('Capture #3 CSV'!$A:$FF, Backend!H117, Backend!E117):INDEX('Capture #3 CSV'!$A:$FF, Capture3_Length, Backend!E117))), \"\")","v":""}]
["Core #43","CPUCoreUtil%[42]",{"$f":"IFERROR(IF(I117=\"\", \"\", MATCH($B118, 'Capture #1 CSV'!$1:$1, 0)), \"\")","v":""},{"$f":"IFERROR(IF(J117=\"\", \"\", MATCH($B118, 'Capture #2 CSV'!$1:$1, 0)), \"\")","v":""},{"$f":"IFERROR(IF(K117=\"\", \"\", MATCH($B118, 'Capture #3 CSV'!$1:$1, 0)), \"\")","v":""},{"$f":"IF(I117=\"\", \"\", IF(ISNUMBER(C118), Capture1_Length-COUNTA(INDEX('Capture #1 CSV'!$A:$FF, 2, C118):INDEX('Capture #1 CSV'!$A:$FF, Capture1_Length, C118))+1, \"\"))","v":""},{"$f":"IF(J117=\"\", \"\", IF(ISNUMBER(D118), Capture2_Length-COUNTA(INDEX('Capture #2 CSV'!$A:$FF, 2, D118):INDEX('Capture #2 CSV'!$A:$FF, Capture2_Length, D118))+1, \"\"))","v":""},{"$f":"IF(K117=\"\", \"\", IF(ISNUMBER(E118), Capture3_Length-COUNTA(INDEX('Capture #3 CSV'!$A:$FF, 2, E118):INDEX('Capture #3 CSV'!$A:$FF, Capture3_Length, E118))+1, \"\"))","v":""},{"$f":"IFERROR(IF(I117=\"\", \"\", AVERAGE(INDEX('Capture #1 CSV'!$A:$FF, Backend!F118, Backend!C118):INDEX('Capture #1 CSV'!$A:$FF, Capture1_Length, Backend!C118))), \"\")","v":""},{"$f":"IFERROR(IF(J117=\"\", \"\", AVERAGE(INDEX('Capture #2 CSV'!$A:$FF, Backend!G118, Backend!D118):INDEX('Capture #2 CSV'!$A:$FF, Capture2_Length, Backend!D118))), \"\")","v":""},{"$f":"IFERROR(IF(K117=\"\", \"\", AVERAGE(INDEX('Capture #3 CSV'!$A:$FF, Backend!H118, Backend!E118):INDEX('Capture #3 CSV'!$A:$FF, Capture3_Length, Backend!E118))), \"\")","v":""}]
["Core #44","CPUCoreUtil%[43]",{"$f":"IFERROR(IF(I118=\"\", \"\", MATCH($B119, 'Capture #1 CSV'!$1:$1, 0)), \"\")","v":""},{"$f":"IFERROR(IF(J118=\"\", \"\", MATCH($B119, 'Capture #2 CSV'!$1:$1, 0)), \"\")","v":""},{"$f":"IFERROR(IF(K118=\"\", \"\", MATCH($B119, 'Capture #3 CSV'!$1:$1, 0)), \"\")","v":""},{"$f":"IF(I118=\"\", \"\", IF(ISNUMBER(C119), Capture1_Length-COUNTA(INDEX('Capture #1 CSV'!$A:$FF, 2, C119):INDEX('Capture #1 CSV'!$A:$FF, Capture1_Length, C119))+1, \"\"))","v":""},{"$f":"IF(J118=\"\", \"\", IF(ISNUMBER(D119), Capture2_Length-COUNTA(INDEX('Capture #2 CSV'!$A:$FF, 2, D119):INDEX('Capture #2 CSV'!$A:$FF, Capture2_Length, D119))+1, \"\"))","v":""},{"$f":"IF(K118=\"\", \"\", IF(ISNUMBER(E119), Capture3_Length-COUNTA(INDEX('Capture #3 CSV'!$A:$FF, 2, E119):INDEX('Capture #3 CSV'!$A:$FF, Capture3_Length, E119))+1, \"\"))","v":""},{"$f":"IFERROR(IF(I118=\"\", \"\", AVERAGE(INDEX('Capture #1 CSV'!$A:$FF, Backend!F119, Backend!C119):INDEX('Capture #1 CSV'!$A:$FF, Capture1_Length, Backend!C119))), \"\")","v":""},{"$f":"IFERROR(IF(J118=\"\", \"\", AVERAGE(INDEX('Capture #2 CSV'!$A:$FF, Backend!G119, Backend!D119):INDEX('Capture #2 CSV'!$A:$FF, Capture2_Length, Backend!D119))), \"\")","v":""},{"$f":"IFERROR(IF(K118=\"\", \"\", AVERAGE(INDEX('Capture #3 CSV'!$A:$FF, Backend!H119, Backend!E119):INDEX('Capture #3 CSV'!$A:$FF, Capture3_Length, Backend!E119))), \"\")","v":""}]
["Core #45","CPUCoreUtil%[44]",{"$f":"IFERROR(IF(I119=\"\", \"\", MATCH($B120, 'Capture #1 CSV'!$1:$1, 0)), \"\")","v":""},{"$f":"IFERROR(IF(J119=\"\", \"\", MATCH($B120, 'Capture #2 CSV'!$1:$1, 0)), \"\")","v":""},{"$f":"IFERROR(IF(K119=\"\", \"\", MATCH($B120, 'Capture #3 CSV'!$1:$1, 0)), \"\")","v":""},{"$f":"IF(I119=\"\", \"\", IF(ISNUMBER(C120), Capture1_Length-COUNTA(INDEX('Capture #1 CSV'!$A:$FF, 2, C120):INDEX('Capture #1 CSV'!$A:$FF, Capture1_Length, C120))+1, \"\"))","v":""},{"$f":"IF(J119=\"\", \"\", IF(ISNUMBER(D120), Capture2_Length-COUNTA(INDEX('Capture #2 CSV'!$A:$FF, 2, D120):INDEX('Capture #2 CSV'!$A:$FF, Capture2_Length, D120))+1, \"\"))","v":""},{"$f":"IF(K119=\"\", \"\", IF(ISNUMBER(E120), Capture3_Length-COUNTA(INDEX('Capture #3 CSV'!$A:$FF, 2, E120):INDEX('Capture #3 CSV'!$A:$FF, Capture3_Length, E120))+1, \"\"))","v":""},{"$f":"IFERROR(IF(I119=\"\", \"\", AVERAGE(INDEX('Capture #1 CSV'!$A:$FF, Backend!F120, Backend!C120):INDEX('Capture #1 CSV'!$A:$FF, Capture1_Length, Backend!C120))), \"\")","v":""},{"$f":"IFERROR(IF(J119=\"\", \"\", AVERAGE(INDEX('Capture #2 CSV'!$A:$FF, Backend!G120, Backend!D120):INDEX('Capture #2 CSV'!$A:$FF, Capture2_Length, Backend!D120))), \"\")","v":""},{"$f":"IFERROR(IF(K119=\"\", \"\", AVERAGE(INDEX('Capture #3 CSV'!$A:$FF, Backend!H120, Backend!E120):INDEX('Capture #3 CSV'!$A:$FF, Capture3_Length, Backend!E120))), \"\")","v":""}]
["Core #46","CPUCoreUtil%[45]",{"$f":"IFERROR(IF(I120=\"\", \"\", MATCH($B121, 'Capture #1 CSV'!$1:$1, 0)), \"\")","v":""},{"$f":"IFERROR(IF(J120=\"\", \"\", MATCH($B121, 'Capture #2 CSV'!$1:$1, 0)), \"\")","v":""},{"$f":"IFERROR(IF(K120=\"\", \"\", MATCH($B121, 'Capture #3 CSV'!$1:$1, 0)), \"\")","v":""},{"$f":"IF(I120=\"\", \"\", IF(ISNUMBER(C121), Capture1_Length-COUNTA(INDEX('Capture #1 CSV'!$A:$FF, 2, C121):INDEX('Capture #1 CSV'!$A:$FF, Capture1_Length, C121))+1, \"\"))","v":""},{"$f":"IF(J120=\"\", \"\", IF(ISNUMBER(D121), Capture2_Length-COUNTA(INDEX('Capture #2 CSV'!$A:$FF, 2, D121):INDEX('Capture #2 CSV'!$A:$FF, Capture2_Length, D121))+1, \"\"))","v":""},{"$f":"IF(K120=\"\", \"\", IF(ISNUMBER(E121), Capture3_Length-COUNTA(INDEX('Capture #3 CSV'!$A:$FF, 2, E121):INDEX('Capture #3 CSV'!$A:$FF, Capture3_Length, E121))+1, \"\"))","v":""},{"$f":"IFERROR(IF(I120=\"\", \"\", AVERAGE(INDEX('Capture #1 CSV'!$A:$FF, Backend!F121, Backend!C121):INDEX('Capture #1 CSV'!$A:$FF, Capture1_Length, Backend!C121))), \"\")","v":""},{"$f":"IFERROR(IF(J120=\"\", \"\", AVERAGE(INDEX('Capture #2 CSV'!$A:$FF, Backend!G121, Backend!D121):INDEX('Capture #2 CSV'!$A:$FF, Capture2_Length, Backend!D121))), \"\")","v":""},{"$f":"IFERROR(IF(K120=\"\", \"\", AVERAGE(INDEX('Capture #3 CSV'!$A:$FF, Backend!H121, Backend!E121):INDEX('Capture #3 CSV'!$A:$FF, Capture3_Length, Backend!E121))), \"\")","v":""}]
["Core #47","CPUCoreUtil%[46]",{"$f":"IFERROR(IF(I121=\"\", \"\", MATCH($B122, 'Capture #1 CSV'!$1:$1, 0)), \"\")","v":""},{"$f":"IFERROR(IF(J121=\"\", \"\", MATCH($B122, 'Capture #2 CSV'!$1:$1, 0)), \"\")","v":""},{"$f":"IFERROR(IF(K121=\"\", \"\", MATCH($B122, 'Capture #3 CSV'!$1:$1, 0)), \"\")","v":""},{"$f":"IF(I121=\"\", \"\", IF(ISNUMBER(C122), Capture1_Length-COUNTA(INDEX('Capture #1 CSV'!$A:$FF, 2, C122):INDEX('Capture #1 CSV'!$A:$FF, Capture1_Length, C122))+1, \"\"))","v":""},{"$f":"IF(J121=\"\", \"\", IF(ISNUMBER(D122), Capture2_Length-COUNTA(INDEX('Capture #2 CSV'!$A:$FF, 2, D122):INDEX('Capture #2 CSV'!$A:$FF, Capture2_Length, D122))+1, \"\"))","v":""},{"$f":"IF(K121=\"\", \"\", IF(ISNUMBER(E122), Capture3_Length-COUNTA(INDEX('Capture #3 CSV'!$A:$FF, 2, E122):INDEX('Capture #3 CSV'!$A:$FF, Capture3_Length, E122))+1, \"\"))","v":""},{"$f":"IFERROR(IF(I121=\"\", \"\", AVERAGE(INDEX('Capture #1 CSV'!$A:$FF, Backend!F122, Backend!C122):INDEX('Capture #1 CSV'!$A:$FF, Capture1_Length, Backend!C122))), \"\")","v":""},{"$f":"IFERROR(IF(J121=\"\", \"\", AVERAGE(INDEX('Capture #2 CSV'!$A:$FF, Backend!G122, Backend!D122):INDEX('Capture #2 CSV'!$A:$FF, Capture2_Length, Backend!D122))), \"\")","v":""},{"$f":"IFERROR(IF(K121=\"\", \"\", AVERAGE(INDEX('Capture #3 CSV'!$A:$FF, Backend!H122, Backend!E122):INDEX('Capture #3 CSV'!$A:$FF, Capture3_Length, Backend!E122))), \"\")","v":""}]
["Core #48","CPUCoreUtil%[47]",{"$f":"IFERROR(IF(I122=\"\", \"\", MATCH($B123, 'Capture #1 CSV'!$1:$1, 0)), \"\")","v":""},{"$f":"IFERROR(IF(J122=\"\", \"\", MATCH($B123, 'Capture #2 CSV'!$1:$1, 0)), \"\")","v":""},{"$f":"IFERROR(IF(K122=\"\", \"\", MATCH($B123, 'Capture #3 CSV'!$1:$1, 0)), \"\")","v":""},{"$f":"IF(I122=\"\", \"\", IF(ISNUMBER(C123), Capture1_Length-COUNTA(INDEX('Capture #1 CSV'!$A:$FF, 2, C123):INDEX('Capture #1 CSV'!$A:$FF, Capture1_Length, C123))+1, \"\"))","v":""},{"$f":"IF(J122=\"\", \"\", IF(ISNUMBER(D123), Capture2_Length-COUNTA(INDEX('Capture #2 CSV'!$A:$FF, 2, D123):INDEX('Capture #2 CSV'!$A:$FF, Capture2_Length, D123))+1, \"\"))","v":""},{"$f":"IF(K122=\"\", \"\", IF(ISNUMBER(E123), Capture3_Length-COUNTA(INDEX('Capture #3 CSV'!$A:$FF, 2, E123):INDEX('Capture #3 CSV'!$A:$FF, Capture3_Length, E123))+1, \"\"))","v":""},{"$f":"IFERROR(IF(I122=\"\", \"\", AVERAGE(INDEX('Capture #1 CSV'!$A:$FF, Backend!F123, Backend!C123):INDEX('Capture #1 CSV'!$A:$FF, Capture1_Length, Backend!C123))), \"\")","v":""},{"$f":"IFERROR(IF(J122=\"\", \"\", AVERAGE(INDEX('Capture #2 CSV'!$A:$FF, Backend!G123, Backend!D123):INDEX('Capture #2 CSV'!$A:$FF, Capture2_Length, Backend!D123))), \"\")","v":""},{"$f":"IFERROR(IF(K122=\"\", \"\", AVERAGE(INDEX('Capture #3 CSV'!$A:$FF, Backend!H123, Backend!E123):INDEX('Capture #3 CSV'!$A:$FF, Capture3_Length, Backend!E123))), \"\")","v":""}]
["Core #49","CPUCoreUtil%[48]",{"$f":"IFERROR(IF(I123=\"\", \"\", MATCH($B124, 'Capture #1 CSV'!$1:$1, 0)), \"\")","v":""},{"$f":"IFERROR(IF(J123=\"\", \"\", MATCH($B124, 'Capture #2 CSV'!$1:$1, 0)), \"\")","v":""},{"$f":"IFERROR(IF(K123=\"\", \"\", MATCH($B124, 'Capture #3 CSV'!$1:$1, 0)), \"\")","v":""},{"$f":"IF(I123=\"\", \"\", IF(ISNUMBER(C124), Capture1_Length-COUNTA(INDEX('Capture #1 CSV'!$A:$FF, 2, C124):INDEX('Capture #1 CSV'!$A:$FF, Capture1_Length, C124))+1, \"\"))","v":""},{"$f":"IF(J123=\"\", \"\", IF(ISNUMBER(D124), Capture2_Length-COUNTA(INDEX('Capture #2 CSV'!$A:$FF, 2, D124):INDEX('Capture #2 CSV'!$A:$FF, Capture2_Length, D124))+1, \"\"))","v":""},{"$f":"IF(K123=\"\", \"\", IF(ISNUMBER(E124), Capture3_Length-COUNTA(INDEX('Capture #3 CSV'!$A:$FF, 2, E124):INDEX('Capture #3 CSV'!$A:$FF, Capture3_Length, E124))+1, \"\"))","v":""},{"$f":"IFERROR(IF(I123=\"\", \"\", AVERAGE(INDEX('Capture #1 CSV'!$A:$FF, Backend!F124, Backend!C124):INDEX('Capture #1 CSV'!$A:$FF, Capture1_Length, Backend!C124))), \"\")","v":""},{"$f":"IFERROR(IF(J123=\"\", \"\", AVERAGE(INDEX('Capture #2 CSV'!$A:$FF, Backend!G124, Backend!D124):INDEX('Capture #2 CSV'!$A:$FF, Capture2_Length, Backend!D124))), \"\")","v":""},{"$f":"IFERROR(IF(K123=\"\", \"\", AVERAGE(INDEX('Capture #3 CSV'!$A:$FF, Backend!H124, Backend!E124):INDEX('Capture #3 CSV'!$A:$FF, Capture3_Length, Backend!E124))), \"\")","v":""}]
["Core #50","CPUCoreUtil%[49]",{"$f":"IFERROR(IF(I124=\"\", \"\", MATCH($B125, 'Capture #1 CSV'!$1:$1, 0)), \"\")","v":""},{"$f":"IFERROR(IF(J124=\"\", \"\", MATCH($B125, 'Capture #2 CSV'!$1:$1, 0)), \"\")","v":""},{"$f":"IFERROR(IF(K124=\"\", \"\", MATCH($B125, 'Capture #3 CSV'!$1:$1, 0)), \"\")","v":""},{"$f":"IF(I124=\"\", \"\", IF(ISNUMBER(C125), Capture1_Length-COUNTA(INDEX('Capture #1 CSV'!$A:$FF, 2, C125):INDEX('Capture #1 CSV'!$A:$FF, Capture1_Length, C125))+1, \"\"))","v":""},{"$f":"IF(J124=\"\", \"\", IF(ISNUMBER(D125), Capture2_Length-COUNTA(INDEX('Capture #2 CSV'!$A:$FF, 2, D125):INDEX('Capture #2 CSV'!$A:$FF, Capture2_Length, D125))+1, \"\"))","v":""},{"$f":"IF(K124=\"\", \"\", IF(ISNUMBER(E125), Capture3_Length-COUNTA(INDEX('Capture #3 CSV'!$A:$FF, 2, E125):INDEX('Capture #3 CSV'!$A:$FF, Capture3_Length, E125))+1, \"\"))","v":""},{"$f":"IFERROR(IF(I124=\"\", \"\", AVERAGE(INDEX('Capture #1 CSV'!$A:$FF, Backend!F125, Backend!C125):INDEX('Capture #1 CSV'!$A:$FF, Capture1_Length, Backend!C125))), \"\")","v":""},{"$f":"IFERROR(IF(J124=\"\", \"\", AVERAGE(INDEX('Capture #2 CSV'!$A:$FF, Backend!G125, Backend!D125):INDEX('Capture #2 CSV'!$A:$FF, Capture2_Length, Backend!D125))), \"\")","v":""},{"$f":"IFERROR(IF(K124=\"\", \"\", AVERAGE(INDEX('Capture #3 CSV'!$A:$FF, Backend!H125, Backend!E125):INDEX('Capture #3 CSV'!$A:$FF, Capture3_Length, Backend!E125))), \"\")","v":""}]
["Core #51","CPUCoreUtil%[50]",{"$f":"IFERROR(IF(I125=\"\", \"\", MATCH($B126, 'Capture #1 CSV'!$1:$1, 0)), \"\")","v":""},{"$f":"IFERROR(IF(J125=\"\", \"\", MATCH($B126, 'Capture #2 CSV'!$1:$1, 0)), \"\")","v":""},{"$f":"IFERROR(IF(K125=\"\", \"\", MATCH($B126, 'Capture #3 CSV'!$1:$1, 0)), \"\")","v":""},{"$f":"IF(I125=\"\", \"\", IF(ISNUMBER(C126), Capture1_Length-COUNTA(INDEX('Capture #1 CSV'!$A:$FF, 2, C126):INDEX('Capture #1 CSV'!$A:$FF, Capture1_Length, C126))+1, \"\"))","v":""},{"$f":"IF(J125=\"\", \"\", IF(ISNUMBER(D126), Capture2_Length-COUNTA(INDEX('Capture #2 CSV'!$A:$FF, 2, D126):INDEX('Capture #2 CSV'!$A:$FF, Capture2_Length, D126))+1, \"\"))","v":""},{"$f":"IF(K125=\"\", \"\", IF(ISNUMBER(E126), Capture3_Length-COUNTA(INDEX('Capture #3 CSV'!$A:$FF, 2, E126):INDEX('Capture #3 CSV'!$A:$FF, Capture3_Length, E126))+1, \"\"))","v":""},{"$f":"IFERROR(IF(I125=\"\", \"\", AVERAGE(INDEX('Capture #1 CSV'!$A:$FF, Backend!F126, Backend!C126):INDEX('Capture #1 CSV'!$A:$FF, Capture1_Length, Backend!C126))), \"\")","v":""},{"$f":"IFERROR(IF(J125=\"\", \"\", AVERAGE(INDEX('Capture #2 CSV'!$A:$FF, Backend!G126, Backend!D126):INDEX('Capture #2 CSV'!$A:$FF, Capture2_Length, Backend!D126))), \"\")","v":""},{"$f":"IFERROR(IF(K125=\"\", \"\", AVERAGE(INDEX('Capture #3 CSV'!$A:$FF, Backend!H126, Backend!E126):INDEX('Capture #3 CSV'!$A:$FF, Capture3_Length, Backend!E126))), \"\")","v":""}]
["Core #52","CPUCoreUtil%[51]",{"$f":"IFERROR(IF(I126=\"\", \"\", MATCH($B127, 'Capture #1 CSV'!$1:$1, 0)), \"\")","v":""},{"$f":"IFERROR(IF(J126=\"\", \"\", MATCH($B127, 'Capture #2 CSV'!$1:$1, 0)), \"\")","v":""},{"$f":"IFERROR(IF(K126=\"\", \"\", MATCH($B127, 'Capture #3 CSV'!$1:$1, 0)), \"\")","v":""},{"$f":"IF(I126=\"\", \"\", IF(ISNUMBER(C127), Capture1_Length-COUNTA(INDEX('Capture #1 CSV'!$A:$FF, 2, C127):INDEX('Capture #1 CSV'!$A:$FF, Capture1_Length, C127))+1, \"\"))","v":""},{"$f":"IF(J126=\"\", \"\", IF(ISNUMBER(D127), Capture2_Length-COUNTA(INDEX('Capture #2 CSV'!$A:$FF, 2, D127):INDEX('Capture #2 CSV'!$A:$FF, Capture2_Length, D127))+1, \"\"))","v":""},{"$f":"IF(K126=\"\", \"\", IF(ISNUMBER(E127), Capture3_Length-COUNTA(INDEX('Capture #3 CSV'!$A:$FF, 2, E127):INDEX('Capture #3 CSV'!$A:$FF, Capture3_Length, E127))+1, \"\"))","v":""},{"$f":"IFERROR(IF(I126=\"\", \"\", AVERAGE(INDEX('Capture #1 CSV'!$A:$FF, Backend!F127, Backend!C127):INDEX('Capture #1 CSV'!$A:$FF, Capture1_Length, Backend!C127))), \"\")","v":""},{"$f":"IFERROR(IF(J126=\"\", \"\", AVERAGE(INDEX('Capture #2 CSV'!$A:$FF, Backend!G127, Backend!D127):INDEX('Capture #2 CSV'!$A:$FF, Capture2_Length, Backend!D127))), \"\")","v":""},{"$f":"IFERROR(IF(K126=\"\", \"\", AVERAGE(INDEX('Capture #3 CSV'!$A:$FF, Backend!H127, Backend!E127):INDEX('Capture #3 CSV'!$A:$FF, Capture3_Length, Backend!E127))), \"\")","v":""}]
["Core #53","CPUCoreUtil%[52]",{"$f":"IFERROR(IF(I127=\"\", \"\", MATCH($B128, 'Capture #1 CSV'!$1:$1, 0)), \"\")","v":""},{"$f":"IFERROR(IF(J127=\"\", \"\", MATCH($B128, 'Capture #2 CSV'!$1:$1, 0)), \"\")","v":""},{"$f":"IFERROR(IF(K127=\"\", \"\", MATCH($B128, 'Capture #3 CSV'!$1:$1, 0)), \"\")","v":""},{"$f":"IF(I127=\"\", \"\", IF(ISNUMBER(C128), Capture1_Length-COUNTA(INDEX('Capture #1 CSV'!$A:$FF, 2, C128):INDEX('Capture #1 CSV'!$A:$FF, Capture1_Length, C128))+1, \"\"))","v":""},{"$f":"IF(J127=\"\", \"\", IF(ISNUMBER(D128), Capture2_Length-COUNTA(INDEX('Capture #2 CSV'!$A:$FF, 2, D128):INDEX('Capture #2 CSV'!$A:$FF, Capture2_Length, D128))+1, \"\"))","v":""},{"$f":"IF(K127=\"\", \"\", IF(ISNUMBER(E128), Capture3_Length-COUNTA(INDEX('Capture #3 CSV'!$A:$FF, 2, E128):INDEX('Capture #3 CSV'!$A:$FF, Capture3_Length, E128))+1, \"\"))","v":""},{"$f":"IFERROR(IF(I127=\"\", \"\", AVERAGE(INDEX('Capture #1 CSV'!$A:$FF, Backend!F128, Backend!C128):INDEX('Capture #1 CSV'!$A:$FF, Capture1_Length, Backend!C128))), \"\")","v":""},{"$f":"IFERROR(IF(J127=\"\", \"\", AVERAGE(INDEX('Capture #2 CSV'!$A:$FF, Backend!G128, Backend!D128):INDEX('Capture #2 CSV'!$A:$FF, Capture2_Length, Backend!D128))), \"\")","v":""},{"$f":"IFERROR(IF(K127=\"\", \"\", AVERAGE(INDEX('Capture #3 CSV'!$A:$FF, Backend!H128, Backend!E128):INDEX('Capture #3 CSV'!$A:$FF, Capture3_Length, Backend!E128))), \"\")","v":""}]
["Core #54","CPUCoreUtil%[53]",{"$f":"IFERROR(IF(I128=\"\", \"\", MATCH($B129, 'Capture #1 CSV'!$1:$1, 0)), \"\")","v":""},{"$f":"IFERROR(IF(J128=\"\", \"\", MATCH($B129, 'Capture #2 CSV'!$1:$1, 0)), \"\")","v":""},{"$f":"IFERROR(IF(K128=\"\", \"\", MATCH($B129, 'Capture #3 CSV'!$1:$1, 0)), \"\")","v":""},{"$f":"IF(I128=\"\", \"\", IF(ISNUMBER(C129), Capture1_Length-COUNTA(INDEX('Capture #1 CSV'!$A:$FF, 2, C129):INDEX('Capture #1 CSV'!$A:$FF, Capture1_Length, C129))+1, \"\"))","v":""},{"$f":"IF(J128=\"\", \"\", IF(ISNUMBER(D129), Capture2_Length-COUNTA(INDEX('Capture #2 CSV'!$A:$FF, 2, D129):INDEX('Capture #2 CSV'!$A:$FF, Capture2_Length, D129))+1, \"\"))","v":""},{"$f":"IF(K128=\"\", \"\", IF(ISNUMBER(E129), Capture3_Length-COUNTA(INDEX('Capture #3 CSV'!$A:$FF, 2, E129):INDEX('Capture #3 CSV'!$A:$FF, Capture3_Length, E129))+1, \"\"))","v":""},{"$f":"IFERROR(IF(I128=\"\", \"\", AVERAGE(INDEX('Capture #1 CSV'!$A:$FF, Backend!F129, Backend!C129):INDEX('Capture #1 CSV'!$A:$FF, Capture1_Length, Backend!C129))), \"\")","v":""},{"$f":"IFERROR(IF(J128=\"\", \"\", AVERAGE(INDEX('Capture #2 CSV'!$A:$FF, Backend!G129, Backend!D129):INDEX('Capture #2 CSV'!$A:$FF, Capture2_Length, Backend!D129))), \"\")","v":""},{"$f":"IFERROR(IF(K128=\"\", \"\", AVERAGE(INDEX('Capture #3 CSV'!$A:$FF, Backend!H129, Backend!E129):INDEX('Capture #3 CSV'!$A:$FF, Capture3_Length, Backend!E129))), \"\")","v":""}]
["Core #55","CPUCoreUtil%[54]",{"$f":"IFERROR(IF(I129=\"\", \"\", MATCH($B130, 'Capture #1 CSV'!$1:$1, 0)), \"\")","v":""},{"$f":"IFERROR(IF(J129=\"\", \"\", MATCH($B130, 'Capture #2 CSV'!$1:$1, 0)), \"\")","v":""},{"$f":"IFERROR(IF(K129=\"\", \"\", MATCH($B130, 'Capture #3 CSV'!$1:$1, 0)), \"\")","v":""},{"$f":"IF(I129=\"\", \"\", IF(ISNUMBER(C130), Capture1_Length-COUNTA(INDEX('Capture #1 CSV'!$A:$FF, 2, C130):INDEX('Capture #1 CSV'!$A:$FF, Capture1_Length, C130))+1, \"\"))","v":""},{"$f":"IF(J129=\"\", \"\", IF(ISNUMBER(D130), Capture2_Length-COUNTA(INDEX('Capture #2 CSV'!$A:$FF, 2, D130):INDEX('Capture #2 CSV'!$A:$FF, Capture2_Length, D130))+1, \"\"))","v":""},{"$f":"IF(K129=\"\", \"\", IF(ISNUMBER(E130), Capture3_Length-COUNTA(INDEX('Capture #3 CSV'!$A:$FF, 2, E130):INDEX('Capture #3 CSV'!$A:$FF, Capture3_Length, E130))+1, \"\"))","v":""},{"$f":"IFERROR(IF(I129=\"\", \"\", AVERAGE(INDEX('Capture #1 CSV'!$A:$FF, Backend!F130, Backend!C130):INDEX('Capture #1 CSV'!$A:$FF, Capture1_Length, Backend!C130))), \"\")","v":""},{"$f":"IFERROR(IF(J129=\"\", \"\", AVERAGE(INDEX('Capture #2 CSV'!$A:$FF, Backend!G130, Backend!D130):INDEX('Capture #2 CSV'!$A:$FF, Capture2_Length, Backend!D130))), \"\")","v":""},{"$f":"IFERROR(IF(K129=\"\", \"\", AVERAGE(INDEX('Capture #3 CSV'!$A:$FF, Backend!H130, Backend!E130):INDEX('Capture #3 CSV'!$A:$FF, Capture3_Length, Backend!E130))), \"\")","v":""}]
["Core #56","CPUCoreUtil%[55]",{"$f":"IFERROR(IF(I130=\"\", \"\", MATCH($B131, 'Capture #1 CSV'!$1:$1, 0)), \"\")","v":""},{"$f":"IFERROR(IF(J130=\"\", \"\", MATCH($B131, 'Capture #2 CSV'!$1:$1, 0)), \"\")","v":""},{"$f":"IFERROR(IF(K130=\"\", \"\", MATCH($B131, 'Capture #3 CSV'!$1:$1, 0)), \"\")","v":""},{"$f":"IF(I130=\"\", \"\", IF(ISNUMBER(C131), Capture1_Length-COUNTA(INDEX('Capture #1 CSV'!$A:$FF, 2, C131):INDEX('Capture #1 CSV'!$A:$FF, Capture1_Length, C131))+1, \"\"))","v":""},{"$f":"IF(J130=\"\", \"\", IF(ISNUMBER(D131), Capture2_Length-COUNTA(INDEX('Capture #2 CSV'!$A:$FF, 2, D131):INDEX('Capture #2 CSV'!$A:$FF, Capture2_Length, D131))+1, \"\"))","v":""},{"$f":"IF(K130=\"\", \"\", IF(ISNUMBER(E131), Capture3_Length-COUNTA(INDEX('Capture #3 CSV'!$A:$FF, 2, E131):INDEX('Capture #3 CSV'!$A:$FF, Capture3_Length, E131))+1, \"\"))","v":""},{"$f":"IFERROR(IF(I130=\"\", \"\", AVERAGE(INDEX('Capture #1 CSV'!$A:$FF, Backend!F131, Backend!C131):INDEX('Capture #1 CSV'!$A:$FF, Capture1_Length, Backend!C131))), \"\")","v":""},{"$f":"IFERROR(IF(J130=\"\", \"\", AVERAGE(INDEX('Capture #2 CSV'!$A:$FF, Backend!G131, Backend!D131):INDEX('Capture #2 CSV'!$A:$FF, Capture2_Length, Backend!D131))), \"\")","v":""},{"$f":"IFERROR(IF(K130=\"\", \"\", AVERAGE(INDEX('Capture #3 CSV'!$A:$FF, Backend!H131, Backend!E131):INDEX('Capture #3 CSV'!$A:$FF, Capture3_Length, Backend!E131))), \"\")","v":""}]
["Core #57","CPUCoreUtil%[56]",{"$f":"IFERROR(IF(I131=\"\", \"\", MATCH($B132, 'Capture #1 CSV'!$1:$1, 0)), \"\")","v":""},{"$f":"IFERROR(IF(J131=\"\", \"\", MATCH($B132, 'Capture #2 CSV'!$1:$1, 0)), \"\")","v":""},{"$f":"IFERROR(IF(K131=\"\", \"\", MATCH($B132, 'Capture #3 CSV'!$1:$1, 0)), \"\")","v":""},{"$f":"IF(I131=\"\", \"\", IF(ISNUMBER(C132), Capture1_Length-COUNTA(INDEX('Capture #1 CSV'!$A:$FF, 2, C132):INDEX('Capture #1 CSV'!$A:$FF, Capture1_Length, C132))+1, \"\"))","v":""},{"$f":"IF(J131=\"\", \"\", IF(ISNUMBER(D132), Capture2_Length-COUNTA(INDEX('Capture #2 CSV'!$A:$FF, 2, D132):INDEX('Capture #2 CSV'!$A:$FF, Capture2_Length, D132))+1, \"\"))","v":""},{"$f":"IF(K131=\"\", \"\", IF(ISNUMBER(E132), Capture3_Length-COUNTA(INDEX('Capture #3 CSV'!$A:$FF, 2, E132):INDEX('Capture #3 CSV'!$A:$FF, Capture3_Length, E132))+1, \"\"))","v":""},{"$f":"IFERROR(IF(I131=\"\", \"\", AVERAGE(INDEX('Capture #1 CSV'!$A:$FF, Backend!F132, Backend!C132):INDEX('Capture #1 CSV'!$A:$FF, Capture1_Length, Backend!C132))), \"\")","v":""},{"$f":"IFERROR(IF(J131=\"\", \"\", AVERAGE(INDEX('Capture #2 CSV'!$A:$FF, Backend!G132, Backend!D132):INDEX('Capture #2 CSV'!$A:$FF, Capture2_Length, Backend!D132))), \"\")","v":""},{"$f":"IFERROR(IF(K131=\"\", \"\", AVERAGE(INDEX('Capture #3 CSV'!$A:$FF, Backend!H132, Backend!E132):INDEX('Capture #3 CSV'!$A:$FF, Capture3_Length, Backend!E132))), \"\")","v":""}]
["Core #58","CPUCoreUtil%[57]",{"$f":"IFERROR(IF(I132=\"\", \"\", MATCH($B133, 'Capture #1 CSV'!$1:$1, 0)), \"\")","v":""},{"$f":"IFERROR(IF(J132=\"\", \"\", MATCH($B133, 'Capture #2 CSV'!$1:$1, 0)), \"\")","v":""},{"$f":"IFERROR(IF(K132=\"\", \"\", MATCH($B133, 'Capture #3 CSV'!$1:$1, 0)), \"\")","v":""},{"$f":"IF(I132=\"\", \"\", IF(ISNUMBER(C133), Capture1_Length-COUNTA(INDEX('Capture #1 CSV'!$A:$FF, 2, C133):INDEX('Capture #1 CSV'!$A:$FF, Capture1_Length, C133))+1, \"\"))","v":""},{"$f":"IF(J132=\"\", \"\", IF(ISNUMBER(D133), Capture2_Length-COUNTA(INDEX('Capture #2 CSV'!$A:$FF, 2, D133):INDEX('Capture #2 CSV'!$A:$FF, Capture2_Length, D133))+1, \"\"))","v":""},{"$f":"IF(K132=\"\", \"\", IF(ISNUMBER(E133), Capture3_Length-COUNTA(INDEX('Capture #3 CSV'!$A:$FF, 2, E133):INDEX('Capture #3 CSV'!$A:$FF, Capture3_Length, E133))+1, \"\"))","v":""},{"$f":"IFERROR(IF(I132=\"\", \"\", AVERAGE(INDEX('Capture #1 CSV'!$A:$FF, Backend!F133, Backend!C133):INDEX('Capture #1 CSV'!$A:$FF, Capture1_Length, Backend!C133))), \"\")","v":""},{"$f":"IFERROR(IF(J132=\"\", \"\", AVERAGE(INDEX('Capture #2 CSV'!$A:$FF, Backend!G133, Backend!D133):INDEX('Capture #2 CSV'!$A:$FF, Capture2_Length, Backend!D133))), \"\")","v":""},{"$f":"IFERROR(IF(K132=\"\", \"\", AVERAGE(INDEX('Capture #3 CSV'!$A:$FF, Backend!H133, Backend!E133):INDEX('Capture #3 CSV'!$A:$FF, Capture3_Length, Backend!E133))), \"\")","v":""}]
["Core #59","CPUCoreUtil%[58]",{"$f":"IFERROR(IF(I133=\"\", \"\", MATCH($B134, 'Capture #1 CSV'!$1:$1, 0)), \"\")","v":""},{"$f":"IFERROR(IF(J133=\"\", \"\", MATCH($B134, 'Capture #2 CSV'!$1:$1, 0)), \"\")","v":""},{"$f":"IFERROR(IF(K133=\"\", \"\", MATCH($B134, 'Capture #3 CSV'!$1:$1, 0)), \"\")","v":""},{"$f":"IF(I133=\"\", \"\", IF(ISNUMBER(C134), Capture1_Length-COUNTA(INDEX('Capture #1 CSV'!$A:$FF, 2, C134):INDEX('Capture #1 CSV'!$A:$FF, Capture1_Length, C134))+1, \"\"))","v":""},{"$f":"IF(J133=\"\", \"\", IF(ISNUMBER(D134), Capture2_Length-COUNTA(INDEX('Capture #2 CSV'!$A:$FF, 2, D134):INDEX('Capture #2 CSV'!$A:$FF, Capture2_Length, D134))+1, \"\"))","v":""},{"$f":"IF(K133=\"\", \"\", IF(ISNUMBER(E134), Capture3_Length-COUNTA(INDEX('Capture #3 CSV'!$A:$FF, 2, E134):INDEX('Capture #3 CSV'!$A:$FF, Capture3_Length, E134))+1, \"\"))","v":""},{"$f":"IFERROR(IF(I133=\"\", \"\", AVERAGE(INDEX('Capture #1 CSV'!$A:$FF, Backend!F134, Backend!C134):INDEX('Capture #1 CSV'!$A:$FF, Capture1_Length, Backend!C134))), \"\")","v":""},{"$f":"IFERROR(IF(J133=\"\", \"\", AVERAGE(INDEX('Capture #2 CSV'!$A:$FF, Backend!G134, Backend!D134):INDEX('Capture #2 CSV'!$A:$FF, Capture2_Length, Backend!D134))), \"\")","v":""},{"$f":"IFERROR(IF(K133=\"\", \"\", AVERAGE(INDEX('Capture #3 CSV'!$A:$FF, Backend!H134, Backend!E134):INDEX('Capture #3 CSV'!$A:$FF, Capture3_Length, Backend!E134))), \"\")","v":""}]
["Core #60","CPUCoreUtil%[59]",{"$f":"IFERROR(IF(I134=\"\", \"\", MATCH($B135, 'Capture #1 CSV'!$1:$1, 0)), \"\")","v":""},{"$f":"IFERROR(IF(J134=\"\", \"\", MATCH($B135, 'Capture #2 CSV'!$1:$1, 0)), \"\")","v":""},{"$f":"IFERROR(IF(K134=\"\", \"\", MATCH($B135, 'Capture #3 CSV'!$1:$1, 0)), \"\")","v":""},{"$f":"IF(I134=\"\", \"\", IF(ISNUMBER(C135), Capture1_Length-COUNTA(INDEX('Capture #1 CSV'!$A:$FF, 2, C135):INDEX('Capture #1 CSV'!$A:$FF, Capture1_Length, C135))+1, \"\"))","v":""},{"$f":"IF(J134=\"\", \"\", IF(ISNUMBER(D135), Capture2_Length-COUNTA(INDEX('Capture #2 CSV'!$A:$FF, 2, D135):INDEX('Capture #2 CSV'!$A:$FF, Capture2_Length, D135))+1, \"\"))","v":""},{"$f":"IF(K134=\"\", \"\", IF(ISNUMBER(E135), Capture3_Length-COUNTA(INDEX('Capture #3 CSV'!$A:$FF, 2, E135):INDEX('Capture #3 CSV'!$A:$FF, Capture3_Length, E135))+1, \"\"))","v":""},{"$f":"IFERROR(IF(I134=\"\", \"\", AVERAGE(INDEX('Capture #1 CSV'!$A:$FF, Backend!F135, Backend!C135):INDEX('Capture #1 CSV'!$A:$FF, Capture1_Length, Backend!C135))), \"\")","v":""},{"$f":"IFERROR(IF(J134=\"\", \"\", AVERAGE(INDEX('Capture #2 CSV'!$A:$FF, Backend!G135, Backend!D135):INDEX('Capture #2 CSV'!$A:$FF, Capture2_Length, Backend!D135))), \"\")","v":""},{"$f":"IFERROR(IF(K134=\"\", \"\", AVERAGE(INDEX('Capture #3 CSV'!$A:$FF, Backend!H135, Backend!E135):INDEX('Capture #3 CSV'!$A:$FF, Capture3_Length, Backend!E135))), \"\")","v":""}]
["Core #61","CPUCoreUtil%[60]",{"$f":"IFERROR(IF(I135=\"\", \"\", MATCH($B136, 'Capture #1 CSV'!$1:$1, 0)), \"\")","v":""},{"$f":"IFERROR(IF(J135=\"\", \"\", MATCH($B136, 'Capture #2 CSV'!$1:$1, 0)), \"\")","v":""},{"$f":"IFERROR(IF(K135=\"\", \"\", MATCH($B136, 'Capture #3 CSV'!$1:$1, 0)), \"\")","v":""},{"$f":"IF(I135=\"\", \"\", IF(ISNUMBER(C136), Capture1_Length-COUNTA(INDEX('Capture #1 CSV'!$A:$FF, 2, C136):INDEX('Capture #1 CSV'!$A:$FF, Capture1_Length, C136))+1, \"\"))","v":""},{"$f":"IF(J135=\"\", \"\", IF(ISNUMBER(D136), Capture2_Length-COUNTA(INDEX('Capture #2 CSV'!$A:$FF, 2, D136):INDEX('Capture #2 CSV'!$A:$FF, Capture2_Length, D136))+1, \"\"))","v":""},{"$f":"IF(K135=\"\", \"\", IF(ISNUMBER(E136), Capture3_Length-COUNTA(INDEX('Capture #3 CSV'!$A:$FF, 2, E136):INDEX('Capture #3 CSV'!$A:$FF, Capture3_Length, E136))+1, \"\"))","v":""},{"$f":"IFERROR(IF(I135=\"\", \"\", AVERAGE(INDEX('Capture #1 CSV'!$A:$FF, Backend!F136, Backend!C136):INDEX('Capture #1 CSV'!$A:$FF, Capture1_Length, Backend!C136))), \"\")","v":""},{"$f":"IFERROR(IF(J135=\"\", \"\", AVERAGE(INDEX('Capture #2 CSV'!$A:$FF, Backend!G136, Backend!D136):INDEX('Capture #2 CSV'!$A:$FF, Capture2_Length, Backend!D136))), \"\")","v":""},{"$f":"IFERROR(IF(K135=\"\", \"\", AVERAGE(INDEX('Capture #3 CSV'!$A:$FF, Backend!H136, Backend!E136):INDEX('Capture #3 CSV'!$A:$FF, Capture3_Length, Backend!E136))), \"\")","v":""}]
["Core #62","CPUCoreUtil%[61]",{"$f":"IFERROR(IF(I136=\"\", \"\", MATCH($B137, 'Capture #1 CSV'!$1:$1, 0)), \"\")","v":""},{"$f":"IFERROR(IF(J136=\"\", \"\", MATCH($B137, 'Capture #2 CSV'!$1:$1, 0)), \"\")","v":""},{"$f":"IFERROR(IF(K136=\"\", \"\", MATCH($B137, 'Capture #3 CSV'!$1:$1, 0)), \"\")","v":""},{"$f":"IF(I136=\"\", \"\", IF(ISNUMBER(C137), Capture1_Length-COUNTA(INDEX('Capture #1 CSV'!$A:$FF, 2, C137):INDEX('Capture #1 CSV'!$A:$FF, Capture1_Length, C137))+1, \"\"))","v":""},{"$f":"IF(J136=\"\", \"\", IF(ISNUMBER(D137), Capture2_Length-COUNTA(INDEX('Capture #2 CSV'!$A:$FF, 2, D137):INDEX('Capture #2 CSV'!$A:$FF, Capture2_Length, D137))+1, \"\"))","v":""},{"$f":"IF(K136=\"\", \"\", IF(ISNUMBER(E137), Capture3_Length-COUNTA(INDEX('Capture #3 CSV'!$A:$FF, 2, E137):INDEX('Capture #3 CSV'!$A:$FF, Capture3_Length, E137))+1, \"\"))","v":""},{"$f":"IFERROR(IF(I136=\"\", \"\", AVERAGE(INDEX('Capture #1 CSV'!$A:$FF, Backend!F137, Backend!C137):INDEX('Capture #1 CSV'!$A:$FF, Capture1_Length, Backend!C137))), \"\")","v":""},{"$f":"IFERROR(IF(J136=\"\", \"\", AVERAGE(INDEX('Capture #2 CSV'!$A:$FF, Backend!G137, Backend!D137):INDEX('Capture #2 CSV'!$A:$FF, Capture2_Length, Backend!D137))), \"\")","v":""},{"$f":"IFERROR(IF(K136=\"\", \"\", AVERAGE(INDEX('Capture #3 CSV'!$A:$FF, Backend!H137, Backend!E137):INDEX('Capture #3 CSV'!$A:$FF, Capture3_Length, Backend!E137))), \"\")","v":""}]
["Core #63","CPUCoreUtil%[62]",{"$f":"IFERROR(IF(I137=\"\", \"\", MATCH($B138, 'Capture #1 CSV'!$1:$1, 0)), \"\")","v":""},{"$f":"IFERROR(IF(J137=\"\", \"\", MATCH($B138, 'Capture #2 CSV'!$1:$1, 0)), \"\")","v":""},{"$f":"IFERROR(IF(K137=\"\", \"\", MATCH($B138, 'Capture #3 CSV'!$1:$1, 0)), \"\")","v":""},{"$f":"IF(I137=\"\", \"\", IF(ISNUMBER(C138), Capture1_Length-COUNTA(INDEX('Capture #1 CSV'!$A:$FF, 2, C138):INDEX('Capture #1 CSV'!$A:$FF, Capture1_Length, C138))+1, \"\"))","v":""},{"$f":"IF(J137=\"\", \"\", IF(ISNUMBER(D138), Capture2_Length-COUNTA(INDEX('Capture #2 CSV'!$A:$FF, 2, D138):INDEX('Capture #2 CSV'!$A:$FF, Capture2_Length, D138))+1, \"\"))","v":""},{"$f":"IF(K137=\"\", \"\", IF(ISNUMBER(E138), Capture3_Length-COUNTA(INDEX('Capture #3 CSV'!$A:$FF, 2, E138):INDEX('Capture #3 CSV'!$A:$FF, Capture3_Length, E138))+1, \"\"))","v":""},{"$f":"IFERROR(IF(I137=\"\", \"\", AVERAGE(INDEX('Capture #1 CSV'!$A:$FF, Backend!F138, Backend!C138):INDEX('Capture #1 CSV'!$A:$FF, Capture1_Length, Backend!C138))), \"\")","v":""},{"$f":"IFERROR(IF(J137=\"\", \"\", AVERAGE(INDEX('Capture #2 CSV'!$A:$FF, Backend!G138, Backend!D138):INDEX('Capture #2 CSV'!$A:$FF, Capture2_Length, Backend!D138))), \"\")","v":""},{"$f":"IFERROR(IF(K137=\"\", \"\", AVERAGE(INDEX('Capture #3 CSV'!$A:$FF, Backend!H138, Backend!E138):INDEX('Capture #3 CSV'!$A:$FF, Capture3_Length, Backend!E138))), \"\")","v":""}]
["Core #64","CPUCoreUtil%[63]",{"$f":"IFERROR(IF(I138=\"\", \"\", MATCH($B139, 'Capture #1 CSV'!$1:$1, 0)), \"\")","v":""},{"$f":"IFERROR(IF(J138=\"\", \"\", MATCH($B139, 'Capture #2 CSV'!$1:$1, 0)), \"\")","v":""},{"$f":"IFERROR(IF(K138=\"\", \"\", MATCH($B139, 'Capture #3 CSV'!$1:$1, 0)), \"\")","v":""},{"$f":"IF(I138=\"\", \"\", IF(ISNUMBER(C139), Capture1_Length-COUNTA(INDEX('Capture #1 CSV'!$A:$FF, 2, C139):INDEX('Capture #1 CSV'!$A:$FF, Capture1_Length, C139))+1, \"\"))","v":""},{"$f":"IF(J138=\"\", \"\", IF(ISNUMBER(D139), Capture2_Length-COUNTA(INDEX('Capture #2 CSV'!$A:$FF, 2, D139):INDEX('Capture #2 CSV'!$A:$FF, Capture2_Length, D139))+1, \"\"))","v":""},{"$f":"IF(K138=\"\", \"\", IF(ISNUMBER(E139), Capture3_Length-COUNTA(INDEX('Capture #3 CSV'!$A:$FF, 2, E139):INDEX('Capture #3 CSV'!$A:$FF, Capture3_Length, E139))+1, \"\"))","v":""},{"$f":"IFERROR(IF(I138=\"\", \"\", AVERAGE(INDEX('Capture #1 CSV'!$A:$FF, Backend!F139, Backend!C139):INDEX('Capture #1 CSV'!$A:$FF, Capture1_Length, Backend!C139))), \"\")","v":""},{"$f":"IFERROR(IF(J138=\"\", \"\", AVERAGE(INDEX('Capture #2 CSV'!$A:$FF, Backend!G139, Backend!D139):INDEX('Capture #2 CSV'!$A:$FF, Capture2_Length, Backend!D139))), \"\")","v":""},{"$f":"IFERROR(IF(K138=\"\", \"\", AVERAGE(INDEX('Capture #3 CSV'!$A:$FF, Backend!H139, Backend!E139):INDEX('Capture #3 CSV'!$A:$FF, Capture3_Length, Backend!E139))), \"\")","v":""}]
["Options"]
["Log Folder Path"]
["Power Scheme",1]
["Selected Table Formula",1]
[1,"Average"]
[2,"Minimum"]
[3,"Maximum"]
[4,"1st Percentile"]
[5,"5th Percentile"]
[6,"10th Percentile"]
[7,"90th Percentile"]
[8,"95th Percentile"]
[9,"99th Percentile"]